{"text_format":"1","workbook":"xlsx","n_sheets":4,"sheets":["Home","Air strikes","Database methodology","Database colour scales"],"not_rendered":{"charts":0,"images":7,"macros":1,"external_links":1,"defined_names":4,"comments":1,"pivot_tables":0},"unopened":[],"bounds":{"document_bytes":16777216,"sheet_cells":100000,"rows_first":2000,"rows_last":500,"rows_between":2000,"halvings":0,"cell_chars":16384,"cell_head_chars":4096},"cells_cut":0,"cells_raw":0,"read":"whole","date_system":"1900"}

{"sheet":"Home","index":0,"n_rows":0,"n_cols":0,"rows_kept":0,"cut":false,"hidden":false,"merged":[]}

{"sheet":"Air strikes","index":1,"n_rows":396,"n_cols":33,"rows_kept":396,"cut":false,"hidden":false,"merged":[[21,5,24,5],[26,4,28,4],[26,5,28,5],[26,13,28,13],[26,14,28,14],[26,15,28,15],[3,4,6,4],[3,5,6,5],[7,4,11,4],[7,5,11,5],[12,5,18,5],[26,28,28,28],[26,29,28,29],[26,30,28,30],[26,31,28,31],[27,6,28,6],[31,4,32,4],[31,5,32,5],[31,13,32,13],[31,18,32,18],[31,19,32,19],[26,22,28,22],[26,23,28,23],[26,24,28,24],[26,25,28,25],[26,26,28,26],[26,27,28,27],[26,16,28,16],[26,17,28,17],[26,18,28,18],[26,19,28,19],[26,20,28,20],[26,21,28,21],[31,22,32,22],[31,23,32,23],[31,24,32,24],[31,25,32,25],[41,31,42,31],[41,20,42,20],[41,21,42,21],[41,22,42,22],[41,23,42,23],[41,24,42,24],[41,25,42,25],[31,26,32,26],[31,27,32,27],[31,20,32,20],[31,21,32,21],[43,13,44,13],[43,14,44,14],[43,15,44,15],[43,16,44,16],[41,26,42,26],[41,27,42,27],[41,28,42,28],[41,29,42,29],[41,30,42,30],[43,29,44,29],[43,30,44,30],[41,13,42,13],[41,14,42,14],[41,15,42,15],[41,16,42,16],[41,17,42,17],[41,18,42,18],[41,19,42,19],[43,31,44,31],[52,4,53,4],[52,5,53,5],[52,13,53,13],[52,14,53,14],[52,15,53,15],[52,16,53,16],[43,23,44,23],[43,24,44,24],[43,25,44,25],[43,26,44,26],[43,27,44,27],[43,28,44,28],[43,17,44,17],[43,18,44,18],[43,19,44,19],[43,20,44,20],[43,21,44,21],[43,22,44,22],[43,4,44,4],[43,5,44,5],[52,29,53,29],[52,30,53,30],[52,31,53,31],[54,4,55,4],[54,5,55,5],[54,6,55,6],[54,13,55,13],[54,14,55,14],[54,15,55,15],[52,23,53,23],[52,24,53,24],[52,25,53,25],[52,26,53,26],[52,27,53,27],[52,28,53,28],[52,17,53,17],[52,18,53,18],[52,19,53,19],[52,20,53,20],[52,21,53,21],[52,22,53,22],[54,28,55,28],[54,29,55,29],[54,30,55,30],[54,31,55,31],[56,4,57,4],[56,5,57,5],[56,13,57,13],[56,14,57,14],[56,15,57,15],[54,22,55,22],[54,23,55,23],[54,24,55,24],[54,25,55,25],[54,26,55,26],[54,27,55,27],[54,16,55,16],[54,17,55,17],[54,18,55,18],[54,19,55,19],[54,20,55,20],[54,21,55,21],[56,28,57,28],[56,29,57,29],[56,30,57,30],[56,31,57,31],[62,4,63,4],[62,5,63,5],[62,13,63,13],[62,14,63,14],[62,15,63,15],[56,22,57,22],[56,23,57,23],[56,24,57,24],[56,25,57,25],[56,26,57,26],[56,27,57,27],[56,16,57,16],[56,17,57,17],[56,18,57,18],[56,19,57,19],[56,20,57,20],[56,21,57,21],[62,28,63,28],[62,29,63,29],[62,30,63,30],[62,31,63,31],[62,26,63,26],[62,27,63,27],[62,22,63,22],[62,23,63,23],[62,24,63,24],[62,25,63,25],[62,16,63,16],[62,17,63,17],[62,18,63,18],[62,19,63,19],[62,20,63,20],[62,21,63,21],[65,31,66,31],[67,6,68,6],[67,13,68,13],[67,14,68,14],[67,15,68,15],[67,16,68,16],[67,17,68,17],[67,18,68,18],[67,19,68,19],[65,24,66,24],[65,25,66,25],[65,26,66,26],[65,27,66,27],[65,28,66,28],[65,29,66,29],[65,18,66,18],[65,19,66,19],[65,20,66,20],[65,21,66,21],[65,22,66,22],[65,23,66,23],[67,26,68,26],[67,27,68,27],[65,13,66,13],[70,6,71,6],[82,0,83,0],[82,1,83,1],[82,2,83,2],[82,3,83,3],[82,4,87,4],[82,5,87,5],[82,6,87,6],[65,30,66,30],[65,14,66,14],[65,15,66,15],[65,16,66,16],[65,17,66,17],[67,28,68,28],[67,29,68,29],[67,30,68,30],[67,31,68,31],[67,20,68,20],[67,21,68,21],[67,22,68,22],[67,23,68,23],[67,24,68,24],[67,25,68,25],[82,29,87,29],[82,30,87,30],[82,31,87,31],[90,6,91,6],[92,6,94,6],[82,23,87,23],[82,24,87,24],[82,25,87,25],[82,26,87,26],[82,27,87,27],[82,28,87,28],[82,17,87,17],[82,18,87,18],[82,19,87,19],[82,20,87,20],[82,21,87,21],[82,22,87,22],[82,11,83,11],[82,12,83,12],[82,13,87,13],[82,14,87,14],[82,15,87,15],[82,16,87,16],[375,0,376,0],[375,1,376,1],[375,2,376,2],[375,3,376,3],[375,4,376,4],[375,5,376,5],[375,6,376,6],[95,17,97,17],[99,6,101,6],[102,6,105,6],[106,4,110,4],[106,5,110,5],[106,6,110,6],[95,4,98,4],[95,5,98,5],[95,6,98,6],[95,11,97,11],[95,13,97,13],[95,16,97,16],[375,7,376,7],[375,8,376,8],[114,1,115,1],[375,16,376,16],[375,17,376,17],[375,18,376,18],[375,19,376,19],[375,20,376,20],[375,21,376,21],[375,9,376,9],[375,11,376,11],[375,12,376,12],[375,13,376,13],[375,14,376,14],[375,15,376,15],[375,28,376,28],[375,29,376,29],[375,30,376,30],[375,31,376,31],[375,22,376,22],[375,23,376,23],[375,24,376,24],[375,25,376,25],[375,26,376,26],[375,27,376,27]]}
["DATE","COUNTRY","Minimum Strikes","Maximum strikes","TOTAL AIRSTRIKES ","AIRSTRIKE CAMPAIGN RUNNING TOTALS (CENTCOM)","TIME (AST) IRAQ/ SYRIA ","PLATFORM/WEAPON","LOCATION","LATITUDE & LONGITUDE COORDINATES ","YOUTUBE CLIP","TARGET","PURPOSE","EFFECT/OUTCOME","Minimum ISIL Camps/ Training Facilities","Maximum ISIL Camps/ Training Facilities","Minimum Oil Refineries, collection points & Stores","Maximum Oil Refineries, collection points & Stores","Minimum ISIL Command Posts, Buildings, Structures & Facilities","Maximum ISIL Command Posts, Buildings, Structures & Facilities","Minimum vehicles ","Maximum vehicles ","Minimum Weaponry","Maximum Weaponry","Minimum Mortar, Fighting Positions, Units & Observation Posts","Maximum Mortar, Fighting Positions, Units & Observation Posts","Minimum checkpoints","Maximum checkpoints","Minimum Other","Maximum Other","Minimum Total Reported Killed","Maximum Total Reported Killed","SOURCE"]
["2014-08-08","US",1,1,1,1,"13:45:00","F/A-18 aircraft dropped 500-pound laser-guided bombs","Near Erbil, Iraq","Erbil: 36.1911° N, 44.0092° E","https://www.youtube.com/watch?v=aR8jI_cerss&index=22&list=UUNEEHeS9Y2yFVLbWGeHhbYA","Mobile artillery piece ","In support of Kurdish forces defending Erbil against ISIL","1 x mobile artillery piece ","NA","NA","NA","NA","NA","NA","NA","NA",1,1,"NA","NA","NA","NA","NA","NA","NA","NA","https://www.youtube.com/watch?v=aR8jI_cerss&index=22&list=UUNEEHeS9Y2yFVLbWGeHhbYA"]
["2014-08-08","US",2,2,2,{"$f":"SUM(F2+E3)","v":3},"15:20:00","four F/A-18 Hornet","Near Erbil, Iraq","Erbil: 36.1911° N, 44.0092° E","https://www.youtube.com/watch?v=wgunE4MBDaE&index=23&list=UUNEEHeS9Y2yFVLbWGeHhbYA","A stationary ISIL convoy ","In support of Kurdish forces defending Erbil against ISIL","Struck a stationary ISIL convoy of 7 x vehicles and 1 x mortar position, neutralizing the mortar and convoy","NA","NA","NA","NA","NA","NA",7,7,"NA","NA",1,1,"NA","NA","NA","NA","NA","NA","https://www.youtube.com/watch?v=aR8jI_cerss&index=22&list=UUNEEHeS9Y2yFVLbWGeHhbYA"]
["2014-08-09","US",1,1,4,{"$f":"SUM(F3+E4)","v":7},"18:20:00","Mix of US fighters and remotely piloted aircraft ","Near Sinjar, Iraq","Sinjar: 36.3225° N, 41.8642° E","NA","1 x armoured personnel carrier (APC)","Defend Yazidi civilians being indiscriminately attacked by ISIL ","Destroyed 1 x APC","NA","NA","NA","NA","NA","NA",1,1,"NA","NA","NA","NA","NA","NA","NA","NA","NA","NA","http://www.centcom.mil/en/news/articles/u.s.-military-conducts-airstrikes-against-isil-in-iraq "]
["2014-08-09","US",1,1,null,null,"18:40:00","Mix of US fighters and remotely piloted aircraft ","Near Sinjar, Iraq","Sinjar: 36.3225° N, 41.8642° E","NA","2 x APCs, 1 x armed truck","Defend Yazidi civilians being indiscriminately attacked by ISIL ","Destroyed 1 x APC, 1 x armed truck","NA","NA","NA","NA","NA","NA",2,2,"NA","NA","NA","NA","NA","NA","NA","NA","NA","NA","http://www.centcom.mil/en/news/articles/u.s.-military-conducts-airstrikes-against-isil-in-iraq "]
["2014-08-09","US",1,1,null,null,"18:40:00","Mix of US fighters and remotely piloted aircraft ","Near Sinjar, Iraq","Sinjar: 36.3225° N, 41.8642° E","NA","1 x APC (follow up strike)","Defend Yazidi civilians being indiscriminately attacked by ISIL ","Destroyed 1 x APC","NA","NA","NA","NA","NA","NA",1,1,"NA","NA","NA","NA","NA","NA","NA","NA","NA","NA","http://www.centcom.mil/en/news/articles/u.s.-military-conducts-airstrikes-against-isil-in-iraq "]
["2014-08-09","US",1,1,null,null,"22:00:00","Mix of US fighters and remotely piloted aircraft ","Near Sinjar, Iraq","Sinjar: 36.3225° N, 41.8642° E","NA","1 x APC","Defend Yazidi civilians being indiscriminately attacked by ISIL ","Destroyed 1 x APC","NA","NA","NA","NA","NA","NA",1,1,"NA","NA","NA","NA","NA","NA","NA","NA","NA","NA","http://www.centcom.mil/en/news/articles/u.s.-military-conducts-airstrikes-against-isil-in-iraq "]
["2014-08-10","US",1,1,5,{"$f":"SUM(F4+E8)","v":12},"09:15:00","Mix of US fighters and remotely piloted aircraft ","Near Erbil, Iraq","Erbil: 36.1911° N, 44.0092° E","NA","1 x armed truck","Defend Kurdish forces near Erbil, where US personnel and citizens are located","Destroyed 1 x armed truck","NA","NA","NA","NA","NA","NA",1,1,"NA","NA","NA","NA","NA","NA","NA","NA","NA","NA","http://www.centcom.mil/en/news/articles/u.s.-military-conducts-airstrikes-against-isil-near-Erbil"]
["2014-08-10","US",1,1,null,null,"09:45:00","Mix of US fighters and remotely piloted aircraft ","Near Erbil, Iraq","Erbil: 36.1911° N, 44.0092° E","NA","1 x armed truck","Defend Kurdish forces near Erbil, where US personnel and citizens are located","Destroyed 1 x armed truck","NA","NA","NA","NA","NA","NA",1,1,"NA","NA","NA","NA","NA","NA","NA","NA","NA","NA","http://www.centcom.mil/en/news/articles/u.s.-military-conducts-airstrikes-against-isil-near-Erbil"]
["2014-08-10","US",1,1,null,null,"10:40:00","Mix of US fighters and remotely piloted aircraft ","Near Erbil, Iraq","Erbil: 36.1911° N, 44.0092° E","NA","1 x mortar position, 1 x armed truck","Defend Kurdish forces near Erbil, where US personnel and citizens are located","Destroyed 1 x mortar position; damaged 1 x armed truck","NA","NA","NA","NA","NA","NA",1,1,"NA","NA",1,1,"NA","NA","NA","NA","NA","NA","http://www.centcom.mil/en/news/articles/u.s.-military-conducts-airstrikes-against-isil-near-Erbil"]
["2014-08-10","US",1,1,null,null,"12:45:00","Mix of US fighters and remotely piloted aircraft ","Near Erbil, Iraq","Erbil: 36.1911° N, 44.0092° E","NA","1 x armed truck","Defend Kurdish forces near Erbil, where US personnel and citizens are located","Destroyed 1 x armed truck","NA","NA","NA","NA","NA","NA",1,1,"NA","NA","NA","NA","NA","NA","NA","NA","NA","NA","http://www.centcom.mil/en/news/articles/u.s.-military-conducts-airstrikes-against-isil-near-Erbil"]
["2014-08-10","US",1,1,null,null,"14:25:00","Mix of US fighters and remotely piloted aircraft ","Near Erbil, Iraq","Erbil: 36.1911° N, 44.0092° E","NA","1 x armed vehicle","Defend Kurdish forces near Erbil, where US personnel and citizens are located","Damaged 1 x armed vehicle","NA","NA","NA","NA","NA","NA",1,1,"NA","NA","NA","NA","NA","NA","NA","NA","NA","NA","http://www.centcom.mil/en/news/articles/u.s.-military-conducts-airstrikes-against-isil-near-Erbil"]
["2014-08-11","US",1,1,1,{"$f":"SUM(F8+E13+E14+E15+E16+E17+E18+E19)","v":19},"23:00:00","Multiple U.S. fighter aircraft ","Near Erbil, Iraq","Erbil: 36.1911° N, 44.0092° E","NA","ISIL convoy ","Defend Kurdish forces near Erbil, where US personnel and citizens are located","Destroyed several vehicles ","NA","NA","NA","NA","NA","NA","> 2","NA","NA","NA","NA","NA","NA","NA","NA","NA","NA","NA","http://www.centcom.mil/en/news/articles/u.s.-military-conducts-airstrikes-against-isil-near-Erbil-11-aug-14"]
["2014-08-11","US",1,1,1,null,"20:10:00","U.S. fighter aircraft ","Southwest of Sinjar Mountain, Iraq","Sinjar Mountain: 36.3667° N,  41.7218° E","NA","ISIL checkpoint ","Defense of internally displaced Yazidi civilians","Destroyed 1 x ISIL checkpoint southwest of Sinjar Mountain","NA","NA","NA","NA","NA","NA","NA","NA","NA","NA","NA","NA",1,1,"NA","NA","NA","NA","http://www.centcom.mil/en/news/articles/aug-11-u.s.-military-conducts-airstrikes-against-isil-near-sinjar"]
["2014-08-11","US",1,1,1,null,"20:10:00","U.S. fighter aircraft ","Southwest of Sinjar Mountain, Iraq","Sinjar Mountain: 36.3667° N,  41.7218° E","NA","1 x APC, 1 x armed truck","Defense of internally displaced Yazidi civilians","Destroyed 1 x APC, 1 x armed truck","NA","NA","NA","NA","NA","NA",2,2,"NA","NA","NA","NA","NA","NA","NA","NA","NA","NA","http://www.centcom.mil/en/news/articles/aug-11-u.s.-military-conducts-airstrikes-against-isil-near-sinjar"]
["2014-08-11","US",1,1,1,null,"21:05:00","U.S. fighter aircraft ","South of Sinjar, Iraq","Sinjar: 36.3225° N, 41.8642° E","NA","ISIL checkpoint ","Defense of internally displaced Yazidi civilians","Destroyed 1 x ISIL checkpoint ","NA","NA","NA","NA","NA","NA","NA","NA","NA","NA","NA","NA",1,1,"NA","NA","NA","NA","http://www.centcom.mil/en/news/articles/aug-11-u.s.-military-conducts-airstrikes-against-isil-near-sinjar"]
["2014-08-11","US",1,1,1,null,"21:05:00","U.S. fighter aircraft ","South of Sinjar, Iraq","Sinjar: 36.3225° N, 41.8642° E","NA","1 x High-Mobility Multipurpose Wheeled Vehicle, 1 x armed truck","Defense of internally displaced Yazidi civilians","Destroyed 1 x High-Mobility Multipurpose Wheeled Vehicle, 1 x armed truck","NA","NA","NA","NA","NA","NA",2,2,"NA","NA","NA","NA","NA","NA","NA","NA","NA","NA","http://www.centcom.mil/en/news/articles/aug-11-u.s.-military-conducts-airstrikes-against-isil-near-sinjar"]
["2014-08-11","US",1,1,1,null,"22:30:00","U.S. fighter aircraft ","Southeast of Sinjar, Iraq","Sinjar: 36.3225° N, 41.8642° E","NA","ISIL checkpoint ","Defense of internally displaced Yazidi civilians","Damaged 1 x ISIL checkpoint ","NA","NA","NA","NA","NA","NA","NA","NA","NA","NA","NA","NA",1,1,"NA","NA","NA","NA","http://www.centcom.mil/en/news/articles/aug-11-u.s.-military-conducts-airstrikes-against-isil-near-sinjar"]
["2014-08-11","US",1,1,1,null,"23:30:00","U.S. fighter aircraft ","East of Sinjar, Iraq","Sinjar: 36.3225° N, 41.8642° E","NA","ISIL checkpoint ","Defense of internally displaced Yazidi civilians","Destroyed 1 x ISIL checkpoint, 1 x armed truck. ","NA","NA","NA","NA","NA","NA",1,1,"NA","NA","NA","NA",1,1,"NA","NA","NA","NA","http://www.centcom.mil/en/news/articles/aug-11-u.s.-military-conducts-airstrikes-against-isil-near-sinjar"]
["2014-08-12","US",1,1,1,{"$f":"SUM(F13+E20)","v":20},"14:55:00","U.S. remotely piloted aircraft ","North of Sinjar, Iraq","Sinjar: 36.3225° N, 41.8642° E","NA","ISIL mortar position ","Defend Kurdish forces  defending internally displaced Yazidi civilians ","Destroyed 1 x ISIL mortar position ","NA","NA","NA","NA","NA","NA","NA","NA","NA","NA",1,1,"NA","NA","NA","NA","NA","NA","http://www.centcom.mil/en/news/articles/aug.-12-u.s.-military-conducts-airstrike-against-isil-north-of-sinjar"]
["2014-08-13","US",1,1,1,{"$f":"SUM(F20+E21)","v":21},"19:20:00","U.S. remotely piloted aircraft ","West of Sinjar, Iraq","Sinjar: 36.3225° N, 41.8642° E","NA","1 x armed truck","Engage ISIL terrorists in Iraq ","Destroyed 1 x armed truck","NA","NA","NA","NA","NA","NA",1,1,"NA","NA","NA","NA","NA","NA","NA","NA","NA","NA","http://www.centcom.mil/en/news/articles/u.s.-military-conducts-airstrike-against-isil-west-of-sinjar"]
["2014-08-14","US",1,1,1,{"$f":"SUM(F21+E22+E23+E24+E25)","v":25},"18:05:00","Mix of fighter and remotely piloted aircraft ","Northwest of Erbil, Iraq","Erbil: 36.1911° N, 44.0092° E","NA","ISIL Strongholds Northwest of Erbil, Iraq","Defend Kurdish forces","Destroyed 1 x armed vehicle","NA","NA","NA","NA","NA","NA",1,1,"NA","NA","NA","NA","NA","NA","NA","NA","NA","NA","http://www.centcom.mil/en/news/articles/u.s.-military-conducts-airstrike-against-isil-northeast-of-Erbil"]
["2014-08-14","US",1,1,1,null,"18:07:00","Mix of fighter and remotely piloted aircraft ","Northwest of Erbil, Iraq","Erbil: 36.1911° N, 44.0092° E","NA","ISIL Strongholds Northwest of Erbil, Iraq","Defend Kurdish forces","Destroyed 1 x armed vehicle","NA","NA","NA","NA","NA","NA",1,1,"NA","NA","NA","NA","NA","NA","NA","NA","NA","NA","http://www.centcom.mil/en/news/articles/u.s.-military-conducts-airstrike-against-isil-northeast-of-Erbil"]
["2014-08-14","US",1,1,1,null,"18:40:00","Mix of fighter and remotely piloted aircraft ","Northwest of Erbil, Iraq","Erbil: 36.1911° N, 44.0092° E","NA","ISIL Strongholds Northwest of Erbil, Iraq","Defend Kurdish forces","Struck  1 x  mine-resistant ambush-protected (MRAP) vehicle ","NA","NA","NA","NA","NA","NA",0,0,"NA","NA","NA","NA","NA","NA","NA","NA","NA","NA","http://www.centcom.mil/en/news/articles/u.s.-military-conducts-airstrike-against-isil-northeast-of-Erbil"]
["2014-08-14","US",1,1,1,null,"19:55:00","Mix of fighter and remotely piloted aircraft ","Northwest of Erbil, Iraq","Erbil: 36.1911° N, 44.0092° E","NA","ISIL Strongholds Northwest of Erbil, Iraq","Defend Kurdish forces","Returned and destroyed 1 x mine-resistant ambush-protected (MRAP) vehicle ","NA","NA","NA","NA","NA","NA",1,1,"NA","NA","NA","NA","NA","NA","NA","NA","NA","NA","http://www.centcom.mil/en/news/articles/u.s.-military-conducts-airstrike-against-isil-northeast-of-Erbil"]
["2014-08-15","US",1,1,1,{"$f":"SUM(F22+E26)","v":26},"17:10:00","U.S. remotely piloted aircraft ","South of Sinjar, Iraq","Sinjar: 36.3225° N, 41.8642° E","NA","2 x armed vehicles","In defence of the village of Kawju","Destroyed 2 x armed vehicle","NA","NA","NA","NA","NA","NA",2,2,"NA","NA","NA","NA","NA","NA","NA","NA","NA","NA","http://www.centcom.mil/en/news/articles/aug.-15-u.s.-military-conducts-airstrikes-against-isil-near-sinjar"]
["2014-08-16","US",1,"≤7",9,{"$f":"F26+E27","v":35},"NA","Mix of fighter and remotely piloted aircraft ","Near Erbil, Iraq","Erbil: 36.1911° N, 44.0092° E","NA","ISIL Strongholds near Erbil and the Mosul Dam.","To support humanitarian efforts & protect U.S. personnel and facilities.","Destroyed or damaged 4 x APCs, 7 x armed vehicles, 2 x Humvees, 1 x armored vehicle.","NA","NA","NA","NA","NA","NA",14,14,"NA","NA","NA","NA","NA","NA","NA","NA","NA","NA","http://www.centcom.mil/en/news/articles/us-military-conducts-airstrikes-against-isil-near-Erbil-the-mosul-dam"]
["2014-08-16","US",1,"≤7",null,null,"NA","Mix of fighter and remotely piloted aircraft ","Near Mosul Dam, Iraq.","Mosul Dam: 36.6303° N, 42.8231° E","https://www.youtube.com/watch?v=c5_Bh1sqMPw&list=UUNEEHeS9Y2yFVLbWGeHhbYA&index=18","ISIL Strongholds near Erbil and the Mosul Dam.","To support humanitarian efforts & protect U.S. personnel and facilities.",null,null,null,null,null,null,null,null,null,null,null,null,null,null,null,null,null,null,null,"http://www.centcom.mil/en/news/articles/us-military-conducts-airstrikes-against-isil-near-Erbil-the-mosul-dam"]
["2014-08-16","US",1,"≤7",null,null,null,"Mix of fighter and remotely piloted aircraft ","Near Mosul Dam, Iraq.","Mosul Dam: 36.6303° N, 42.8231° E","https://www.youtube.com/watch?v=EHPvs-eo55w&list=UUNEEHeS9Y2yFVLbWGeHhbYA&index=19","ISIL Strongholds near Erbil and the Mosul Dam.","To support humanitarian efforts & protect U.S. personnel and facilities.",null,null,null,null,null,null,null,null,null,null,null,null,null,null,null,null,null,null,null,"http://www.centcom.mil/en/news/articles/us-military-conducts-airstrikes-against-isil-near-Erbil-the-mosul-dam"]
["2014-08-17","US",14,14,14,{"$f":"F27+E30","v":49},"NA","Mix of fighter, bomber, attack and remotely piloted aircraft ","Near the Mosul Dam, Iraq.","Mosul Dam: 36.6303° N, 42.8231° E","NA","ISIL Strongholds near Mosul Dam.","To support humanitarian efforts,  to protect critical infrastructure, U.S. personnel and facilities, and support Iraqi security forces and Kurdish defense forces.","Damaged or destroyed 10 x armed vehicles, 7 x Humvees, 2 x armored personnel carriers, 1 x checkpoint.","NA","NA","NA","NA","NA","NA",19,19,"NA","NA","NA","NA",1,1,"NA","NA","NA","NA","http://www.centcom.mil/en/news/articles/aug.-17-u.s.-military-conducts-airstrikes-against-isil-near-the-mosul-dam"]
["2014-08-17","US",1,">1",1,{"$f":"SUM(F30+E31)","v":50},"NA","Mix of fighter and attack aircraft ","Near the Mosul Dam, Iraq.","Mosul Dam: 36.6303° N, 42.8231° E","NA","ISIL Strongholds near Mosul Dam.","To support humanitarian efforts,  to protect critical infrastructure, U.S. personnel and facilities, and support Iraqi security forces and Kurdish defense forces.","Destroyed 3 x armed vehicles, 1 x vehicle-mounted anti-aircraft artillery gun, 1 x checkpoint, 1 x IED emplacement.","NA","NA","NA","NA",1,1,3,3,1,1,"NA","NA",1,1,"NA","NA","NA","NA","http://www.centcom.mil/en/news/articles/aug.-17-u.s.-military-conducts-airstrikes-against-isil-near-the-mosul-dam2"]
["2014-08-18","US",1," ≤14",15,{"$f":"SUM(F31+E32)","v":65},"NA","Mix of  US fighter, bomber, and remotely piloted aircraft ","Near the Mosul Dam, Iraq.","Mosul Dam: 36.6303° N, 42.8231° E","https://www.youtube.com/watch?v=M1FlcbDEslM&index=17&list=UUNEEHeS9Y2yFVLbWGeHhbYA","ISIL Strongholds near Mosul Dam.","To support humanitarian efforts,  to protect critical infrastructure, U.S. personnel and facilities, and support Iraqi security forces and Kurdish defense forces.","Damaged or destroyed 9 x fighting positions; 1 x checkpoint;  6 x armed vehicles; 1 x light armored vehicle; 1 x ISIL vehicle-mounted anti-aircraft artillery gun, 1 x IED emplacement belt.","NA","NA","NA","NA",1,1,7,7,1,1,9,9,1,1,"NA","NA","NA","NA","http://www.centcom.mil/en/news/articles/aug.-18-u.s.-military-conducts-airstrikes-against-isil-near-the-mosul-dam"]
["2014-08-18","US",1,"≤14",null,null,"NA","Mix of  US fighter, bomber, and remotely piloted aircraft ","Near the Mosul Dam, Iraq.","Mosul Dam: 36.6303° N, 42.8231° E","https://www.youtube.com/watch?v=OQdjrotXZMU&list=UUNEEHeS9Y2yFVLbWGeHhbYA&index=16","ISIL Strongholds near Mosul Dam.","To support humanitarian efforts,  to protect critical infrastructure, U.S. personnel and facilities, and support Iraqi security forces and Kurdish defense forces.",null,"NA","NA","NA","NA",null,null,null,null,null,null,null,null,null,null,"NA","NA","NA","NA","http://www.centcom.mil/en/news/articles/aug.-18-u.s.-military-conducts-airstrikes-against-isil-near-the-mosul-dam"]
["2014-08-19","US",1,1,1,{"$f":"SUM(F32+E34)","v":66},"NA","US fighter aircraft ","Near the Mosul Dam, Iraq.","Mosul Dam: 36.6303° N, 42.8231° E","NA","1 x  ISIL checkpoint","To support humanitarian efforts,  to protect critical infrastructure, U.S. personnel and facilities, and support Iraqi security forces and Kurdish defense forces.","Not successful in destroying ISIL checkpoint","NA","NA","NA","NA","NA","NA",0,0,"NA","NA","NA","NA","NA","NA","NA","NA","NA","NA","http://www.centcom.mil/en/news/articles/u.s.-military-conducts-airstrikes-against-isil-near-mosul-dam"]
["2014-08-19","US",1,1,1,{"$f":"F34+E35","v":67},"NA","US fighter aircraft ","Near the Mosul Dam, Iraq.","Mosul Dam: 36.6303° N, 42.8231° E","NA","1 x  ISIL checkpoint","To support humanitarian efforts,  to protect critical infrastructure, U.S. personnel and facilities, and support Iraqi security forces and Kurdish defense forces.","Destroyed 1 x ISIL checkpoint","NA","NA","NA","NA","NA","NA","NA","NA","NA","NA","NA","NA",1,1,"NA","NA","NA","NA","http://www.centcom.mil/en/news/articles/u.s.-military-conducts-airstrikes-against-isil-near-mosul-dam"]
["2014-08-20","US",14,14,14,{"$f":"F35+E36","v":81},"NA","Mix of US fighter, remotely piloted and attack aircraft  ","Near the Mosul Dam, Iraq.","Mosul Dam: 36.6303° N, 42.8231° E","NA","ISIL Strongholds near Mosul Dam.","To support humanitarian efforts,  to protect critical infrastructure, U.S. personnel and facilities, and support Iraqi security forces and Kurdish defense forces.","Destroyed or damaged 6 x  Humvees, 3x  IED emplacements, 1 x  mortar tube, 2 x armed trucks.","NA","NA","NA","NA",3,3,8,8,1,1,"NA","NA","NA","NA","NA","NA","NA","NA","http://www.centcom.mil/en/news/articles/aug.-20-u.s.-military-conducts-airstrikes-against-isil-near-mosul-dam"]
["2014-08-21","US",6,6,6,87,"NA","Mix of fighter and attack aircraft ","Near the Mosul Dam, Iraq.","Mosul Dam: 36.6303° N, 42.8231° E","NA","ISIL Strongholds near Mosul Dam.","To support humanitarian efforts,  to protect critical infrastructure, U.S. personnel and facilities, and support Iraqi security forces and Kurdish defense forces.","Destroyed or damaged 3 x Humvees, 1 x vehicle, and multiple IED emplacements. ","NA","NA","NA","NA",">2","NA",4,4,"NA","NA","NA","NA","NA","NA","NA","NA","NA","NA","http://www.centcom.mil/en/news/articles/aug.-21-u.s.-military-conducts-airstrikes-against-isil-near-mosul-dam"]
["2014-08-22","US",3,3,3,90,"NA","Mix of fighter and attack aircraft ","Near the Mosul Dam, Iraq.","Mosul Dam: 36.6303° N, 42.8231° E","NA","ISIL Strongholds near Mosul Dam.","To support Iraqi security forces beign fired on by ISIL.","Destroyed 2 x armed vehicles, 1 x machine gun emplacement.","NA","NA","NA","NA",1,1,2,2,"NA","NA","NA","NA","NA","NA","NA","NA","NA","NA","http://www.centcom.mil/en/news/articles/aug.-22-u.s.-military-conducts-airstrikes-against-isil-near-mosul-dam"]
["2014-08-23","US",1,1,1,91,"NA","US fighter aircraft ","Near Mosul Dam, Iraq.","Mosul Dam: 36.6303° N, 42.8231° E","NA","ISIL Strongholds near Mosul Dam.","To support humanitarian efforts,  to protect critical infrastructure, U.S. personnel and facilities, and support Iraqi security forces and Kurdish defense forces.","Destroyed 1x vehicle","NA","NA","NA","NA","NA","NA",1,1,"NA","NA","NA","NA","NA","NA","NA","NA","NA","NA","http://www.centcom.mil/en/news/articles/aug.-22-u.s.-military-conducts-airstrikes-against-isil-near-mosul-dam"]
["2014-08-24","US",1,1,1,92,"NA","Mix of attack and remotely-piloted aircraft ","Near Mosul Dam, Iraq.","Mosul Dam: 36.6303° N, 42.8231° E","NA","ISIL Strongholds near Mosul Dam.","To support humanitarian efforts,  to protect critical infrastructure, U.S. personnel and facilities, and support Iraqi security forces and Kurdish defense forces.","Destroyed 1 x humvee ","NA","NA","NA","NA","NA","NA",1,1,"NA","NA","NA","NA","NA","NA","NA","NA","NA","NA","http://www.centcom.mil/en/news/articles/aug.-23-u.s.-military-conducts-airstrike-against-isil-near-mosul-dam"]
["2014-08-24","US",1,1,1,93,"NA","Mix of attack and remotely-piloted aircraft ","Near Erbil, Iraq","Erbil: 36.1911° N, 44.0092° E","NA","ISIL Strongholds near Erbil","To support humanitarian efforts,  to protect critical infrastructure, U.S. personnel and facilities, and support Iraqi security forces and Kurdish defense forces.","Destroyed 1 x  armed vehicle","NA","NA","NA","NA","NA","NA",1,1,"NA","NA","NA","NA","NA","NA","NA","NA","NA","NA","http://www.centcom.mil/en/news/articles/aug-24-us-military-conducts-airstrikes-against-isil-near-Erbil-and-mosul"]
["2014-08-26","US",1,1,1,94,"NA","US attack aircraft ","Near Erbil, Iraq","Erbil: 36.1911° N, 44.0092° E","NA","ISIL Strongholds near Erbil","To support humanitarian efforts,  to protect critical infrastructure, U.S. personnel and facilities, and support Iraqi security forces and Kurdish defense forces.","Destroyed 2 x armed vehicles and damaged 1 x armed vehicle","NA","NA","NA","NA","NA","NA",3,3,"NA","NA","NA","NA","NA","NA","NA","NA","NA","NA","http://www.centcom.mil/en/news/articles/aug-26-u.s.-military-conducts-airstrikes-against-isil-near-Erbil"]
["2014-08-26","US",1,1,1,95,"NA","US attack aircraft ","Near Erbil, Iraq","Erbil: 36.1911° N, 44.0092° E","NA","ISIL Strongholds near Erbil","To support humanitarian efforts,  to protect critical infrastructure, U.S. personnel and facilities, and support Iraqi security forces and Kurdish defense forces.",null,null,null,null,null,null,null,null,null,null,null,null,null,null,null,null,null,null,null,"http://www.centcom.mil/en/news/articles/aug-26-u.s.-military-conducts-airstrikes-against-isil-near-Erbil"]
["2014-08-27","US",1,"≤2",3,{"$f":"F43+E44","v":98},"NA","Mix of fighter, attack, and remotely piloted aircraft ","Near Erbil, Iraq","Erbil: 36.1911° N, 44.0092° E","NA","ISIL strongholds near Erbil","To support humanitarian efforts,  to protect critical infrastructure, U.S. personnel and facilities, and support Iraqi security forces and Kurdish defense forces.","Destroyed 1 x  Humvee, 1 x supply truck, 3 x armored vehicles, severely damaged 1 x ISIL building.","NA","NA","NA","NA",1,1,5,5,"NA","NA","NA","NA","NA","NA","NA","NA","NA","NA","http://www.centcom.mil/en/news/articles/aug-27-u.s.-military-conducts-airstrikes-against-isil-near-Erbil-and-mosul"]
["2014-08-27","US",1,"≤2",null,null,"NA","Mix of fighter, attack, and remotely piloted aircraft ","Near Mosul Dam, Iraq.","Mosul Dam: 36.6303° N, 42.8231° E","NA","ISIL strongholds nearMosul Dam","To support humanitarian efforts,  to protect critical infrastructure, U.S. personnel and facilities, and support Iraqi security forces and Kurdish defense forces.",null,null,null,null,null,null,null,null,null,null,null,null,null,null,null,null,null,null,null,"http://www.centcom.mil/en/news/articles/aug-27-u.s.-military-conducts-airstrikes-against-isil-near-Erbil-and-mosul"]
["2014-08-28","US",5,5,5,{"$f":"F44+E46","v":103},"NA","US fighter aircraft ","Near Mosul Dam, Iraq.","Mosul Dam: 36.6303° N, 42.8231° E","NA","ISIL strongholds near Mosul Dam.","To support humanitarian efforts,  to protect critical infrastructure, U.S. personnel and facilities, and support Iraqi security forces and Kurdish defense forces.","Destroyed 1 x Humvee, 1 x tank, 4 x armed vehicles, 1 x  ISIL construction vehicle and severely damaged 1 x ISIL checkpoint.","NA","NA","NA","NA","NA","NA",7,7,"NA","NA","NA","NA",1,1,"NA","NA","NA","NA","http://www.centcom.mil/en/news/articles/aug-28-u.s.-military-conducts-airstrikes-against-isil-near-mosul-dam"]
["2014-08-29","US",4,4,4,{"$f":"SUM(F46+E47)","v":107},"NA","US fighter and attack aircraft","Near Mosul Dam, Iraq.","Mosul Dam: 36.6303° N, 42.8231° E","NA","ISIL strongholds near Mosul Dam.","To support humanitarian efforts,  to protect critical infrastructure, U.S. personnel and facilities, and support Iraqi security forces and Kurdish defense forces.","Destroyed 4 x armed vehicles, severely damaged 1 x armed vehicle, and destroyed 3 x support vehicles.","NA","NA","NA","NA","NA","NA",8,8,"NA","NA","NA","NA","NA","NA","NA","NA","NA","NA","http://www.centcom.mil/en/news/articles/aug-29-u.s.-military-conducts-airstrikes-against-isil-near-mosul-dam"]
["2014-08-30","US",5,5,5,{"$f":"SUM(F47+E48)","v":112},"NA","US fighter and remotely-piloted aircraft ","Near Mosul Dam, Iraq.","Mosul Dam: 36.6303° N, 42.8231° E","NA","ISIL strongholds near Mosul Dam.","To support humanitarian efforts,  to protect critical infrastructure, U.S. personnel and facilities, and support Iraqi security forces and Kurdish defense forces.","Destroyed 1 x armed vehicle, 1 x fighting position, 1 x ISIL weapons, and significantly damaged 1 x ISIL building.","NA","NA","NA","NA",1,1,1,1,1,1,1,1,null,null,"NA","NA","NA","NA","http://www.centcom.mil/en/news/articles/aug-30-u.s.-military-conducts-airstrikes-against-isil-near-mosul-dam"]
["2014-08-30","US",3,3,3,115,"03:30:00","US fighter aircraft ","Near Amirli, Iraq","Amirli: 34.7250° N, 44.5875° E ","NA","ISIL bloackade near Amirli","At the request of the Government of Iraq, conducted airstrikes in support of an operation to deliver humanitarian assistance and protect civilians trapped in Amirli, Iraq.","Destroyed 3 x ISIL Humvees, 1 x ISIL armed vehicle, 1 x ISIL checkpoint and 1 x ISIL tank.","NA","NA","NA","NA","NA","NA",5,5,"NA","NA","NA","NA",1,1,"NA","NA","NA","NA","http://www.centcom.mil/en/news/articles/us-military-conducts-airstrikes-against-isil-airdrops-humanitarian-aid-iraq"]
["2014-08-31","US",1,1,1,116,"NA","US fighter and attack aircraft","Near Mosul Dam, Iraq.","Mosul Dam: 36.6303° N, 42.8231° E","NA","ISIL strongholds near Mosul Dam.","At the request of the Government of Iraq, conducted airstrikes in support of an operation to deliver humanitarian assistance and protect civilians trapped in Amirli, Iraq &  under authority to protect U.S. personnel and facilities, support humanitarian efforts, and support Iraqi forces that are acting in furtherance of these objectives.","Destroyed 1 x armed vehicle","NA","NA","NA","NA","NA","NA",1,1,"NA","NA","NA","NA","NA","NA","NA","NA","NA","NA","http://www.centcom.mil/en/news/articles/u.s.-military-conducts-airstrikes-against-isil-near-amirli-and-mosul-dam"]
["2014-08-31","US",1,1,1,117,"NA","US fighter and attack aircraft","Near Amirli, Iraq","Amirli: 34.7250° N, 44.5875° E ","NA","ISIL bloackade near Amirli","The strikes were conducted under authority to protect U.S. personnel and facilities, support humanitarian efforts, and support Iraqi forces that are acting in furtherance of these objectives.","Damaged  1 x ISIL tank","NA","NA","NA","NA","NA","NA",1,1,"NA","NA","NA","NA","NA","NA","NA","NA","NA","NA"]
["2014-09-02","US",1,1,1,118,"NA","US fighter and attack aircraft","Near Mosul Dam, Iraq.","Mosul Dam: 36.6303° N, 42.8231° E","NA","ISIL strongholds near Mosul Dam.","Conducted under authority to protect U.S. personnel and facilities, support humanitarian efforts, and support Iraqi forces that are acting in furtherance of these objectives.","Destroyed or damaged 16 x ISIL armed vehicles","NA","NA","NA","NA","NA","NA",16,16,"NA","NA","NA","NA","NA","NA","NA","NA","NA","NA","http://www.centcom.mil/en/news/articles/u.s.-military-conducts-airstrike-against-isil-near-the-mosul-dam"]
["3/09/2014 -4/09/2014","US",1,"≤2",3,{"$f":"F52+E53","v":121},"NA","US fighter aircraft ","Near Mosul Dam, Iraq.","Mosul Dam: 36.6303° N, 42.8231° E","NA","ISIL strongholds near Mosul Dam.","Conducted under authority to protect U.S. personnel and facilities, support humanitarian efforts, and support Iraqi forces that are acting in furtherance of these objectives.","Destroyed 2 x ISIL armed vehicles and 1 x ISIL observation post","NA","NA","NA","NA","NA","NA",2,2,"NA","NA",1,1,"NA","NA","NA","NA","NA","NA","http://www.centcom.mil/en/news/articles/sept.-4-u.s.-military-conducts-airstrikes-against-isil-in-support-of-mosul"]
["3/09/2014 -4/09/2014","US",1,"≤2",null,null,"NA","US fighter aircraft ","Near Mosul Dam, Iraq.","Mosul Dam: 36.6303° N, 42.8231° E","NA","ISIL strongholds near Mosul Dam.","Conducted under authority to protect U.S. personnel and facilities, support humanitarian efforts, and support Iraqi forces that are acting in furtherance of these objectives.",null,null,null,null,null,null,null,null,null,null,null,null,null,null,null,null,null,null,null,"http://www.centcom.mil/en/news/articles/sept.-4-u.s.-military-conducts-airstrikes-against-isil-in-support-of-mosul"]
["4/09/2014 -5/09/2014","US",1,"≤3",4,{"$f":"F53+E55","v":125},"NA","Mix of US fighter, attack, bomber and unmanned aircraft","Near Mosul Dam and Erbil, Iraq.","Mosul Dam: 36.6303° N, 42.8231° E","NA","ISIL strongholds near Mosul Dam.","Conducted under authority to protect U.S. personnel and facilities, support humanitarian efforts, and support Iraqi forces that are acting in furtherance of these objectives.","Destroyed 1 x ISIL observation post, 1 x ISIL Humvee, 1 x ISIL armed vehicle, 1 x ISIL truck, and 3 x ISIL mortar positions.","NA","NA","NA","NA","NA","NA",3,3,"NA","NA",4,4,"NA","NA","NA","NA","NA","NA","http://www.centcom.mil/en/news/articles/sept.-5-u.s.-military-conducts-airstrikes-against-isil"]
["4/09/2014 -5/09/2014","US",1,"≤3",null,null,null,"Mix of US fighter, attack, bomber and unmanned aircraft","Near Mosul Dam and Erbil, Iraq.","Erbil: 36.1911° N, 44.0092° E","NA","ISIL strongholds near Erbil","Conducted under authority to protect U.S. personnel and facilities, support humanitarian efforts, and support Iraqi forces that are acting in furtherance of these objectives.",null,null,null,null,null,null,null,null,null,null,null,null,null,null,null,null,null,null,null,"http://www.centcom.mil/en/news/articles/sept.-5-u.s.-military-conducts-airstrikes-against-isil"]
["5/09/2014 - 6/09/2014","US",1,1,2,{"$f":"F55+E57","v":127},"NA","Mix of US attack, fighter and remotely piloted aircraft ","Near Erbil, Iraq","Erbil: 36.1911° N, 44.0092° E","NA","ISIL strongholds near Erbil","Conducted under authority to protect U.S. personnel and facilities, support humanitarian efforts, and support Iraqi forces that are acting in furtherance of these objectives.","Destroyed 4 x ISIL Humvees, 1 x ISIL armored personnel carrier, 2 x ISIL trucks (one of which carried 1 x mounted machine gun). 1 x ISIL Humvee and 1 x ISIL truck were damaged in the strikes. ","NA","NA","NA","NA","NA","NA",9,9,1,1,"NA","NA","NA","NA","NA","NA","NA","NA","http://www.centcom.mil/en/news/articles/sept.-6-u.s.-military-conducts-airstrikes-in-support-of-defense-of-irbil"]
["5/09/2014 - 6/09/2014","US",1,1,null,null,"NA","Mix of US attack, fighter and remotely piloted aircraft ","Near Erbil, Iraq","Erbil: 36.1911° N, 44.0092° E","NA","ISIL strongholds near Erbil","Conducted under authority to protect U.S. personnel and facilities, support humanitarian efforts, and support Iraqi forces that are acting in furtherance of these objectives.",null,null,null,null,null,null,null,null,null,null,null,null,null,null,null,null,null,null,null,"http://www.centcom.mil/en/news/articles/sept.-6-u.s.-military-conducts-airstrikes-in-support-of-defense-of-irbil"]
["2014-09-06","US",4,4,4,{"$f":"F57+E59","v":131},"NA","Mix of US fighter and bomber aircraft ","Haditha Dam in Anbar province, Iraq","Haditha Dam: 34.2069° N, 42.3550° E","NA","ISIL strongholds near Haditha in Anbar province ","At the request of the government of Iraq, U.S. military forces attacked ISIL terrorists near Haditha in Anbar province in support of Iraqi security forces and Sunni tribes protecting the Haditha dam.","Destroyed 5 x ISIL Humvees, 1 x ISIL armed vehicle, 1 x ISIL checkpoint. Damaged 1 x ISIL bunker","NA","NA","NA","NA",1,1,6,6,"NA","NA","NA","NA",1,1,"NA","NA","NA","NA","http://www.centcom.mil/en/news/articles/07-us-military-conducts-airstrikes-against-isil-in-support-of-haditha-dam"]
["2014-09-06","US",1,1,1,{"$f":"F59+E60","v":132},"NA","Mix of US  fighter and bomber aircraft","Near Mosul Dam ","Mosul Dam: 36.6303° N, 42.8231° E","NA","ISIL strongholds near Mosul Dam.","At the request of the government of Iraq and in support of Iraqi security forces protecting Mosul Dam. ","Damaged 1 x ISIL Humvee. ","NA","NA","NA","NA","NA","NA",1,1,"NA","NA","NA","NA","NA","NA","NA","NA","NA","NA"]
["7/09/2014 - 8/09/2014","US",4,4,4,{"$f":"F60+E61","v":136},"NA","Mix of US attack, fighter and remotely piloted aircraft ","Haditha Dam Anbar province, Iraq","Haditha Dam: 34.2069° N, 42.3550° E","NA","ISIL strongholds near Haditha in Anbar province ","In support of Iraqi Security Forces and Sunni tribes protecting the Haditha Dam","Destroyed 3 x ISIL armed vehicles (1 x of which was carrying anti-aircraft artillery), 1 x large ISIL ground unit near the Haditha Dam","NA","NA","NA","NA","NA","NA",3,3,">2","NA",1,1,"NA","NA","NA","NA","NA","NA","http://www.centcom.mil/en/news/articles/sept.8-u.s.-military-conducts-airstrikes-against-isil-in-iraq"]
["7/09/2014 - 8/09/2014","US",1,1,1,{"$f":"F61+E62","v":137},"NA","Mix of US attack, fighter and remotely piloted aircraft ","Near Erbil, Iraq","Erbil: 36.1911° N, 44.0092° E","NA","ISIL strongholds near Erbil","In the defense of Erbil","Destroyed 1 x ISIL Humvee","NA","NA","NA","NA","NA","NA",1,1,"NA","NA","NA","NA","NA","NA","NA","NA","NA","NA","http://www.centcom.mil/en/news/articles/sept.8-u.s.-military-conducts-airstrikes-against-isil-in-iraq"]
["8/09/2014 - 9/09/2014","US",1,"≤4",5,{"$f":"F62+E63","v":142},"NA","Mix of US attack, fighter and remotely piloted aircraft ","Haditha Dam Anbar province, Iraq","Haditha Dam: 34.2069° N, 42.3550° E","NA","ISIL strongholds near Haditha in Anbar province ","In support of Iraqi Security Forces and Sunni tribes protecting the Haditha Dam.","Destroyed or damaged 8 x ISIL armed vehicles (2 x of which were transporting anti-aircraft artillery); 5 ISIL vehicles, and 1 x ISIL transport vehicle","NA","NA","NA","NA","NA","NA",14,14,">2","NA","NA","NA","NA","NA","NA","NA","NA","NA","http://www.centcom.mil/en/news/articles/sept-9-u.s.-military-conducts-airstrikes-against-isil-in-support-of-haditha"]
["8/09/2014 - 9/09/2014","US",1,"≤4",null,null,"NA","Mix of US attack, fighter and remotely piloted aircraft ","Haditha Dam Anbar province, Iraq","Haditha Dam: 34.2069° N, 42.3550° E","NA","ISIL strongholds near Haditha in Anbar province ","In support of Iraqi Security Forces and Sunni tribes protecting the Haditha Dam.",null,null,null,null,null,null,null,null,null,null,null,null,null,null,null,null,null,null,null,"http://www.centcom.mil/en/news/articles/sept-9-u.s.-military-conducts-airstrikes-against-isil-in-support-of-haditha"]
["2014-09-09","US",1,1,1,{"$f":"F63+E65","v":143},"NA","US attack aircraft ","Near Erbil, Iraq","Erbil: 36.1911° N, 44.0092° E","NA","ISIL strongholds near Erbil","In the defense of Erbil","Destroyed 1 x ISIL armed vehicle ","NA","NA","NA","NA","NA","NA",1,1,"NA","NA","NA","NA","NA","NA","NA","NA","NA","NA","http://www.centcom.mil/en/news/articles/sept.-10-u.s.-military-conducts-airstrike-against-isil-in-support-of-defens"]
["10/09/2014 - 11/09/2014","US",1,1,1,{"$f":"F65+E66","v":144},"NA","US attack aircraft ","Near the Mosul Dam, Iraq.","Mosul Dam: 36.6303° N, 42.8231° E","NA","ISIL strongholds near Mosul Dam.","In support of Iraqi Security Forces.","Destroyed 2 x ISIL machine gun emplacements and 1 x ISIL bunker","NA","NA","NA","NA",3,3,"NA","NA","NA","NA","NA","NA","NA","NA","NA","NA","NA","NA","http://www.centcom.mil/en/news/articles/sept.-11-u.s.-military-conducts-airstrikes-against-isil-near-the-mosul-dam"]
["10/09/2014 - 11/09/2014","US",1,1,1,{"$f":"F66+E67","v":145},"NA","US attack aircraft ","Near the Mosul Dam, Iraq.","Mosul Dam: 36.6303° N, 42.8231° E","NA","ISIL strongholds near Mosul Dam.","In support of Iraqi Security Forces.",null,null,null,null,null,null,null,null,null,null,null,null,null,null,null,null,null,null,null,"http://www.centcom.mil/en/news/articles/sept.-11-u.s.-military-conducts-airstrikes-against-isil-near-the-mosul-dam"]
["11/09/2014 -12/09/2014","US",1,1,1,146,"NA","US attack aircraft ","Near the Mosul Dam, Iraq.","Mosul Dam: 36.6303° N, 42.8231° E","NA","ISIL strongholds near Mosul Dam.","In support of Iraqi Security Forces.","Destroyed 2 x ISIL armed vehicles","NA","NA","NA","NA","NA","NA",2,2,"NA","NA","NA","NA","NA","NA","NA","NA","NA","NA","http://www.centcom.mil/en/news/articles/sept.-12-u.s.-military-conducts-airstrikes-against-isil-near-the-mosul-dam"]
["11/09/2014 -12/09/2014","US",1,1,1,147,null,"US attack aircraft ","Near Erbil, Iraq","Erbil: 36.1911° N, 44.0092° E","NA","ISIL strongholds near Erbil","In the defense of Erbil",null,null,null,null,null,null,null,null,null,null,null,null,null,null,null,null,null,null,null,"http://www.centcom.mil/en/news/articles/sept.-12-u.s.-military-conducts-airstrikes-against-isil-near-the-mosul-dam"]
["2014-09-12","US",2,2,2,149,"NA","US attack aircraft ","Near the Mosul Dam, Iraq.","Mosul Dam: 36.6303° N, 42.8231° E","NA","ISIL strongholds near Mosul Dam.","In support of Iraqi Security Forces.","Destroyed an ISIL mortar emplacement and 1 x ISIL armed vehicle","NA","NA","NA","NA",1,1,1,1,"NA","NA","NA","NA","NA","NA","NA","NA","NA","NA","http://www.centcom.mil/en/news/articles/sept.-13-u.s.-military-conducts-airstrikes-against-isil-near-the-mosul-dam"]
["14/09/2014 -15/09/2014","US",1,1,1,150,"NA","US attack and fighter aircraft ","Near Sinjar, Iraq","Sinjar: 36.3225° N, 41.8642° E","NA","ISIL strongholds near Sinjar","In support of Iraqi Security Forces near Sinjar","Destroyed 6 x ISIL vehicles","NA","NA","NA","NA","NA","NA",6,6,"NA","NA","NA","NA","NA","NA","NA","NA","NA","NA","http://www.centcom.mil/en/news/articles/u.s.-military-conducts-airstrikes-against-isil-near-sinjar-and-southwest-of"]
["14/09/2014 -15/09/2014","US",1,1,1,151,null,"US attack and fighter aircraft ","Southwest of Baghdad, Iraq","Baghdad: 33.3250° N, 44.4220° E","NA","ISIL strongholds near Baghdad","In support of Iraqi Security Forces southwest of Baghdad & as part of US expanded efforts beyond protecting US citizens and humanitarian missions to hit ISIL targets as Iraqi forces go on offense, as outlined in the President's speech on 10.09.14.","Destroyed 1 x ISIL fighting position southwest of Baghdad ","NA","NA","NA","NA","NA","NA","NA","NA","NA","NA",1,1,"NA","NA","NA","NA","NA","NA","http://www.centcom.mil/en/news/articles/u.s.-military-conducts-airstrikes-against-isil-near-sinjar-and-southwest-of"]
["15/09/2014 - 16/09/2014","US",3,3,3,154,"NA","US fighter aircraft ","Southwest of Baghdad, Iraq","Baghdad: 33.3250° N, 44.4220° E","NA","ISIL strongholds near Baghdad","In support of Iraqi Security Forces southwest of Baghdad & as part of US expanded efforts.","Damaged 1 x ISIL truck and destroyed 1 x ISIL anti-aircraft artillery piece,1 x small ISIL ground unit and 2 x small boats on the Euphrates River that were re-supplying ISIL forces in the area.","NA","NA","NA","NA","NA","NA",3,3,1,1,1,1,"NA","NA","NA","NA","NA","NA","http://www.centcom.mil/en/news/articles/sept-16-us-military-conducts-airstrikes-against-isil-southwest-of-baghdad"]
["15/09/2014 - 16/09/2014","US",2,2,2,156,"NA","US fighter aircraft ","Northwest of Erbil, Iraq","Erbil: 36.1911° N, 44.0092° E","NA","ISIL strongholds near Erbil","In the defense of Erbil","Destroyed 1 x ISIL armed truck and 1 x ISIL fighting position","NA","NA","NA","NA","NA","NA",1,1,"NA","NA",1,1,"NA","NA","NA","NA","NA","NA","http://www.centcom.mil/en/news/articles/sept-16-us-military-conducts-airstrikes-against-isil-southwest-of-baghdad"]
["16/09/2014 -17/09/2014","US",2,2,2,158,"NA","Mix of US fighter, attack and remotely piloted aircraft ","Northwest of Erbil, Iraq","Erbil: 36.1911° N, 44.0092° E","NA","ISIL strongholds near Erbil","In the defense of Erbil","Destroyed 2 x ISIL armed vehicles","NA","NA","NA","NA","NA","NA",2,2,"NA","NA","NA","NA","NA","NA","NA","NA","NA","NA","http://www.centcom.mil/en/news/articles/sept-17-us-military-conducts-airstrikes-against-isil-in-iraq"]
["16/09/2014 -17/09/2014","US",1,1,1,159,"NA","Mix of US fighter, attack and remotely piloted aircraft ","Northwest of Haditha Dam Anbar province, Iraq","Haditha Dam: 34.2069° N, 42.3550° E","NA","ISIL strongholds near Haditha in Anbar province ","In support of Iraqi Security Forces and Sunni tribes protecting the Haditha Dam.","Destroyed 1 x ISIL armed vehicle ","NA","NA","NA","NA","NA","NA",1,1,"NA","NA","NA","NA","NA","NA","NA","NA","NA","NA","http://www.centcom.mil/en/news/articles/sept-17-us-military-conducts-airstrikes-against-isil-in-iraq"]
["16/09/2014 -17/09/2014","US",4,4,4,163,"NA","Mix of US fighter, attack and remotely piloted aircraft ","Southwest of Baghdad, Iraq","Baghdad: 33.3250° N, 44.4220° E","NA","ISIL strongholds near Baghdad","In support of Iraqi Security Forces southwest of Baghdad & as part of US expanded efforts.","Destroyed several small ISIL ground units and 1 x small boat on the Euphrates River that was re-supplying ISIL forces in the area","NA","NA","NA","NA","NA","NA",1,1,"NA","NA","> 3","NA","NA","NA","NA","NA","NA","NA","http://www.centcom.mil/en/news/articles/sept-17-us-military-conducts-airstrikes-against-isil-in-iraq"]
["17/09/2014 -18/09/2014","US",1,1,1,164,"NA","Mix of US bomber and fighter aircraft ","Southeast of Baghdad, Iraq","Baghdad: 33.3250° N, 44.4220° E","NA","ISIL strongholds near Baghdad","Strikes were conducted under authority to protect U.S. personnel and facilities, support humanitarian efforts, and assist Iraqi forces in their offensive against ISIL terrorists.","Damaged 1 x ISIL ammunition stockpile.","NA","NA","NA","NA","NA","NA","NA","NA",1,1,"NA","NA","NA","NA","NA","NA","NA","NA","http://www.centcom.mil/en/news/articles/sept.-18-u.s.-military-conducts-airstrikes-against-isil-in-iraq"]
["17/09/2014 -18/09/2014","US",1,1,1,165,"NA","Mix of US bomber and fighter aircraft ","Southeast of Mosul, Iraq","Mosul: 36.3400° N, 43.1300° E","NA","An ISIL training camp southeast of Mosul","Strikes were conducted under authority to protect U.S. personnel and facilities, support humanitarian efforts, and assist Iraqi forces in their offensive against ISIL terrorists.","Destroyed 1 x ISIL armed vehicle, 2 x ISIL-occupied buildings and 1 x large ISIL ground unit.",1,1,"NA","NA",2,2,1,1,"NA","NA",1,1,"NA","NA","NA","NA","NA","NA","http://www.centcom.mil/en/news/articles/sept.-18-u.s.-military-conducts-airstrikes-against-isil-in-iraq"]
["18/09/2014 - 19/09/2014","US",1,1,1,166,"NA","US fighter aircraft ","Southeast of Baghdad, Iraq","Baghdad: 33.3250° N, 44.4220° E","NA","ISIL resupply boat on Euphrates River ","Strikes were conducted as part of the President's comprehensive strategy to degrade and ultimately destroy ISIL.","Destroyed 1 x boat on the Euphrates River ","NA","NA","NA","NA","NA","NA",1,1,"NA","NA","NA","NA","NA","NA","NA","NA","NA","NA","http://www.centcom.mil/en/news/articles/sept.-19-u.s.-military-conducts-airstrikes-against-isil-in-iraq"]
["18/09/2014 - 19/09/2014","US",1,1,1,167,"NA","US fighter aircraft ","Southwest of Baghdad ","Baghdad: 33.3250° N, 44.4220° E","NA","ISIL ground unit near Baghdad","Strikes were conducted as part of the President's comprehensive strategy to degrade and ultimately destroy ISIL.","Struck 1 x small ISIL ground unit","NA","NA","NA","NA","NA","NA","NA","NA","NA","NA",1,1,"NA","NA","NA","NA","NA","NA","http://www.centcom.mil/en/news/articles/sept.-19-u.s.-military-conducts-airstrikes-against-isil-in-iraq"]
["2014-09-22","US",4,4,4,171,"NA","Mix of US attack, fighter and remotely piloted aircraft ","West-southwest of Kirkuk","Kirkuk: 35.4667° N, 44.3167° E","NA","ISIL strongholds near Kirkuk","Strikes were conducted as part of the President's comprehensive strategy to degrade and ultimately destroy ISIL.","Destroyed 2 x ISIL vehicles, 1 x ISIL tank, and damaged 1 x ISIL Humvee","NA","NA","NA","NA","NA","NA",4,4,"NA","NA","NA","NA","NA","NA","NA","NA","NA","NA","http://www.centcom.mil/en/news/articles/sept.-22-u.s.-military-conducts-airstrikes-against-isil-in-iraq"]
["22/09/2014 - 23/09/2014","Coalition: US, Bahrain, Jordan, Saudi Arabia,Qatar & UAE",1," ≤10",14,{"$f":"F82+E83","v":185},"Overnight","A mix of coalition fighter, bomber, remotely piloted aircraft and Tomahawk Land Attack Missiles ","Al Tabqah, near Ar Raqqah","Al Tabqah: 35.8367° N, 38.5481° E","https://www.youtube.com/watch?v=JxelVX5i_QM&list=UUNEEHeS9Y2yFVLbWGeHhbYA&index=7","ISIL strongholds in the vicinity of Ar Raqqah, Dayr az Zawr, Al Hasakah, and Abu Kamal ","Strikes were conducted as part of the President's comprehensive strategy to degrade and ultimately destroy ISIL.","Destroyed or damaged multiple ISIL targets including: ISIL fighters, training compounds, headquarters and command and control facilities, storage facilities, a finance center, supply trucks and armed vehicles.","> 2","NA","NA","NA","> 7","NA","> 4","NA","NA","NA","NA","NA","NA","NA","NA","NA","> 2","NA","http://www.centcom.mil/en/news/articles/sept.-23-u.s.-military-partner-nations-conduct-airstrikes-against-isil-in-s"]
[null,null,null,null,null,null,null,"A mix of coalition fighter, bomber, remotely piloted aircraft and Tomahawk Land Attack Missiles ","Tall Al Qitar near Ar Raqqah","Tall al  Qitar: 36.388889 ° N,38.155556 ° E","https://www.youtube.com/watch?v=0bpakeG9x7o&index=11&list=UUNEEHeS9Y2yFVLbWGeHhbYA",null,null,null,null,null,null,null,null,null,null,null,null,null,null,null,null,null,null,null,null,null,"http://www.centcom.mil/en/news/articles/sept.-23-u.s.-military-partner-nations-conduct-airstrikes-against-isil-in-s"]
["22/09/2014 - 23/09/2015","Coalition: US, Bahrain, Jordan, Saudi Arabia,Qatar & UAE",1," ≤10",null,null,null,"A mix of coalition fighter, bomber, remotely piloted aircraft and Tomahawk Land Attack Missiles ","Dayr az Zawr","Dayr az Zawr: 35.3333° N, 40.1500° E",null,"ISIL strongholds in the vicinity of Ar Raqqah, Dayr az Zawr, Al Hasakah, and Abu Kamal ","Strikes were conducted as part of the President's comprehensive strategy to degrade and ultimately destroy ISIL.",null,null,null,null,null,null,null,null,null,null,null,null,null,null,null,null,null,null,null,"http://www.centcom.mil/en/news/articles/sept.-23-u.s.-military-partner-nations-conduct-airstrikes-against-isil-in-s"]
["22/09/2014 - 23/09/2015","Coalition: US, Bahrain, Jordan, Saudi Arabia,Qatar & UAE",1," ≤10",null,null,null,"A mix of coalition fighter, bomber, remotely piloted aircraft and Tomahawk Land Attack Missiles ","Al Hasakah","Al Hasakah: 36.5000° N, 40.9000° E",null,"ISIL strongholds in the vicinity of Ar Raqqah, Dayr az Zawr, Al Hasakah, and Abu Kamal ","Strikes were conducted as part of the President's comprehensive strategy to degrade and ultimately destroy ISIL.",null,null,null,null,null,null,null,null,null,null,null,null,null,null,null,null,null,null,null,"http://www.centcom.mil/en/news/articles/sept.-23-u.s.-military-partner-nations-conduct-airstrikes-against-isil-in-s"]
["22/09/2014 - 23/09/2015","Coalition: US, Bahrain, Jordan, Saudi Arabia,Qatar & UAE",1," ≤10",null,null,null,"A mix of coalition fighter, bomber, remotely piloted aircraft and Tomahawk Land Attack Missiles ","Abu Kamal","Abu Kamal: 34.4536° N, 40.9367° E","https://www.youtube.com/watch?v=U5tyRw8INSs&list=UUNEEHeS9Y2yFVLbWGeHhbYA&index=12","ISIL strongholds in the vicinity of Ar Raqqah, Dayr az Zawr, Al Hasakah, and Abu Kamal ","Strikes were conducted as part of the President's comprehensive strategy to degrade and ultimately destroy ISIL.",null,null,null,null,null,null,null,null,null,null,null,null,null,null,null,null,null,null,null,"http://www.centcom.mil/en/news/articles/sept.-23-u.s.-military-partner-nations-conduct-airstrikes-against-isil-in-s"]
["22/09/2014 - 23/09/2015","Coalition: US, Bahrain, Jordan, Saudi Arabia,Qatar & UAE",1," ≤10",null,null,null,"A mix of coalition fighter, bomber, remotely piloted aircraft and Tomahawk Land Attack Missiles ","Abu Kamal","Abu Kamal: 34.4536° N, 40.9367° E","https://www.youtube.com/watch?v=nShvy9S4pg4&index=9&list=UUNEEHeS9Y2yFVLbWGeHhbYA","ISIL strongholds in the vicinity of Ar Raqqah, Dayr az Zawr, Al Hasakah, and Abu Kamal ","Strikes were conducted as part of the President's comprehensive strategy to degrade and ultimately destroy ISIL.",null,null,null,null,null,null,null,null,null,null,null,null,null,null,null,null,null,null,null,"http://www.centcom.mil/en/news/articles/sept.-23-u.s.-military-partner-nations-conduct-airstrikes-against-isil-in-s"]
["2014-09-22","US",4,4,4,{"$f":"F83+E89","v":189},"NA","US attack aircraft ","Southwest of Kirkuk","Kirkuk: 35.4667° N, 44.3167° E","NA","ISIL strongholds near Kirkuk","Strikes were conducted as part of the President's comprehensive strategy to degrade and ultimately destroy ISIL.","Destroyed 2 x ISIL Humvees, 1 x ISIL armed vehicle and 1 x ISIL fighting position. ","NA","NA","NA","NA","NA","NA",3,3,"NA","NA",1,1,"NA","NA","NA","NA","NA","NA","http://www.centcom.mil/en/news/articles/sept.-23-u.s.-military-partner-nations-conduct-airstrikes-against-isil-in-s"]
["2014-09-22","US",8,8,8,{"$f":"F89+E90","v":197},"NA","NA","West of Aleppo","Aleppo: 36.2167° N, 37.1667° E","NA","Khorasan Group training camps, an explosives and munitions production facility, a communication building and command and control facilities.","Disrupt the imminent attack plotting against the United States and Western interests conducted by a network of seasoned al-Qa'ida's Khorasan Group.","Training camps, 1 x explosives and munitions production facility, 1 x communication building and command and control facilities.","NA","NA","NA","NA","NA","NA","NA","NA","NA","NA","NA","NA","NA","NA",">5","NA","NA","NA","http://www.centcom.mil/en/news/articles/sept.-23-u.s.-military-partner-nations-conduct-airstrikes-against-isil-in-s"]
["22/09/2014 - 23/09/2014","US",2,2,2,{"$f":"F90+E91","v":199},"Overnight","Mix of US bomber and remotely piloted aircraft","Southwest of Dayr Az Zawr, Syria","Dayr az Zawr: 35.3333° N, 40.1500° E","NA","ISIL strongholds southwest of Dayr Az Zawr, Syria","Strikes were conducted as part of the President's comprehensive strategy to degrade and ultimately destroy ISIL.","1 x damaged ISIL armed vehicle and 1 x destroyed ISIL armed vehicle ","NA","NA","NA","NA","NA","NA",2,2,"NA","NA","NA","NA","NA","NA","NA","NA","NA","NA","http://www.centcom.mil/en/news/articles/sept.-23-u.s.-military-conducts-airstrikes-against-isil-in-iraq-and-syria"]
["22/09/2014 - 23/09/2014","US",1,1,1,{"$f":"+F91+E92","v":200},null,"Mix of US bomber and remotely piloted aircraft","Northwest of Baghdad, Iraq","Baghdad: 33.3250° N, 44.4220° E","NA","ISIL strongholds in Northwest of Baghdad, Iraq","Strikes were conducted as part of the President's comprehensive strategy to degrade and ultimately destroy ISIL.","Destroyed 1 x ISIL armed vehicle ","NA","NA","NA","NA","NA","NA",1,1,"NA","NA","NA","NA","NA","NA","NA","NA","NA","NA","http://www.centcom.mil/en/news/articles/sept.-23-u.s.-military-conducts-airstrikes-against-isil-in-iraq-and-syria"]
["22/09/2014 - 23/09/2014","US",2,2,2,{"$f":"+F92+E93","v":202},"NA","Mix of US attack, bomber and fighter aircraft ","West of Baghdad, Iraq","Baghdad: 33.3250° N, 44.4220° E","NA","ISIL strongholds west of Baghdad, Iraq","Strikes were conducted as part of the President's comprehensive strategy to degrade and ultimately destroy ISIL.","Destroyed 2 x ISIL armed vehicles and 1 x weapons cache","NA","NA","NA","NA","NA","NA",2,2,1,1,"NA","NA","NA","NA","NA","NA","NA","NA","http://www.centcom.mil/en/news/articles/sept.-24-u.s.-military-conducts-airstrikes-against-isil-in-iraq-and-syria"]
["23/09/2014 - 24/09/2014","US",2,2,2,204,null,"Mix of US attack, bomber and fighter aircraft ","Southeast of Erbil, Iraq ","Erbil: 36.1911° N, 44.0092° E","NA","ISIL strongholds southeast of Erbil, Iraq ","Strikes were conducted as part of the President's comprehensive strategy to degrade and ultimately destroy ISIL.","Destroyed ISIL fighting positions","NA","NA","NA","NA","NA","NA","NA","NA","NA","NA",">2","NA","NA","NA","NA","NA","NA","NA","http://www.centcom.mil/en/news/articles/sept.-24-u.s.-military-conducts-airstrikes-against-isil-in-iraq-and-syria"]
["23/09/2014 - 24/09/2014","US",1,1,1,205,null,"Mix of US attack, bomber and fighter aircraft ","Northwest of Al Qa'im, Syria","Al Qa'im: 34.3688° N, 41.0945° E","NA","ISIL strongholds northwest of Al Qa'im, Syria","Strikes were conducted as part of the President's comprehensive strategy to degrade and ultimately destroy ISIL.","Damaged 8 x ISIL vehicles","NA","NA","NA","NA","NA","NA",8,8,"NA","NA","NA","NA","NA","NA","NA","NA","NA","NA","http://www.centcom.mil/en/news/articles/sept.-24-u.s.-military-conducts-airstrikes-against-isil-in-iraq-and-syria"]
["2014-09-24","US, Saudi Arabia & UAE",1," ≤10",13,{"$f":"F95+E96","v":218},"NA","A mix of coalition fighter and remotely piloted aircraft","Al Mayadin, Syria","Al Mayadin: 35.0167° N, 40.4500° E","https://www.youtube.com/watch?v=w0JOJQlLzok&list=UUNEEHeS9Y2yFVLbWGeHhbYA&index=6","12 ISIL-controlled modular oil refineries ","The U.S. conducted these strikes as part of the President's comprehensive strategy to degrade and ultimately destroy ISIL. ","12 x ISIL-controlled modular oil refineries ","NA","NA",12,12,"NA","NA","NA","NA","NA","NA","NA","NA","NA","NA","NA","NA","NA","NA","http://www.centcom.mil/en/news/articles/u.s.-military-partner-nations-conduct-airstrikes-against-isil-in-syria"]
["2014-09-24","US, Saudi Arabia & UAE",1," ≤10",null,null,null,"A mix of coalition fighter and remotely piloted aircraft","Al Hasakah, Syria","Al Hasakah: 36.5000° N, 40.9000° E","https://www.youtube.com/watch?v=9HZa0bdSf44&list=UUNEEHeS9Y2yFVLbWGeHhbYA&index=8",null,"The U.S. conducted these strikes as part of the President's comprehensive strategy to degrade and ultimately destroy ISIL. ",null,"NA","NA",null,null,"NA","NA","NA","NA","NA","NA","NA","NA","NA","NA","NA","NA","NA","NA","http://www.centcom.mil/en/news/articles/u.s.-military-partner-nations-conduct-airstrikes-against-isil-in-syria"]
["2014-09-24","US, Saudi Arabia & UAE",1," ≤10",null,null,null,"A mix of coalition fighter and remotely piloted aircraft","Abu Kamal","Abu Kamal: 34.4536° N, 40.9367° E","NA",null,"The U.S. conducted these strikes as part of the President's comprehensive strategy to degrade and ultimately destroy ISIL. ",null,"NA","NA",null,null,"NA","NA","NA","NA","NA","NA","NA","NA","NA","NA","NA","NA","NA","NA","http://www.centcom.mil/en/news/articles/u.s.-military-partner-nations-conduct-airstrikes-against-isil-in-syria"]
["2014-09-24","US, Saudi Arabia & UAE",1," ≤10",null,null,null,"A mix of coalition fighter and remotely piloted aircraft","Dayr az Zawr, Syria","Dayr az Zawr: 35.3333° N, 40.1500° E","NA","ISIL strongholds in Dayr Az Zawr, Syria","The U.S. conducted these strikes as part of the President's comprehensive strategy to degrade and ultimately destroy ISIL. ","Destroyed 1 x ISIL vehicle","NA","NA","NA","NA","NA","NA",1,1,"NA","NA","NA","NA","NA","NA","NA","NA","NA","NA","http://www.centcom.mil/en/news/articles/u.s.-military-partner-nations-conduct-airstrikes-against-isil-in-syria"]
["24/09/2014 -25/09/2014","US",1,1,1,{"$f":"F96+E100","v":219},"NA","Mix US of attack, bomber and fighter aircraft ","West of Erbil, Iraq","Erbil: 36.1911° N, 44.0092° E","NA","ISIL strongholds in Erbil","The U.S. conducted these strikes as part of the President's comprehensive strategy to degrade and ultimately destroy ISIL. ","struck ISIL fighters and damaged 1 x ISIL armed vehicle","NA","NA","NA","NA","NA","NA",1,1,"NA","NA","NA","NA","NA","NA","NA","NA",">2","NA","http://www.centcom.mil/en/news/articles/u.s.-military-conducts-airstrikes-against-isil-in-iraq1"]
["24/09/2014 -25/09/2014","US",5,5,5,{"$f":"F100+E101","v":224},null,"Mix US of attack, bomber and fighter aircraft ","South of Kirkuk , Iraq","Kirkuk: 35.4667° N, 44.3167° E","https://www.youtube.com/watch?v=Nl2FlbNW4sU&list=UUNEEHeS9Y2yFVLbWGeHhbYA&index=3","ISIL strongholds in Kirkuk","The U.S. conducted these strikes as part of the President's comprehensive strategy to degrade and ultimately destroy ISIL. ","struck ISIL fighters, destroyed 1x ISIL tank, 1 x ISIL vehicle and 1 x ISIL Humvee, and damaged 2 x ISIL armed vehicles.","NA","NA","NA","NA","NA","NA",5,5,"NA","NA","NA","NA","NA","NA","NA","NA",">2","NA","http://www.centcom.mil/en/news/articles/u.s.-military-conducts-airstrikes-against-isil-in-iraq2"]
["24/09/2014 -25/09/2014","US",5,5,5,229,null,"Mix US of attack, bomber and fighter aircraft ","West of Baghdad, Iraq ","Baghdad: 33.3250° N, 44.4220° E","NA","ISIL strongholds near Baghdad","The U.S. conducted these strikes as part of the President's comprehensive strategy to degrade and ultimately destroy ISIL. ","Destroyed 1 x ISIL Humvee, 4 x checkpoints, 1 x fighting position, 2 x guard towers, and 1 x command post.","NA","NA","NA","NA",3,3,1,1,"NA","NA",1,1,4,4,"NA","NA","NA","NA","http://www.centcom.mil/en/news/articles/u.s.-military-conducts-airstrikes-against-isil-in-iraq3"]
["25/09/2014 -26/09/2014","US",5,5,5,234,"NA","Mix of US fighter, attack and remotely piloted aircraft","South and southwest of Kirkuk , Iraq","Kirkuk: 35.4667° N, 44.3167° E","NA","ISIL strongholds in Kirkuk","The U.S. conducted these strikes as part of the President's comprehensive strategy to degrade and ultimately destroy ISIL. ","Destroyed 3 x ISIL Humvees and 1 x ISIL vehicle, disabled  2 x ISIL armed vehicles and damaged 1 x ISIL mine-resistant ambush protected vehicle. ","NA","NA","NA","NA","NA","NA",7,7,"NA","NA","NA","NA","NA","NA","NA","NA","NA","NA","http://www.centcom.mil/en/news/articles/sept.-26-u.s.-military-conducts-airstrikes-against-isil-in-iraq-and-syria"]
["25/09/2014 -26/09/2014","US",1,1,1,235,null,"Mix of US fighter, attack and remotely piloted aircraft","West of Baghdad, Iraq ","Baghdad: 33.3250° N, 44.4220° E","NA","ISIL strongholds near Baghdad","The U.S. conducted these strikes as part of the President's comprehensive strategy to degrade and ultimately destroy ISIL. ","Destroyed 1 x ISIL guard shack, 1 x armed vehicle and  1 x bunker","NA","NA","NA","NA",2,2,1,1,"NA","NA","NA","NA","NA","NA","NA","NA","NA","NA","http://www.centcom.mil/en/news/articles/sept.-26-u.s.-military-conducts-airstrikes-against-isil-in-iraq-and-syria"]
["25/09/2014 -26/09/2014","US",1,1,1,236,null,"Mix of US fighter, attack and remotely piloted aircraft","Near Al Qa'im, ","Al Qa'im: 34.3688° N, 41.0945° E","NA","ISIL strongholds near Al Qa'im","The U.S. conducted these strikes as part of the President's comprehensive strategy to degrade and ultimately destroy ISIL. ","Destroyed 4 x ISIL armed vehicles, 1 x command and control node and 1 x checkpoint","NA","NA","NA","NA","NA","NA",4,4,"NA","NA",1,1,1,1,"NA","NA","NA","NA","http://www.centcom.mil/en/news/articles/sept.-26-u.s.-military-conducts-airstrikes-against-isil-in-iraq-and-syria"]
["25/09/2014 -26/09/2014","US",3,3,3,239,null,"Mix of US fighter, attack and remotely piloted aircraft","South and southeast of Dayr Az Zawr , Syria","Dayr az Zawr: 35.3333° N, 40.1500° E","NA","ISIL strongholds in Dayr Az Zawr, Syria","The U.S. conducted these strikes as part of the President's comprehensive strategy to degrade and ultimately destroy ISIL. ","Destroyed 4 x ISIL tanks and damaged 1 x ISIL tank ","NA","NA","NA","NA","NA","NA",5,5,"NA","NA","NA","NA","NA","NA","NA","NA","NA","NA","http://www.centcom.mil/en/news/articles/sept.-26-u.s.-military-conducts-airstrikes-against-isil-in-iraq-and-syria"]
["26/09/2014 - 27/09/2014","US, Saudi Arabia, Jordan & UAE",1," ≤3",7,{"$f":"F106+E107","v":246},"NA","Mix of U.S. and partner nation fighter and remotely piloted aircraft","South of Al Hasakah, Syria","Al Hasakah: 36.5000° N, 40.9000° E","https://www.youtube.com/watch?v=gpWHyv5cECA&index=1&list=UUNEEHeS9Y2yFVLbWGeHhbYA","Al Hasakah Military Garrison in South Milibya, Syria","The strikes were conducted as part of the President's comprehensive strategy to degrade and ultimately destroy ISIL. ","1 x ISIL vehicle was destroyed ","NA","NA","NA","NA","NA","NA",1,1,"NA","NA","NA","NA","NA","NA","NA","NA","NA","NA","http://www.centcom.mil/en/news/articles/sept.-27-u.s.-military-partner-nations-conduct-airstrikes-against-isil"]
["26/09/2014 - 27/09/2014","US, Saudi Arabia, Jordan & UAE",1," ≤3",null,null,null,"Mix of U.S. and partner nation fighter and remotely piloted aircraft","Near Al Hasakah, Syria","Al Hasakah: 36.5000° N, 40.9000° E","NA","ISIL strongholds near Al Hasakah, Syria","The strikes were conducted as part of the President's comprehensive strategy to degrade and ultimately destroy ISIL. ","Destroyed several buildings that were part of an ISIL garrison ","NA","NA","NA","NA","> 2","NA","NA","NA","NA","NA","NA","NA","NA","NA","NA","NA","NA","NA","http://www.centcom.mil/en/news/articles/sept.-27-u.s.-military-partner-nations-conduct-airstrikes-against-isil"]
["26/09/2014 - 27/09/2014","US, Saudi Arabia, Jordan & UAE",1," ≤3",null,null,null,"Mix of U.S. and partner nation fighter and remotely piloted aircraft","Near Manbij, Syria ","Manbij: 36.5333° N, 37.9500° E","NA","ISIL strongholds near Manbij, Syria ","The strikes were conducted as part of the President's comprehensive strategy to degrade and ultimately destroy ISIL. ","Damaged 1 x ISIL command and control facility","NA","NA","NA","NA",1,1,"NA","NA","NA","NA","NA","NA","NA","NA","NA","NA","NA","NA","http://www.centcom.mil/en/news/articles/sept.-27-u.s.-military-partner-nations-conduct-airstrikes-against-isil"]
["26/09/2014 - 27/09/2014","US, Saudi Arabia, Jordan & UAE",1," ≤3",null,null,null,"Mix of U.S. and partner nation fighter and remotely piloted aircraft","Kobani border crossing, Ayn al-Arab, Syria","Kobani, Ayn al-Arab: 36.889722° N, 38.355556° E","https://www.youtube.com/watch?v=d1kMXX9B518&list=UUNEEHeS9Y2yFVLbWGeHhbYA&index=5","ISIL strongholds at Kobani border crossing, Ayn al-Arab, Syria","The strikes were conducted as part of the President's comprehensive strategy to degrade and ultimately destroy ISIL. ","Destroyed 1 x ISIL building and 2 x armed vehicles","NA","NA","NA","NA",1,1,2,2,"NA","NA","NA","NA","NA","NA","NA","NA","NA","NA","http://www.centcom.mil/en/news/articles/sept.-27-u.s.-military-partner-nations-conduct-airstrikes-against-isil"]
["26/09/2014 - 27/09/2014","US, Saudi Arabia, Jordan & UAE",1," ≤3",null,null,null,"Mix of U.S. and partner nation fighter and remotely piloted aircraft","Near Ar Raqqah ","Ar Raqqah: 35.9500° N, 39.0167° E","NA","ISIL strongholds  near Ar Raqqah ","The strikes were conducted as part of the President's comprehensive strategy to degrade and ultimately destroy ISIL. ","Damaged 1 x ISIL held airfield, 1 x ISIL garrison and 1 x ISIL training camp ",1,1,"NA","NA",2,2,"NA","NA","NA","NA","NA","NA","NA","NA","NA","NA","NA","NA","http://www.centcom.mil/en/news/articles/sept.-27-u.s.-military-partner-nations-conduct-airstrikes-against-isil"]
["26/09/2014 - 27/09/2014","US",3,3,3,{"$f":"F107+E112","v":249},"NA","US attack aircraft ","Southwest of Erbil","Erbil: 36.1911° N, 44.0092° E","NA","ISIL strongholds southwest of Erbil","The strikes were conducted as part of the President's comprehensive strategy to degrade and ultimately destroy ISIL. ","Destroyed 4 xISIL armed vehicles and 1 x ISIL fighting position","NA","NA","NA","NA","NA","NA",4,4,"NA","NA",1,1,"NA","NA","NA","NA","NA","NA","http://www.centcom.mil/en/news/articles/sept.-27-u.s.-military-partner-nations-conduct-airstrikes-against-isil"]
["27/09/2014 -28/09/2014","US, Saudi Arabia & UAE",5,5,5,{"$f":"F112+E113","v":254},null,"Mix of U.S. and partner nation attack, fighter and remotely piloted aircraft ","North of Ar Raqqah","Ar Raqqah: 35.9500° N, 39.0167° E","NA","Four ISIL-held modular refineries and an ISIL command and control node ","The strikes were conducted as part of the President's comprehensive strategy to degrade and ultimately destroy ISIL. ","4 x ISIL-held modular refineries and 1 x ISIL command and control node","NA","NA",4,4,"NA","NA","NA","NA","NA","NA",1,1,"NA","NA","NA","NA","NA","NA","http://www.centcom.mil/en/news/articles/sept.-28-u.s.-military-partner-nations-conduct-airstrikes-against-isil-in-s"]
["27/09/2014 -28/09/2014","US",1,1,1,255,"NA","Mix of US fighter and remotely piloted ","Near Baghdad","Baghdad: 33.3250° N, 44.4220° E","NA","ISIL strongholds near Baghdad","The strikes were conducted as part of the President's comprehensive strategy to degrade and ultimately destroy ISIL. ","Destroyed 1 x ISIL safe house and damaged 1 x ISIL checkpoint","NA","NA","NA","NA",1,1,"NA","NA","NA","NA","NA","NA",1,1,"NA","NA","NA","NA","http://www.centcom.mil/en/news/articles/sept.-28-u.s.-military-partner-nations-conduct-airstrikes-against-isil-in-s"]
["27/09/2014 -28/09/2014","US, Saudi Arabia & UAE",1,1,1,256,"NA","Mix of U.S. and partner nation attack, fighter and remotely piloted aircraft","Northeast Syria","Al Hasakah: 36.5000° N, 40.9000° E","NA","ISIL strongholds in northeastern Syria","The strikes were conducted as part of the President's comprehensive strategy to degrade and ultimately destroy ISIL. ","Destroyed 3x ISIL armed vehicles and 1 x ISIL Humvee","NA","NA","NA","NA","NA","NA",4,4,"NA","NA","NA","NA","NA","NA","NA","NA","NA","NA","http://www.centcom.mil/en/news/articles/sept.-28-u.s.-military-partner-nations-conduct-airstrikes-against-isil-in-s"]
["27/09/2014 -28/09/2014",null,2,2,2,258,"NA","Mix of U.S. and partner nation attack, fighter and remotely piloted aircraft","Near Dayr Az Zawr , Syria","Dayr az Zawr: 35.3333° N, 40.1500° E","NA","ISIL strongholds in Dayr Az Zawr, Syria","The strikes were conducted as part of the President's comprehensive strategy to degrade and ultimately destroy ISIL. ","Destroyed 1 x ISIL tank and damaged 1 x ISIL tank","NA","NA","NA","NA","NA","NA",2,2,"NA","NA","NA","NA","NA","NA","NA","NA","NA","NA","http://www.centcom.mil/en/news/articles/sept.-28-u.s.-military-partner-nations-conduct-airstrikes-against-isil-in-s"]
["27/09/2014 -28/09/2014","US",3,3,3,261,"NA","Mix of US fighter and remotely piloted ","Near Fallujah ","Fallujah: 33.3500° N, 43.7833° E","NA","ISIL strongholds near Fallujah","The strikes were conducted as part of the President's comprehensive strategy to degrade and ultimately destroy ISIL. ","Destroyed 2 x ISIL checkpoints and 1 x ISIL transport vehicle","NA","NA","NA","NA","NA","NA",1,1,"NA","NA","NA","NA",2,2,"NA","NA","NA","NA","http://www.centcom.mil/en/news/articles/sept.-28-u.s.-military-partner-nations-conduct-airstrikes-against-isil-in-s"]
["28/09/2014 - 29/09/2014","US, Jordan & UAE",2,2,2,263,"NA","Mix of US and partner nation fighter and remotely piloted aircraft ","Near Dayr ar Zawr, Syria  ","Dayr az Zawr: 35.3333° N, 40.1500° E","NA","ISIL strongholds in Dayr Az Zawr, Syria","The strikes were conducted as part of the President's comprehensive strategy to degrade and ultimately destroy ISIL. ","Destroyed 1 x  ISIL armed vehicle while another destroyed 1 x ISIL anti-aircraft artillery transport vehicle","NA","NA","NA","NA","NA","NA",2,2,"NA","NA","NA","NA","NA","NA","NA","NA","NA","NA","http://www.centcom.mil/en/news/articles/sept.-29-u.s.-military-partner-nations-conduct-airstrikes-against-isil-in-s"]
["28/09/2014 - 29/09/2014","US, Jordan & UAE",2,2,2,265,"NA","Mix of U.S. and partner nation fighter and remotely piloted aircraft","Northwest Syria near Aleppo","Aleppo: 36.2167° N, 37.1667° E","NA","An ISIL compound and an ISIL-held airfield in northwest Syria near Aleppo. ","The strikes were conducted as part of the President's comprehensive strategy to degrade and ultimately destroy ISIL. ","1 x  ISIL compound and 1 x ISIL-held airfield","NA","NA","NA","NA",2,2,"NA","NA","NA","NA","NA","NA","NA","NA","NA","NA","NA","NA","http://www.centcom.mil/en/news/articles/sept.-29-u.s.-military-partner-nations-conduct-airstrikes-against-isil-in-s"]
["28/09/2014 - 29/09/2014","US, Jordan & UAE",2,2,2,267,"NA","Mix of U.S. and partner nation fighter and remotely piloted aircraft","Near Ar Raqqah","Ar Raqqah: 35.9500° N, 39.0167° E","NA"," ISIL compounds near Ar Raqqah","The strikes were conducted as part of the President's comprehensive strategy to degrade and ultimately destroy ISIL. ","ISIL compounds near Ar Raqqah","NA","NA","NA","NA","≥2","NA","NA","NA","NA","NA","NA","NA","NA","NA","NA","NA","NA","NA","http://www.centcom.mil/en/news/articles/sept.-29-u.s.-military-partner-nations-conduct-airstrikes-against-isil-in-s"]
["28/09/2014 - 29/09/2014","US, Jordan & UAE",2,2,2,269,"NA","Mix of U.S. and partner nation fighter and remotely piloted aircraft","Near Manbij, Syria ","Manbij: 36.5333° N, 37.9500° E","NA","An ISIL training camp and ISIL vehicles within a vehicle staging area adjacent to an ISIL-held grain storage facility near Manbij","The strikes were conducted as part of the President's comprehensive strategy to degrade and ultimately destroy ISIL. ","struck 1 x ISIL training camp and ISIL vehicles",1,1,"NA","NA","NA","NA","≥2","NA","NA","NA","NA","NA","NA","NA","NA","NA","NA","NA","http://www.centcom.mil/en/news/articles/sept.-29-u.s.-military-partner-nations-conduct-airstrikes-against-isil-in-s"]
["28/09/2014 - 29/09/2014","US",1,1,1,270,"NA","Mix of US attack and remotely piloted aircraft ","Near Kirkuk, Iraq","Kirkuk: 35.4667° N, 44.3167° E","NA","ISIL strongholds in Iraq","The strikes were conducted as part of the President's comprehensive strategy to degrade and ultimately destroy ISIL. ","Destroyed 2 x ISIL vehicles ","NA","NA","NA","NA","NA","NA",2,2,"NA","NA","NA","NA","NA","NA","NA","NA","NA","NA","http://www.centcom.mil/en/news/articles/sept.-29-u.s.-military-partner-nations-conduct-airstrikes-against-isil-in-s"]
["28/09/2014 - 29/09/2014","US",1,1,1,271,"NA","Mix of US attack and remotely piloted aircraft ","Near Sinjar, Iraq","Sinjar: 36.3225° N, 41.8642° E","NA","ISIL strongholds in Iraq","The strikes were conducted as part of the President's comprehensive strategy to degrade and ultimately destroy ISIL. ","Destroyed 2 x ISIL armed vehicles","NA","NA","NA","NA","NA","NA",2,2,"NA","NA","NA","NA","NA","NA","NA","NA","NA","NA","http://www.centcom.mil/en/news/articles/sept.-29-u.s.-military-partner-nations-conduct-airstrikes-against-isil-in-s"]
["28/09/2014 - 29/09/2014","US",1,1,1,272,"NA","Mix of US attack and remotely piloted aircraft ","Northwest Iraq ","Sinjar: 36.3225° N, 41.8642° E","NA","ISIL strongholds in Iraq","The strikes were conducted as part of the President's comprehensive strategy to degrade and ultimately destroy ISIL. ","Strike against an ISIL armed vehicle unsuccessful","NA","NA","NA","NA","NA","NA",0,0,"NA","NA","NA","NA","NA","NA","NA","NA","NA","NA","http://www.centcom.mil/en/news/articles/sept.-29-u.s.-military-partner-nations-conduct-airstrikes-against-isil-in-s"]
["2014-09-29","US",1,"NA",1,273,"NA","NA","East of Al Hasakah, Syria","Al Hasakah: 36.5000° N, 40.9000° E","https://www.youtube.com/watch?v=bFaBhdwchVI","ISIL-held building east of Al Hasakah","The strikes were conducted as part of the President's comprehensive strategy to degrade and ultimately destroy ISIL. ","Video shows min 1 x ISIL building destroyed.","NA","NA","NA","NA",1,1,"NA","NA","NA","NA","NA","NA","NA","NA","NA","NA","NA","NA","https://www.youtube.com/watch?v=bFaBhdwchVI"]
["29/09/2014 -30/09/2014","US",2,2,2,275,"NA","Mix of attack, fighter and remotely piloted aircraft ","Near Dayr ar Zawr, Syria  ","Dayr az Zawr: 35.3333° N, 40.1500° E","NA","ISIL strongholds near Dayr ar Zawr, Syria  ","The strikes were conducted as part of the President's comprehensive strategy to degrade and ultimately destroy ISIL. The destruction and degradation of ISIL targets in Syria and Iraq further limits the terrorist group's ability to lead, control, project power and conduct operations.","Destroyed 1 x ISIL armored vehicle and 1 x ISIL armed vehicle","NA","NA","NA","NA","NA","NA",2,2,"NA","NA","NA","NA","NA","NA","NA","NA","NA","NA","http://www.centcom.mil/en/news/articles/sept.-30-u.s.-military-partner-nations-conduct-airstrikes-against-isil"]
["29/09/2014 -30/09/2014","US",5,5,5,280,"NA","Mix of attack, fighter and remotely piloted aircraft ","Northeast Syria near Sinjar ","Sinjar: 36.3225° N, 41.8642° E","NA","ISIL strongholds northeast Syria near Sinjar ","The strikes were conducted as part of the President's comprehensive strategy to degrade and ultimately destroy ISIL. The destruction and degradation of ISIL targets in Syria and Iraq further limits the terrorist group's ability to lead, control, project power and conduct operations.","Destroyed 1 x ISIL artillery piece, 1 x ISIL tank, 3 x ISIL armed vehicles, 2 x ISIL facilities,1 x ISIL observation post and struck 4 x ISIL fighting positions","NA","NA","NA","NA",2,2,4,4,1,1,5,5,"NA","NA","NA","NA","NA","NA","http://www.centcom.mil/en/news/articles/sept.-30-u.s.-military-partner-nations-conduct-airstrikes-against-isil"]
["29/09/2014 -30/09/2014","US",3,3,3,283,"NA","Mix of attack, fighter and remotely piloted aircraft ","Near Mazra al Duwud, near the Syrian/Turkish border","Mazra al Duwud: 36.883° N, 38.350° E","NA","ISIL strongholds near Mazra al Duwud","The strikes were conducted as part of the President's comprehensive strategy to degrade and ultimately destroy ISIL. The destruction and degradation of ISIL targets in Syria and Iraq further limits the terrorist group's ability to lead, control, project power and conduct operations.","Destroyed 1 x ISIL artillery piece, damaged another, and destroyed 2 x ISIL rocket launchers","NA","NA","NA","NA","NA","NA","NA","NA",4,4,"NA","NA","NA","NA","NA","NA","NA","NA","http://www.centcom.mil/en/news/articles/sept.-30-u.s.-military-partner-nations-conduct-airstrikes-against-isil"]
["29/09/2014 -30/09/2014","US",1,1,1,284,"NA","Mix of attack, fighter and remotely piloted aircraft ","Northeast of Aleppo ","Aleppo: 36.2167° N, 37.1667° E","NA","ISIL strongholds northeast of Aleppo ","The strikes were conducted as part of the President's comprehensive strategy to degrade and ultimately destroy ISIL. The destruction and degradation of ISIL targets in Syria and Iraq further limits the terrorist group's ability to lead, control, project power and conduct operations.","Destroyed 4 x ISIL-occupied buildings","NA","NA","NA","NA",4,4,"NA","NA","NA","NA","NA","NA","NA","NA","NA","NA","NA","NA","http://www.centcom.mil/en/news/articles/sept.-30-u.s.-military-partner-nations-conduct-airstrikes-against-isil"]
["29/09/2014 -30/09/2014","US",7,7,7,291,"NA","Mix of attack, fighter and remotely piloted aircraft ","Northwest Iraq ","Sinjar: 36.3225° N, 41.8642° E","NA","ISIL strongholds in Iraq","The strikes were conducted as part of the President's comprehensive strategy to degrade and ultimately destroy ISIL. The destruction and degradation of ISIL targets in Syria and Iraq further limits the terrorist group's ability to lead, control, project power and conduct operations.","Destroyed 1 x ISIL armored vehicle, 2 x ISIL transport vehicles, and 4 x ISIL armed vehicles and damaged 1 x ISIL armed vehicle.","NA","NA","NA","NA","NA","NA",8,8,"NA","NA","NA","NA","NA","NA","NA","NA","NA","NA","http://www.centcom.mil/en/news/articles/sept.-30-u.s.-military-partner-nations-conduct-airstrikes-against-isil"]
["29/09/2014 -30/09/2014","US",2,2,2,293,"NA","Mix of attack, fighter and remotely piloted aircraft ","Near Mosul Dam","Mosul Dam: 36.6303° N, 42.8231° E","NA","ISIL strongholds near Mosul Dam.","The strikes were conducted as part of the President's comprehensive strategy to degrade and ultimately destroy ISIL. The destruction and degradation of ISIL targets in Syria and Iraq further limits the terrorist group's ability to lead, control, project power and conduct operations.","Destroyed 1 x ISIL fighting position and 1 x ISIL armed vehicle","NA","NA","NA","NA","NA","NA",1,1,"NA","NA",1,1,"NA","NA","NA","NA","NA","NA","http://www.centcom.mil/en/news/articles/sept.-30-u.s.-military-partner-nations-conduct-airstrikes-against-isil"]
["29/09/2014 -30/09/2014","US",1,1,1,294,"NA","Mix of attack, fighter and remotely piloted aircraft ","Northwest of Baghdad","Baghdad: 33.3250° N, 44.4220° E","NA","ISIL strongholds near Baghdad","The strikes were conducted as part of the President's comprehensive strategy to degrade and ultimately destroy ISIL. The destruction and degradation of ISIL targets in Syria and Iraq further limits the terrorist group's ability to lead, control, project power and conduct operations.","Destroyed 1 x ISIL armed vehicle","NA","NA","NA","NA","NA","NA",1,1,"NA","NA","NA","NA","NA","NA","NA","NA","NA","NA","http://www.centcom.mil/en/news/articles/sept.-30-u.s.-military-partner-nations-conduct-airstrikes-against-isil"]
["29/09/2014 -30/09/2014","US",1,1,1,295,"NA","Mix of attack, fighter and remotely piloted aircraft ","West Fallujah ","Fallujah: 33.3500° N, 43.7833° E","NA","ISIL strongholds near Fallujah","The strikes were conducted as part of the President's comprehensive strategy to degrade and ultimately destroy ISIL. The destruction and degradation of ISIL targets in Syria and Iraq further limits the terrorist group's ability to lead, control, project power and conduct operations.","Struck 1 x ISIL checkpoint","NA","NA","NA","NA","NA","NA","NA","NA","NA","NA","NA","NA",1,1,"NA","NA","NA","NA","http://www.centcom.mil/en/news/articles/sept.-30-u.s.-military-partner-nations-conduct-airstrikes-against-isil"]
["30/09/2014 - 01/10/2014","US",3,3,3,298,"NA","Mix of US fighter and remotely piloted aircraft ","Near Kobani","Kobani, Ayn al-Arab: 36.889722° N, 38.355556° E","NA","ISIL strongholds near Kobani","The strikes were conducted as part of the President's comprehensive strategy to degrade and ultimately destroy ISIL. The destruction and degradation of ISIL targets in Syria and Iraq further limits the terrorist group's ability to lead, control, project power and conduct operations.","Destroyed 1 x ISIL armed vehicle, 1 x ISIL artillery piece, 1 x ISIL tank","NA","NA","NA","NA","NA","NA",2,2,1,1,"NA","NA","NA","NA","NA","NA","NA","NA","http://www.centcom.mil/en/news/articles/oct.-1-u.s.-military-partner-nation-conduct-airstrikes-against-isil"]
["30/09/2014 -01/10/2014","US & UK",3,3,3,301,"NA","Mix of coalition fighter and remotely piloted aircraft ","Northwest of Mosul","Mosul: 36.3400° N, 43.1300° E","NA","ISIL strongholds near Mosul ","The strikes were conducted as part of the President's comprehensive strategy to degrade and ultimately destroy ISIL. The destruction and degradation of ISIL targets in Syria and Iraq further limits the terrorist group's ability to lead, control, project power and conduct operations.","Destroyed 2 x ISIL armed vehicles,  1 x ISIL occupied building, and struck 2 x ISIL fighting positions","NA","NA","NA","NA",1,1,2,2,"NA","NA",2,2,"NA","NA","NA","NA","NA","NA","http://www.centcom.mil/en/news/articles/oct.-1-u.s.-military-partner-nation-conduct-airstrikes-against-isil"]
["30/09/2014 -01/10/2014","US & UK",1,1,1,302,"NA","Mix of coalition fighter and remotely piloted aircraft ","Near Haditha Dam","Haditha Dam: 34.2069° N, 42.3550° E","NA","ISIL strongholds near Haditha Dam","The strikes were conducted as part of the President's comprehensive strategy to degrade and ultimately destroy ISIL. The destruction and degradation of ISIL targets in Syria and Iraq further limits the terrorist group's ability to lead, control, project power and conduct operations.","Destroyed 1 x ISIL armed vehicle ","NA","NA","NA","NA","NA","NA",1,1,"NA","NA","NA","NA","NA","NA","NA","NA","NA","NA","http://www.centcom.mil/en/news/articles/oct.-1-u.s.-military-partner-nation-conduct-airstrikes-against-isil"]
["30/09/2014 -01/10/2014","US & UK",1,1,1,303,"NA","Mix of coalition fighter and remotely piloted aircraft ","Northwest of Baghdad ","Baghdad: 33.3250° N, 44.4220° E","NA","ISIL strongholds near Baghdad","The strikes were conducted as part of the President's comprehensive strategy to degrade and ultimately destroy ISIL. The destruction and degradation of ISIL targets in Syria and Iraq further limits the terrorist group's ability to lead, control, project power and conduct operations.","Destroyed 2 x armed vehicles","NA","NA","NA","NA","NA","NA",2,2,"NA","NA","NA","NA","NA","NA","NA","NA","NA","NA","http://www.centcom.mil/en/news/articles/oct.-1-u.s.-military-partner-nation-conduct-airstrikes-against-isil"]
["01/10/2014 - 02/10/2014","US & UAE",1,1,1,304,"NA","Mix of coalition fighter, attack, bomber and remotely piloted aircraft","East of Aleppo ","Aleppo: 36.2167° N, 37.1667° E","NA","ISIL strongholds near Aleppo","The strikes were conducted as part of the President's comprehensive strategy to degrade and ultimately destroy ISIL. The destruction and degradation of ISIL targets in Syria and Iraq further limits the terrorist group's ability to lead, control, project power and conduct operations","Struck multiple ISIL facilities","NA","NA","NA","NA","> 2","NA","NA","NA","NA","NA","NA","NA","NA","NA","NA","NA","NA","NA","http://www.centcom.mil/en/news/articles/oct.-2-u.s.-military-partner-nations-conduct-airstrikes-against-isil"]
["01/10/2014 - 02/10/2014","US & UAE",1,1,1,305,"NA","Mix of coalition fighter, attack, bomber and remotely piloted aircraft","West of Raqqah ","Ar Raqqah: 35.9500° N, 39.0167° E","NA","ISIL strongholds near Raqqah","The strikes were conducted as part of the President's comprehensive strategy to degrade and ultimately destroy ISIL. The destruction and degradation of ISIL targets in Syria and Iraq further limits the terrorist group's ability to lead, control, project power and conduct operations","Destroyed 1 x ISIL tank","NA","NA","NA","NA","NA","NA",1,1,"NA","NA","NA","NA","NA","NA","NA","NA",null,null,"http://www.centcom.mil/en/news/articles/oct.-2-u.s.-military-partner-nations-conduct-airstrikes-against-isil"]
["01/10/2014 - 02/10/2014","US & UAE",1,1,1,306,"NA","Mix of coalition fighter, attack, bomber and remotely piloted aircraft","North of Sinjar Mountain","Sinjar Mountain: 36.3667° N,  41.7218° E","NA","ISIL strongholds near Sinjar Mountain","The strikes were conducted as part of the President's comprehensive strategy to degrade and ultimately destroy ISIL. The destruction and degradation of ISIL targets in Syria and Iraq further limits the terrorist group's ability to lead, control, project power and conduct operations","Damaged 1 x ISIL tank","NA","NA","NA","NA","NA","NA",1,1,"NA","NA","NA","NA","NA","NA","NA","NA",null,null,"http://www.centcom.mil/en/news/articles/oct.-2-u.s.-military-partner-nations-conduct-airstrikes-against-isil"]
["01/10/2014 - 02/10/2014","US & UAE",1,1,1,307,"NA","Mix of coalition fighter, attack, bomber and remotely piloted aircraft","Near Kobani","Kobani, Ayn al-Arab: 36.889722° N, 38.355556° E","NA","ISIL strongholds near Kobani","The strikes were conducted as part of the President's comprehensive strategy to degrade and ultimately destroy ISIL. The destruction and degradation of ISIL targets in Syria and Iraq further limits the terrorist group's ability to lead, control, project power and conduct operations","Destroyed 1 x ISIL checkpoint","NA","NA","NA","NA","NA","NA","NA","NA","NA","NA","NA","NA",1,1,"NA","NA","NA","NA","http://www.centcom.mil/en/news/articles/oct.-2-u.s.-military-partner-nations-conduct-airstrikes-against-isil"]
["01/10/2014 - 02/10/2014","US & UK",1,1,1,308,"NA","Mix of coalition fighter, attack, bomber and remotely piloted aircraft","Northwest of Baghdad ","Baghdad: 33.3250° N, 44.4220° E","NA","ISIL strongholds near Baghdad","The strikes were conducted as part of the President's comprehensive strategy to degrade and ultimately destroy ISIL. The destruction and degradation of ISIL targets in Syria and Iraq further limits the terrorist group's ability to lead, control, project power and conduct operations","Destroyed 2 x ISIL armed vehicles and 2 x other ISIL vehicles","NA","NA","NA","NA","NA","NA",4,4,"NA","NA","NA","NA","NA","NA","NA","NA","NA","NA","http://www.centcom.mil/en/news/articles/oct.-2-u.s.-military-partner-nations-conduct-airstrikes-against-isil"]
["01/10/2014 - 02/10/2014","US & UK",2,2,2,310,"NA","Mix of coalition fighter, attack, bomber and remotely piloted aircraft","Northwest of Mosul","Mosul: 36.3400° N, 43.1300° E","NA","ISIL strongholds near Mosul ","The strikes were conducted as part of the President's comprehensive strategy to degrade and ultimately destroy ISIL. The destruction and degradation of ISIL targets in Syria and Iraq further limits the terrorist group's ability to lead, control, project power and conduct operations","Destroyed 1 x ISIL Humvee, damaged 2 x ISIL Humvees, destroyed 3 x armed vehicles, damaged 1 x armed vehicle, damaged 1 x other vehicle and damaged 1 x ISIL building","NA","NA","NA","NA",1,1,8,8,"NA","NA","NA","NA","NA","NA","NA","NA","NA","NA","http://www.centcom.mil/en/news/articles/oct.-2-u.s.-military-partner-nations-conduct-airstrikes-against-isil"]
["01/10/2014 - 02/10/2014","US & UK",1,1,1,311,"NA","Mix of coalition fighter, attack, bomber and remotely piloted aircraft","East of Fallujah ","Fallujah: 33.3500° N, 43.7833° E","NA","ISIL strongholds near Fallujah","The strikes were conducted as part of the President's comprehensive strategy to degrade and ultimately destroy ISIL. The destruction and degradation of ISIL targets in Syria and Iraq further limits the terrorist group's ability to lead, control, project power and conduct operations","Destroyed 1 x ISIL vehicle","NA","NA","NA","NA","NA","NA",1,1,"NA","NA","NA","NA","NA","NA","NA","NA","NA","NA","http://www.centcom.mil/en/news/articles/oct.-2-u.s.-military-partner-nations-conduct-airstrikes-against-isil"]
["01/10/2014 - 02/10/2014","US & UK",2,2,2,313,"NA","Mix of coalition fighter, attack, bomber and remotely piloted aircraft","West of Ramadi ","Ramadi: 33.4167° N, 43.3000° E","NA","ISIL strongholds near Ramadi","The strikes were conducted as part of the President's comprehensive strategy to degrade and ultimately destroy ISIL. The destruction and degradation of ISIL targets in Syria and Iraq further limits the terrorist group's ability to lead, control, project power and conduct operations","Damaged 1 x ISIL building and destroyed 1 x ISIL vehicle","NA","NA","NA","NA",1,1,1,1,"NA","NA","NA","NA","NA","NA","NA","NA","NA","NA","http://www.centcom.mil/en/news/articles/oct.-2-u.s.-military-partner-nations-conduct-airstrikes-against-isil"]
["01/10/2014 - 02/10/2014","US & UK",1,1,1,314,"NA","Mix of coalition fighter, attack, bomber and remotely piloted aircraft","Northeast of Sinjar","Sinjar: 36.3225° N, 41.8642° E","NA","ISIL strongholds near Sinjar ","The strikes were conducted as part of the President's comprehensive strategy to degrade and ultimately destroy ISIL. The destruction and degradation of ISIL targets in Syria and Iraq further limits the terrorist group's ability to lead, control, project power and conduct operations","Destroyed 1 x ISIL vehicle","NA","NA","NA","NA","NA","NA",1,1,"NA","NA","NA","NA","NA","NA","NA","NA","NA","NA","http://www.centcom.mil/en/news/articles/oct.-2-u.s.-military-partner-nations-conduct-airstrikes-against-isil"]
["02/10/2014 - 03/10/2014","US, UAE & Saudi Arabia",1,1,1,315,"NA","Mix of  coalition fighter and remotely piloted aircraft","West of Ar Raqqah","Ar Raqqah: 35.9500° N, 39.0167° E","NA","ISIL strongholds near Ar Raqqah","The strikes were conducted as part of the President's comprehensive strategy to degrade and ultimately destroy ISIL. The destruction and degradation of ISIL targets in Syria and Iraq further limits the terrorist group's ability to lead, control, project power and conduct operations","Strike against 1 x ISIL artillery piece unsuccessful","NA","NA","NA","NA","NA","NA","NA","NA",0,0,"NA","NA","NA","NA","NA","NA","NA","NA","http://www.defense.gov/home/features/2014/0814_iraq/Airstrikes5.html"]
["02/10/2014 - 03/10/2014","US, UAE & Saudi Arabia",1,1,1,316,"NA","Mix of  coalition fighter and remotely piloted aircraft","South of Al Hasakah","Al Hasakah: 36.5000° N, 40.9000° E","NA","ISIL strongholds near Al Hasakah","The strikes were conducted as part of the President's comprehensive strategy to degrade and ultimately destroy ISIL. The destruction and degradation of ISIL targets in Syria and Iraq further limits the terrorist group's ability to lead, control, project power and conduct operations","Destroyed 1 x ISIL garrison","NA","NA","NA","NA",1,1,"NA","NA","NA","NA","NA","NA","NA","NA","NA","NA","NA","NA","http://www.defense.gov/home/features/2014/0814_iraq/Airstrikes5.html"]
["02/10/2014 - 03/10/2014","US, UAE & Saudi Arabia",1,1,1,317,"NA","Mix of  coalition fighter and remotely piloted aircraft","Southeast of Dayr Az Zawr","Dayr az Zawr: 35.3333° N, 40.1500° E","NA","ISIL strongholds near  Dayr Az Zawr","The strikes were conducted as part of the President's comprehensive strategy to degrade and ultimately destroy ISIL. The destruction and degradation of ISIL targets in Syria and Iraq further limits the terrorist group's ability to lead, control, project power and conduct operations","Destroyed 2 x ISIL tanks","NA","NA","NA","NA","NA","NA",2,2,"NA","NA","NA","NA","NA","NA","NA","NA","NA","NA","http://www.defense.gov/home/features/2014/0814_iraq/Airstrikes5.html"]
["02/10/2014 - 03/10/2014","US, UAE & Saudi Arabia",2,2,2,319,"NA","Mix of  coalition fighter and remotely piloted aircraft","North of Ar Raqqah","Ar Raqqah: 35.9500° N, 39.0167° E","NA","ISIL strongholds near Ar Raqqah","The strikes were conducted as part of the President's comprehensive strategy to degrade and ultimately destroy ISIL. The destruction and degradation of ISIL targets in Syria and Iraq further limits the terrorist group's ability to lead, control, project power and conduct operations","Struck 2 x modular oil refineries and 1 x ISIL training camp",1,1,2,2,"NA","NA","NA","NA","NA","NA","NA","NA","NA","NA","NA","NA","NA","NA","http://www.defense.gov/home/features/2014/0814_iraq/Airstrikes5.html"]
["02/10/2014 - 03/10/2014","US, UAE & Saudi Arabia",1,1,1,320,"NA","Mix of  coalition fighter and remotely piloted aircraft","Northeast of Aleppo ","Aleppo: 36.2167° N, 37.1667° E","NA","ISIL strongholds near Aleppo","The strikes were conducted as part of the President's comprehensive strategy to degrade and ultimately destroy ISIL. The destruction and degradation of ISIL targets in Syria and Iraq further limits the terrorist group's ability to lead, control, project power and conduct operations","Struck 1 x ISIL occupied building","NA","NA","NA","NA",1,1,"NA","NA","NA","NA","NA","NA","NA","NA","NA","NA","NA","NA","http://www.defense.gov/home/features/2014/0814_iraq/Airstrikes5.html"]
["2014-10-03","US",1,1,1,321,"NA","US attack aircraft","North of Sinjar","Sinjar: 36.3225° N, 41.8642° E","NA","ISIL strongholds near Sinjar ","The strikes were conducted as part of the President's comprehensive strategy to degrade and ultimately destroy ISIL. The destruction and degradation of ISIL targets in Syria and Iraq further limits the terrorist group's ability to lead, control, project power and conduct operations","Destroyed  2 x ISIL armed vehicles","NA","NA","NA","NA","NA","NA",2,2,"NA","NA","NA","NA","NA","NA","NA","NA","NA","NA","http://www.defense.gov/home/features/2014/0814_iraq/Airstrikes5.html"]
["2014-10-03","US",2,2,2,323,"NA","US attack aircraft","Northeast of Fallujah","Fallujah: 33.3500° N, 43.7833° E","NA","ISIL strongholds near Fallujah","The strikes were conducted as part of the President's comprehensive strategy to degrade and ultimately destroy ISIL. The destruction and degradation of ISIL targets in Syria and Iraq further limits the terrorist group's ability to lead, control, project power and conduct operations","Struck ISIL fighters","NA","NA","NA","NA","NA","NA","NA","NA","NA","NA","NA","NA","NA","NA","NA","NA","> 2","NA","http://www.defense.gov/home/features/2014/0814_iraq/Airstrikes5.html"]
["03/10/2014 -04/10/2014","US, Jordan, UAE & Saudi Arabia",2,2,2,325,"NA","Mix of  coalition fighter and remotely piloted aircraft ","South of Ayn al Arab ","Kobani, Ayn al-Arab: 36.8897° N, 38.3556° E","NA","ISIL strongholds near Ayn al Arab ","The strikes were conducted as part of the President's comprehensive strategy to degrade and ultimately destroy ISIL. The destruction and degradation of ISIL targets in Syria and Iraq further limits the terrorist group's ability to lead, control, project power and conduct operations","Destroyed  1 x ISIL APC,  1 x ISIL vehicle and struck 1 x small ISIL unit","NA","NA","NA","NA","NA","NA",2,2,"NA","NA",1,1,"NA","NA","NA","NA","NA","NA","http://www.defense.gov/home/features/2014/0814_iraq/Airstrikes5.html"]
["03/10/2014 -04/10/2014","US, Jordan, UAE & Saudi Arabia",2,2,2,327,"NA","Mix of  coalition fighter and remotely piloted aircraft ","East of Ayn al Arab","Kobani, Ayn al-Arab: 36.8897° N, 38.3556° E","NA","ISIL strongholds near Ayn al Arab ","The strikes were conducted as part of the President's comprehensive strategy to degrade and ultimately destroy ISIL. The destruction and degradation of ISIL targets in Syria and Iraq further limits the terrorist group's ability to lead, control, project power and conduct operations","Destroyed 1 x ISIL vehicle, 1 x ISIL building, 3 x artillery positions and struck 1 x large ISIL unit","NA","NA","NA","NA",1,1,1,1,"NA","NA",4,4,"NA","NA","NA","NA","NA","NA","http://www.defense.gov/home/features/2014/0814_iraq/Airstrikes5.html"]
["03/10/2014 -04/10/2014","US, Jordan, UAE & Saudi Arabia",2,2,2,329,"NA","Mix of  coalition fighter and remotely piloted aircraft ","Southeast of Dayr Az Zawr ","Dayr az Zawr: 35.3333° N, 40.1500° E","NA","ISIL strongholds near  Dayr Az Zawr","The strikes were conducted as part of the President's comprehensive strategy to degrade and ultimately destroy ISIL. The destruction and degradation of ISIL targets in Syria and Iraq further limits the terrorist group's ability to lead, control, project power and conduct operations","Destroyed 1 x ISIL tank and 1 x ISIL vehicle","NA","NA","NA","NA","NA","NA",2,2,"NA","NA","NA","NA","NA","NA","NA","NA","NA","NA","http://www.defense.gov/home/features/2014/0814_iraq/Airstrikes5.html"]
["03/10/2014 -04/10/2014","US, Jordan, UAE & Saudi Arabia",1,1,1,330,"NA","Mix of  coalition fighter and remotely piloted aircraft ","Tabqah Airfield, southwest of Ar Raqqah","Tabqah Airfield: 35.764722°N, 38.566944°E","NA","Tabqah Airfield","The strikes were conducted as part of the President's comprehensive strategy to degrade and ultimately destroy ISIL. The destruction and degradation of ISIL targets in Syria and Iraq further limits the terrorist group's ability to lead, control, project power and conduct operations","Damaged TabqahAirfield","NA","NA","NA","NA",1,1,"NA","NA","NA","NA","NA","NA","NA","NA","NA","NA","NA","NA","http://www.defense.gov/home/features/2014/0814_iraq/Airstrikes5.html"]
["03/10/2014 -04/10/2014","US, Jordan, UAE & Saudi Arabia",1,1,1,331,"NA","Mix of  coalition fighter and remotely piloted aircraft ","West of Ar Raqqah","Ar Raqqah: 35.9500° N, 39.0167° E","NA","ISIL strongholds near Ar Raqqah","The strikes were conducted as part of the President's comprehensive strategy to degrade and ultimately destroy ISIL. The destruction and degradation of ISIL targets in Syria and Iraq further limits the terrorist group's ability to lead, control, project power and conduct operations","Destroyed 1 x ISIL artillery piece","NA","NA","NA","NA","NA","NA","NA","NA",1,1,"NA","NA","NA","NA","NA","NA","NA","NA","http://www.defense.gov/home/features/2014/0814_iraq/Airstrikes5.html"]
["03/10/2014 -04/10/2014","US, Jordan, UAE & Saudi Arabia",1,1,1,332,"NA","Mix of  coalition fighter and remotely piloted aircraft ","South of Al Hasakah","Al Hasakah: 36.5000° N, 40.9000° E","NA","ISIL strongholds near Al Hasakah","The strikes were conducted as part of the President's comprehensive strategy to degrade and ultimately destroy ISIL. The destruction and degradation of ISIL targets in Syria and Iraq further limits the terrorist group's ability to lead, control, project power and conduct operations","Destroyed 1 x ISIL depot and logistics complex.","NA","NA","NA","NA",1,1,"NA","NA","NA","NA","NA","NA","NA","NA","NA","NA","NA","NA","http://www.defense.gov/home/features/2014/0814_iraq/Airstrikes5.html"]
["03/10/2014 -04/10/2014","US",2,2,2,334,"NA","Mix of US attack, bomber and fighter aircraft ","Northeast of Fallujah","Fallujah: 33.3500° N, 43.7833° E","NA","ISIL strongholds near Fallujah","The strikes were conducted as part of the President's comprehensive strategy to degrade and ultimately destroy ISIL. The destruction and degradation of ISIL targets in Syria and Iraq further limits the terrorist group's ability to lead, control, project power and conduct operations","Destroyed 1 x ISIL vehicle and struck 1 x small ISIL unit","NA","NA","NA","NA","NA","NA",1,1,"NA","NA",1,1,"NA","NA","NA","NA","NA","NA","http://www.defense.gov/home/features/2014/0814_iraq/Airstrikes5.html"]
["03/10/2014 -04/10/2014","US",1,1,1,335,"NA","Mix of US attack, bomber and fighter aircraft ","South of Rabiyah","Rabiyah: 36.804722° N, 42.088889° E","NA","ISIL strongholds near Rabiyah","The strikes were conducted as part of the President's comprehensive strategy to degrade and ultimately destroy ISIL. The destruction and degradation of ISIL targets in Syria and Iraq further limits the terrorist group's ability to lead, control, project power and conduct operations","Struck 1 x large ISIL unit","NA","NA","NA","NA","NA","NA","NA","NA","NA","NA",1,1,"NA","NA","NA","NA","NA","NA","http://www.defense.gov/home/features/2014/0814_iraq/Airstrikes5.html"]
["03/10/2014 -04/10/2014","US",1,1,1,336,"NA","Mix of US attack, bomber and fighter aircraft ","North of Hit","Hit: 33.6450° N, 42.8264° E","NA","ISIL strongholds near Hit","The strikes were conducted as part of the President's comprehensive strategy to degrade and ultimately destroy ISIL. The destruction and degradation of ISIL targets in Syria and Iraq further limits the terrorist group's ability to lead, control, project power and conduct operations","Destroyed 2 x ISIL humvees","NA","NA","NA","NA","NA","NA",2,2,"NA","NA","NA","NA","NA","NA","NA","NA","NA","NA","http://www.defense.gov/home/features/2014/0814_iraq/Airstrikes5.html"]
["03/10/2014 -04/10/2014","US",1,1,1,337,"NA","Mix of US attack, bomber and fighter aircraft ","North of Ramadi ","Ramadi: 33.4167° N, 43.3000° E","NA","ISIL strongholds near Ramadi","The strikes were conducted as part of the President's comprehensive strategy to degrade and ultimately destroy ISIL. The destruction and degradation of ISIL targets in Syria and Iraq further limits the terrorist group's ability to lead, control, project power and conduct operations","Destroyed  1x ISIL APC","NA","NA","NA","NA","NA","NA",1,1,"NA","NA","NA","NA","NA","NA","NA","NA","NA","NA","http://www.defense.gov/home/features/2014/0814_iraq/Airstrikes5.html"]
["04/10/2014 - 05/10/2014","US",1,1,1,338,"NA","US fighter aircraft","Northwest of Al Mayadin","Al Mayadin: 35.0167° N, 40.4500° E","NA","ISIL strongholds northwest of Al Mayadin","The strikes were conducted as part of the President's comprehensive strategy to degrade and ultimately destroy ISIL. The destruction and degradation of ISIL targets in Syria and Iraq further limits the terrorist group's ability to lead, control, project power and conduct operations","Destroyed 1 x ISIL bulldozer, 2 x ISIL tanks and destroyed 1 x ISIL vehicle","NA","NA","NA","NA","NA","NA",4,4,"NA","NA","NA","NA","NA","NA","NA","NA","NA","NA","http://www.defense.gov/home/features/2014/0814_iraq/Airstrikes5.html"]
["04/10/2014 - 05/10/2014","US",2,2,2,340,"NA","US fighter aircraft","Northwest of Ar Raqqah","Ar Raqqah: 35.9500° N, 39.0167° E","NA","ISIL strongholds near Ar Raqqah","The strikes were conducted as part of the President's comprehensive strategy to degrade and ultimately destroy ISIL. The destruction and degradation of ISIL targets in Syria and Iraq further limits the terrorist group's ability to lead, control, project power and conduct operations","Struck 1 x large ISIL unit and destroyed 6 x ISIL firing positions","NA","NA","NA","NA","NA","NA","NA","NA","NA","NA",7,7,"NA","NA","NA","NA","NA","NA","http://www.defense.gov/home/features/2014/0814_iraq/Airstrikes5.html"]
["04/10/2014 - 05/10/2014","US",4,4,4,344,"NA","Mix of US attack, bomber, fighter and helicopter aircraft","Northeast of Fallujah ","Fallujah: 33.3500° N, 43.7833° E","NA","ISIL strongholds near Fallujah","The strikes were conducted as part of the President's comprehensive strategy to degrade and ultimately destroy ISIL. The destruction and degradation of ISIL targets in Syria and Iraq further limits the terrorist group's ability to lead, control, project power and conduct operations","Struck 2 x mortar teams,1 x large ISIL unit and 2 x small ISIL units","NA","NA","NA","NA","NA","NA","NA","NA","NA","NA",5,5,"NA","NA","NA","NA","NA","NA","http://www.defense.gov/home/features/2014/0814_iraq/Airstrikes5.html"]
["04/10/2014 - 05/10/2014","US",1,1,1,345,"NA","Mix of US attack, bomber, fighter and helicopter aircraft","Southeast of Hit","Hit: 33.6450° N, 42.8264° E","NA","ISIL strongholds near Hit","The strikes were conducted as part of the President's comprehensive strategy to degrade and ultimately destroy ISIL. The destruction and degradation of ISIL targets in Syria and Iraq further limits the terrorist group's ability to lead, control, project power and conduct operations","Destroyed 2 x ISIL humvees","NA","NA","NA","NA","NA","NA",2,2,"NA","NA","NA","NA","NA","NA","NA","NA","NA","NA","http://www.defense.gov/home/features/2014/0814_iraq/Airstrikes5.html"]
["04/10/2014 - 05/10/2014","US",1,1,1,346,"NA","Mix of US attack, bomber, fighter and helicopter aircraft","Northeast of Sinjar ","Sinjar: 36.3225° N, 41.8642° E","NA","ISIL strongholds near Sinjar ","The strikes were conducted as part of the President's comprehensive strategy to degrade and ultimately destroy ISIL. The destruction and degradation of ISIL targets in Syria and Iraq further limits the terrorist group's ability to lead, control, project power and conduct operations","Destroyed 1 x ISIL Humvee","NA","NA","NA","NA","NA","NA",1,1,"NA","NA","NA","NA","NA","NA","NA","NA","NA","NA","http://www.defense.gov/home/features/2014/0814_iraq/Airstrikes5.html"]
["05/10/2014 - 06/10/2014","US",1,1,1,347,"NA","Mix of US fighter and remotely piloted aircraft","Near Taqba Airfield ","Taqba Airfield: 35.4553°N, 38.341°E","NA","ISIL strongholds near Taqba Airfield","The strikes were conducted as part of the President's comprehensive strategy to degrade and ultimately destroy ISIL. The destruction and degradation of ISIL targets in Syria and Iraq further limits the terrorist group's ability to lead, control, project power and conduct operations","Destroyed 1 x  ISIL tank ","NA","NA","NA","NA","NA","NA",1,1,"NA","NA","NA","NA","NA","NA","NA","NA","NA","NA"," http://www.centcom.mil/en/news/articles/oct.-6-u.s.-military-partner-nations-conduct-airstrikes-against-isil-in-syr"]
["05/10/2014 - 06/10/2014","US",1,1,1,348,"NA","Mix of US fighter and remotely piloted aircraft","South of Kobani","Kobani, Ayn al-Arab: 36.889722° N, 38.355556° E","NA","ISIL strongholds near Kobani","The strikes were conducted as part of the President's comprehensive strategy to degrade and ultimately destroy ISIL. The destruction and degradation of ISIL targets in Syria and Iraq further limits the terrorist group's ability to lead, control, project power and conduct operations","Destroyed 2 x ISIL fighting positions ","NA","NA","NA","NA","NA","NA","NA","NA","NA","NA",2,2,"NA","NA","NA","NA","NA","NA"," http://www.centcom.mil/en/news/articles/oct.-6-u.s.-military-partner-nations-conduct-airstrikes-against-isil-in-syr"]
["05/10/2014 - 06/10/2014","US",1,1,1,349,"NA","Mix of US fighter and remotely piloted aircraft","Southeast of Dayr az Zawr ","Dayr az Zawr: 35.3333° N, 40.1500° E","NA","ISIL strongholds near  Dayr Az Zawr","The strikes were conducted as part of the President's comprehensive strategy to degrade and ultimately destroy ISIL. The destruction and degradation of ISIL targets in Syria and Iraq further limits the terrorist group's ability to lead, control, project power and conduct operations","Destroyed 1 x ISIL tank","NA","NA","NA","NA","NA","NA",1,1,"NA","NA","NA","NA","NA","NA","NA","NA","NA","NA"," http://www.centcom.mil/en/news/articles/oct.-6-u.s.-military-partner-nations-conduct-airstrikes-against-isil-in-syr"]
["05/10/2014 - 06/10/2014","US, Belgium & UK",2,2,2,351,"NA","Mix of coalition remotely piloted and rotary wing aircraft","Northeast of Fallujah ","Fallujah: 33.3500° N, 43.7833° E","NA","ISIL strongholds near Fallujah","The strikes were conducted as part of the President's comprehensive strategy to degrade and ultimately destroy ISIL. The destruction and degradation of ISIL targets in Syria and Iraq further limits the terrorist group's ability to lead, control, project power and conduct operations","Struck 2 x small ISIL units and destroyed 2 x ISIL mortar placements and 1 x ISIL bunker","NA","NA","NA","NA",1,1,"NA","NA",2,2,2,2,"NA","NA","NA","NA","NA","NA"," http://www.centcom.mil/en/news/articles/oct.-6-u.s.-military-partner-nations-conduct-airstrikes-against-isil-in-syr"]
["05/10/2014 - 06/10/2014","US, Belgium & UK",1,1,1,352,"NA","Mix of coalition remotely piloted and rotary wing aircraft","West of Ramadi ","Ramadi: 33.4167° N, 43.3000° E","NA","ISIL strongholds near Ramadi","The strikes were conducted as part of the President's comprehensive strategy to degrade and ultimately destroy ISIL. The destruction and degradation of ISIL targets in Syria and Iraq further limits the terrorist group's ability to lead, control, project power and conduct operations","Damaged 1 x ISIL-held building","NA","NA","NA","NA",1,1,"NA","NA","NA","NA","NA","NA","NA","NA","NA","NA","NA","NA"," http://www.centcom.mil/en/news/articles/oct.-6-u.s.-military-partner-nations-conduct-airstrikes-against-isil-in-syr"]
["06/10/2014 - 07/10/2014","US, UAE & Saudi Arabia",2,2,2,354,"NA","Mix of coalition attack, bomber, fighter, and remotely piloted aircraft ","West of Al-Hasakah ","Al Hasakah: 36.5000° N, 40.9000° E","NA","ISIL strongholds near Al Hasakah","The strikes were conducted as part of the President's comprehensive strategy to degrade and ultimately destroy ISIL. The destruction and degradation of ISIL targets in Syria and Iraq further limits the terrorist group's ability to lead, control, project power and conduct operations","Struck multiple ISIL buildings, (including an air observation building and staging areas).","NA","NA","NA","NA","> 3","NA","NA","NA","NA","NA","NA","NA","NA","NA","NA","NA","NA","NA","http://www.centcom.mil/en/news/articles/oct.-7-u.s.-military-partner-nations-conduct-airstrikes-against-isil"]
["06/10/2014 - 07/10/2014","US, UAE & Saudi Arabia",1,1,1,355,"NA","Mix of coalition attack, bomber, fighter, and remotely piloted aircraft ","Northeast of Dayr az Zawr ","Dayr az Zawr: 35.3333° N, 40.1500° E","NA","ISIL strongholds near  Dayr Az Zawr","The strikes were conducted as part of the President's comprehensive strategy to degrade and ultimately destroy ISIL. The destruction and degradation of ISIL targets in Syria and Iraq further limits the terrorist group's ability to lead, control, project power and conduct operations","Struck 1 x ISIL staging area and 1 x IED production facility","NA","NA","NA","NA",2,2,"NA","NA","NA","NA","NA","NA","NA","NA","NA","NA","NA","NA","http://www.centcom.mil/en/news/articles/oct.-7-u.s.-military-partner-nations-conduct-airstrikes-against-isil"]
["06/10/2014 - 07/10/2014","US, UAE & Saudi Arabia",1,1,1,356,"NA","Mix of coalition attack, bomber, fighter, and remotely piloted aircraft ","South of Kobani ","Kobani, Ayn al-Arab: 36.889722° N, 38.355556° E","NA","ISIL strongholds near Kobani","The strikes were conducted as part of the President's comprehensive strategy to degrade and ultimately destroy ISIL. The destruction and degradation of ISIL targets in Syria and Iraq further limits the terrorist group's ability to lead, control, project power and conduct operations","Destroyed 3 x ISIL armed vehicles and damaged 1 x  ISIL armed vehicles ","NA","NA","NA","NA","NA","NA",4,4,"NA","NA","NA","NA","NA","NA","NA","NA","NA","NA","http://www.centcom.mil/en/news/articles/oct.-7-u.s.-military-partner-nations-conduct-airstrikes-against-isil"]
["06/10/2014 - 07/10/2014","US, UAE & Saudi Arabia",1,1,1,{"$f":"F176+E177","v":357},"NA","Mix of coalition attack, bomber, fighter, and remotely piloted aircraft ","Southeast of Kobani ","Kobani, Ayn al-Arab: 36.889722° N, 38.355556° E","NA","ISIL strongholds near Kobani","The strikes were conducted as part of the President's comprehensive strategy to degrade and ultimately destroy ISIL. The destruction and degradation of ISIL targets in Syria and Iraq further limits the terrorist group's ability to lead, control, project power and conduct operations","Destroyed 1 x ISIL armed vehicle carrying anti-aircraft artillery.","NA","NA","NA","NA","NA","NA",1,1,1,1,"NA","NA","NA","NA","NA","NA","NA","NA","http://www.centcom.mil/en/news/articles/oct.-7-u.s.-military-partner-nations-conduct-airstrikes-against-isil"]
["06/10/2014 - 07/10/2014","US, UAE & Saudi Arabia",2,2,2,359,"NA","Mix of coalition attack, bomber, fighter, and remotely piloted aircraft ","Southwest of Kobani ","Kobani, Ayn al-Arab: 36.889722° N, 38.355556° E","NA","ISIL strongholds near Kobani","The strikes were conducted as part of the President's comprehensive strategy to degrade and ultimately destroy ISIL. The destruction and degradation of ISIL targets in Syria and Iraq further limits the terrorist group's ability to lead, control, project power and conduct operations","Damaged 1 x ISIL tank","NA","NA","NA","NA","NA","NA",1,1,"NA","NA","NA","NA","NA","NA","NA","NA","NA","NA","http://www.centcom.mil/en/news/articles/oct.-7-u.s.-military-partner-nations-conduct-airstrikes-against-isil"]
["06/10/2014 - 07/10/2014","US, UAE & Saudi Arabia",1,1,1,360,"NA","Mix of coalition attack, bomber, fighter, and remotely piloted aircraft ","South of Kobani ","Kobani, Ayn al-Arab: 36.889722° N, 38.355556° E","NA","ISIL strongholds near Kobani","The strikes were conducted as part of the President's comprehensive strategy to degrade and ultimately destroy ISIL. The destruction and degradation of ISIL targets in Syria and Iraq further limits the terrorist group's ability to lead, control, project power and conduct operations","Destroyed 1 x ISIL unit","NA","NA","NA","NA","NA","NA","NA","NA","NA","NA",1,1,"NA","NA","NA","NA","NA","NA","http://www.centcom.mil/en/news/articles/oct.-7-u.s.-military-partner-nations-conduct-airstrikes-against-isil"]
["06/10/2014 - 07/10/2014","US, UAE & Saudi Arabia",1,1,1,361,"NA","Mix of coalition attack, bomber, fighter, and remotely piloted aircraft ","Southwest of Rabiyah ","Rabiyah: 36.804722° N, 42.088889° E","NA","ISIL strongholds near Rabiyah","The strikes were conducted as part of the President's comprehensive strategy to degrade and ultimately destroy ISIL. The destruction and degradation of ISIL targets in Syria and Iraq further limits the terrorist group's ability to lead, control, project power and conduct operations","Struck a small group of ISIL fighters","NA","NA","NA","NA","NA","NA","NA","NA","NA","NA","NA","NA","NA","NA","NA","NA",">2","NA","http://www.centcom.mil/en/news/articles/oct.-7-u.s.-military-partner-nations-conduct-airstrikes-against-isil"]
["06/10/2014 - 07/10/2014","US & Belgium ",1,1,1,362,"NA","Mix of US attack and remotely piloted aircraft ","Northeast of Sinjar","Sinjar: 36.3225° N, 41.8642° E","NA","ISIL strongholds near Sinjar ","The strikes were conducted as part of the President's comprehensive strategy to degrade and ultimately destroy ISIL. The destruction and degradation of ISIL targets in Syria and Iraq further limits the terrorist group's ability to lead, control, project power and conduct operations","Destroyed 1 x ISIL armed vehicle firing on Peshmerga forces ","NA","NA","NA","NA","NA","NA",1,1,"NA","NA","NA","NA","NA","NA","NA","NA","NA","NA","http://www.centcom.mil/en/news/articles/oct.-7-u.s.-military-partner-nations-conduct-airstrikes-against-isil"]
["06/10/2014 - 07/10/2014","US & Belgium ",1,1,1,363,"NA","Mix of US attack and remotely piloted aircraft ","Northeast of Sinjar ","Sinjar: 36.3225° N, 41.8642° E","NA","ISIL strongholds near Sinjar ","The strikes were conducted as part of the President's comprehensive strategy to degrade and ultimately destroy ISIL. The destruction and degradation of ISIL targets in Syria and Iraq further limits the terrorist group's ability to lead, control, project power and conduct operations","Destroyed 2 x ISIL armed vehicles","NA","NA","NA","NA","NA","NA",2,2,"NA","NA","NA","NA","NA","NA","NA","NA","NA","NA","http://www.centcom.mil/en/news/articles/oct.-7-u.s.-military-partner-nations-conduct-airstrikes-against-isil"]
["06/10/2014 - 07/10/2014","US & Belgium ",1,1,1,364,"NA","Mix of US attack and remotely piloted aircraft ","Northeast of Sinjar ","Sinjar: 36.3225° N, 41.8642° E","NA","ISIL strongholds near Sinjar ","The strikes were conducted as part of the President's comprehensive strategy to degrade and ultimately destroy ISIL. The destruction and degradation of ISIL targets in Syria and Iraq further limits the terrorist group's ability to lead, control, project power and conduct operations","Destroyed 1 x ISIL armed vehicle","NA","NA","NA","NA","NA","NA",1,1,"NA","NA","NA","NA","NA","NA","NA","NA","NA","NA","http://www.centcom.mil/en/news/articles/oct.-7-u.s.-military-partner-nations-conduct-airstrikes-against-isil"]
["06/10/2014 - 07/10/2014","US & Belgium ",1,1,1,365,"NA","Mix of US attack and remotely piloted aircraft ","Northeast of Sinjar ","Sinjar: 36.3225° N, 41.8642° E","NA","ISIL strongholds near Sinjar ","The strikes were conducted as part of the President's comprehensive strategy to degrade and ultimately destroy ISIL. The destruction and degradation of ISIL targets in Syria and Iraq further limits the terrorist group's ability to lead, control, project power and conduct operations","Struck a small group of ISIL fighters","NA","NA","NA","NA","NA","NA","NA","NA","NA","NA","NA","NA","NA","NA","NA","NA",">2","NA","http://www.centcom.mil/en/news/articles/oct.-7-u.s.-military-partner-nations-conduct-airstrikes-against-isil"]
["7/10/2014 - 8/10/2014","US & UAE",4,4,4,369,"NA","Mix of coalition bomber, fighter, and remotely piloted aircraft","South of Kobani ","Kobani, Ayn al-Arab: 36.889722° N, 38.355556° E","NA","ISIL strongholds near Kobani","The strikes were conducted as part of the President's comprehensive strategy to degrade and ultimately destroy ISIL. The destruction and degradation of ISIL targets in Syria and Iraq further limits the terrorist group's ability to lead, control, project power and conduct operations","Destroyed 1 x ISIL APC, destroyed 3 x ISIL armed vehicles and damaged  1 x ISIL armed vehicle, and destroyed 1 x ISIL artillery piece","NA","NA","NA","NA","NA","NA",5,5,1,1,"NA","NA","NA","NA","NA","NA","NA","NA","http://www.centcom.mil/en/news/articles/oct.-8-u.s.-military-partner-nations-conduct-airstrikes-against-isil"]
["7/10/2014 - 8/10/2014","US & UAE",1,1,1,370,"NA","Mix of coalition bomber, fighter, and remotely piloted aircraft","Southwest of Kobani","Kobani, Ayn al-Arab: 36.889722° N, 38.355556° E","NA","ISIL strongholds near Kobani","The strikes were conducted as part of the President's comprehensive strategy to degrade and ultimately destroy ISIL. The destruction and degradation of ISIL targets in Syria and Iraq further limits the terrorist group's ability to lead, control, project power and conduct operations","Destroyed 1 x ISIL armed vehicle","NA","NA","NA","NA","NA","NA",1,1,"NA","NA","NA","NA","NA","NA","NA","NA","NA","NA","http://www.centcom.mil/en/news/articles/oct.-8-u.s.-military-partner-nations-conduct-airstrikes-against-isil"]
["7/10/2014 - 8/10/2014","US & UAE",1,1,1,371,"NA","Mix of coalition bomber, fighter, and remotely piloted aircraft","Southern edge of Kobani","Kobani, Ayn al-Arab: 36.889722° N, 38.355556° E","NA","ISIL strongholds near Kobani","The strikes were conducted as part of the President's comprehensive strategy to degrade and ultimately destroy ISIL. The destruction and degradation of ISIL targets in Syria and Iraq further limits the terrorist group's ability to lead, control, project power and conduct operations","Destroyed 1 x ISIL artillery piece","NA","NA","NA","NA","NA","NA","NA","NA",1,1,"NA","NA","NA","NA","NA","NA","NA","NA","http://www.centcom.mil/en/news/articles/oct.-8-u.s.-military-partner-nations-conduct-airstrikes-against-isil"]
["7/10/2014 - 8/10/2014","US & UAE",2,2,2,373,"NA","Mix of coalition bomber, fighter, and remotely piloted aircraft","Northwest of Ar Raqqah ","Ar Raqqah: 35.9500° N, 39.0167° E","NA","ISIL strongholds near Ar Raqqah","The strikes were conducted as part of the President's comprehensive strategy to degrade and ultimately destroy ISIL. The destruction and degradation of ISIL targets in Syria and Iraq further limits the terrorist group's ability to lead, control, project power and conduct operations","Struck 1 x active ISIL training camp and associated ISIL fighters.",1,1,"NA","NA","NA","NA","NA","NA","NA","NA","NA","NA","NA","NA","NA","NA","> 2","NA","http://www.centcom.mil/en/news/articles/oct.-8-u.s.-military-partner-nations-conduct-airstrikes-against-isil"]
["7/10/2014 - 8/10/2014","US & UAE",1,1,1,374,"NA","Mix of coalition bomber, fighter, and remotely piloted aircraft","Northwest of Dayr az Zawr ","Dayr az Zawr: 35.3333° N, 40.1500° E","NA","ISIL strongholds near  Dayr Az Zawr","The strikes were conducted as part of the President's comprehensive strategy to degrade and ultimately destroy ISIL. The destruction and degradation of ISIL targets in Syria and Iraq further limits the terrorist group's ability to lead, control, project power and conduct operations","Destroyed 1 x ISIL tank","NA","NA","NA","NA","NA","NA",1,1,"NA","NA","NA","NA","NA","NA","NA","NA","NA","NA","http://www.centcom.mil/en/news/articles/oct.-8-u.s.-military-partner-nations-conduct-airstrikes-against-isil"]
["7/10/2014 - 8/10/2014","US, UK & Netherlands",1,1,1,375,"NA","Mix of US fighter and remotely piloted aircraft","East of Fallujah","Fallujah: 33.3500° N, 43.7833° E","NA","ISIL strongholds near Fallujah","The strikes were conducted as part of the President's comprehensive strategy to degrade and ultimately destroy ISIL. The destruction and degradation of ISIL targets in Syria and Iraq further limits the terrorist group's ability to lead, control, project power and conduct operations","Destroyed 1 x ISIL checkpoint and 1 x ISIL armed vehicle","NA","NA","NA","NA","NA","NA",1,1,"NA","NA","NA","NA",1,1,"NA","NA","NA","NA","http://www.centcom.mil/en/news/articles/oct.-8-u.s.-military-partner-nations-conduct-airstrikes-against-isil"]
["7/10/2014 - 8/10/2014","US, UK & Netherlands",1,1,1,376,"NA","Mix of US fighter and remotely piloted aircraft","Western Ramadi ","Ramadi: 33.4167° N, 43.3000° E","NA","ISIL strongholds near Ramadi","The strikes were conducted as part of the President's comprehensive strategy to degrade and ultimately destroy ISIL. The destruction and degradation of ISIL targets in Syria and Iraq further limits the terrorist group's ability to lead, control, project power and conduct operations","Destroyed 3 x ISIL-held buildings and damaged 2 x ISIL-held buildings , destroyed 2 x ISIL anti-aircraft artillery pieces, and destroyed 1 x ISIL unit.","NA","NA","NA","NA",5,5,"NA","NA",2,2,1,1,"NA","NA","NA","NA","NA","NA","http://www.centcom.mil/en/news/articles/oct.-8-u.s.-military-partner-nations-conduct-airstrikes-against-isil"]
["7/10/2014 - 8/10/2014","US, UK & Netherlands",1,1,1,377,"NA","Mix of US fighter and remotely piloted aircraft","Northwest of Ramadi ","Ramadi: 33.4167° N, 43.3000° E","NA","ISIL strongholds near Ramadi","The strikes were conducted as part of the President's comprehensive strategy to degrade and ultimately destroy ISIL. The destruction and degradation of ISIL targets in Syria and Iraq further limits the terrorist group's ability to lead, control, project power and conduct operations","Destroyed 1 x ISIL checkpoint","NA","NA","NA","NA","NA","NA","NA","NA","NA","NA","NA","NA",1,1,"NA","NA","NA","NA","http://www.centcom.mil/en/news/articles/oct.-8-u.s.-military-partner-nations-conduct-airstrikes-against-isil"]
["7/10/2014 - 8/10/2014","US, UK & Netherlands",1,1,1,378,"NA","Mix of US fighter and remotely piloted aircraft","Northeast of Sinjar Mountain ","Sinjar Mountain: 36.3667° N,  41.7218° E","NA","ISIL strongholds near Sinjar ","The strikes were conducted as part of the President's comprehensive strategy to degrade and ultimately destroy ISIL. The destruction and degradation of ISIL targets in Syria and Iraq further limits the terrorist group's ability to lead, control, project power and conduct operations","Destroyed 1 x ISIL armed vehicle","NA","NA","NA","NA","NA","NA",1,1,"NA","NA","NA","NA","NA","NA","NA","NA","NA","NA","http://www.centcom.mil/en/news/articles/oct.-8-u.s.-military-partner-nations-conduct-airstrikes-against-isil"]
["7/10/2014 - 8/10/2014","US, UK & Netherlands",1,1,1,379,"NA","Mix of US fighter and remotely piloted aircraft","Northeast of Sinjar ","Sinjar: 36.3225° N, 41.8642° E","NA","ISIL strongholds near Sinjar ","The strikes were conducted as part of the President's comprehensive strategy to degrade and ultimately destroy ISIL. The destruction and degradation of ISIL targets in Syria and Iraq further limits the terrorist group's ability to lead, control, project power and conduct operations","Strike against an ISIL vehicle unsuccessful","NA","NA","NA","NA","NA","NA",0,0,"NA","NA","NA","NA","NA","NA","NA","NA","NA","NA","http://www.centcom.mil/en/news/articles/oct.-8-u.s.-military-partner-nations-conduct-airstrikes-against-isil"]
["08/10/2014 - 09/10/2014","US",5,5,5,384,"NA","Mix of US bomber, fighter and remotely piloted aircraft ","South of Kobani ","Kobani, Ayn al-Arab: 36.889722° N, 38.355556° E","NA","ISIL strongholds near Kobani","The strikes were conducted as part of the President's comprehensive strategy to degrade and ultimately destroy ISIL. The destruction and degradation of ISIL targets in Syria and Iraq further limits the terrorist group's ability to lead, control, project power and conduct operations","Damaged 1 x ISIL training camp, destroyed 1 x ISIL support building and destroyed 2 x ISIL vehicles.  Struck 1 x small ISIL unit and 1 x large ISIL unit",1,1,"NA","NA",1,1,2,2,"NA","NA",2,2,"NA","NA","NA","NA","NA","NA","http://www.centcom.mil/en/news/articles/oct.-9-u.s.-military-conduct-airstrikes-against-isil-in-syria1"]
["2014-10-09","US",6,6,6,390,"NA","US bomber aircraft ","South of Kobani ","Kobani, Ayn al-Arab: 36.889722° N, 38.355556° E","NA","ISIL strongholds near Kobani","The strikes were conducted as part of the President's comprehensive strategy to degrade and ultimately destroy ISIL. The destruction and degradation of ISIL targets in Syria and Iraq further limits the terrorist group's ability to lead, control, project power and conduct operations","Destroyed 2 x ISIL-held buildings, 1 x ISIL tank, 1 x ISIL heavy machine gun, and damaged 1 x ISIL fighting position. Strikes also struck 1 x large and 2 x small ISIL units","NA","NA","NA","NA",2,2,1,1,1,1,4,4,"NA","NA","NA","NA","NA","NA","http://www.centcom.mil/en/news/articles/oct-9-u.s.-military-conducts-airstrikes-against-isil-in-syria-and-iraq"]
["2014-10-09","US",3,3,3,393,"NA","US bomber aircraft ","North of Kobani ","Kobani, Ayn al-Arab: 36.889722° N, 38.355556° E","NA","ISIL strongholds near Kobani","The strikes were conducted as part of the President's comprehensive strategy to degrade and ultimately destroy ISIL. The destruction and degradation of ISIL targets in Syria and Iraq further limits the terrorist group's ability to lead, control, project power and conduct operations","Struck 2 x small ISIL units and destroyed 2 x ISIL-held buildings","NA","NA","NA","NA",2,2,"NA","NA","NA","NA",2,2,"NA","NA","NA","NA","NA","NA","http://www.centcom.mil/en/news/articles/oct-9-u.s.-military-conducts-airstrikes-against-isil-in-syria-and-iraq"]
["2014-10-09","US",1,1,1,394,"NA","US bomber aircraft ","South of Sinjar ","Sinjar: 36.3225° N, 41.8642° E","NA","ISIL strongholds near Sinjar ","The strikes were conducted as part of the President's comprehensive strategy to degrade and ultimately destroy ISIL. The destruction and degradation of ISIL targets in Syria and Iraq further limits the terrorist group's ability to lead, control, project power and conduct operations","Destroyed 1 x ISIL bunker and 1 x ammunition cache, and 1 x small ISIL unit","NA","NA","NA","NA",1,1,"NA","NA",1,1,1,1,"NA","NA","NA","NA","NA","NA","http://www.centcom.mil/en/news/articles/oct-9-u.s.-military-conducts-airstrikes-against-isil-in-syria-and-iraq"]
["2014-10-09","US",1,1,1,395,"NA","US bomber aircraft ","South of Sinjar Mountain","Sinjar Mountain: 36.3667° N,  41.7218° E","NA","ISIL strongholds near Sinjar Mountain","The strikes were conducted as part of the President's comprehensive strategy to degrade and ultimately destroy ISIL. The destruction and degradation of ISIL targets in Syria and Iraq further limits the terrorist group's ability to lead, control, project power and conduct operations","Destroyed 1 x ISIL armed vehicle and 1 x small ISIL unit. ","NA","NA","NA","NA","NA","NA",1,1,"NA","NA",1,1,"NA","NA","NA","NA","NA","NA","http://www.centcom.mil/en/news/articles/oct-9-u.s.-military-conducts-airstrikes-against-isil-in-syria-and-iraq"]
["09/10/2014 - 10/10/2014","US, UAE & Saudi Arabia",2,2,2,397,"NA","Mix of coalition attack, bomber, fighter and remotely piloted aircraft ","Southeast of Kobani ","Kobani, Ayn al-Arab: 36.889722° N, 38.355556° E","NA","ISIL strongholds near Kobani","The strikes were conducted as part of the President's comprehensive strategy to degrade and ultimately destroy ISIL. The destruction and degradation of ISIL targets in Syria and Iraq further limits the terrorist group's ability to lead, control, project power and conduct operations","Destroyed 2 x ISIL training facilities",2,2,"NA","NA","NA","NA","NA","NA","NA","NA","NA","NA","NA","NA","NA","NA","NA","NA","http://www.centcom.mil/en/news/articles/oct.-10-u.s.-military-conducts-airstrikes-against-isil-in-syria-and-iraq"]
["09/10/2014 - 10/10/2014","US, UAE & Saudi Arabia",4,4,4,401,"NA","Mix of coalition attack, bomber, fighter and remotely piloted aircraft ","South of Kobani ","Kobani, Ayn al-Arab: 36.889722° N, 38.355556° E","NA","ISIL strongholds near Kobani","The strikes were conducted as part of the President's comprehensive strategy to degrade and ultimately destroy ISIL. The destruction and degradation of ISIL targets in Syria and Iraq further limits the terrorist group's ability to lead, control, project power and conduct operations","Destroyed 2 x ISIL vehicles, struck 2 x small ISIL units and damaged 1 x ISIL tank","NA","NA","NA","NA","NA","NA",3,3,"NA","NA",2,2,"NA","NA","NA","NA","NA","NA","http://www.centcom.mil/en/news/articles/oct.-10-u.s.-military-conducts-airstrikes-against-isil-in-syria-and-iraq"]
["09/10/2014 - 10/10/2014","US, UAE & Saudi Arabia",1,1,1,402,"NA","Mix of coalition attack, bomber, fighter and remotely piloted aircraft ","Northeast of Kobani ","Kobani, Ayn al-Arab: 36.889722° N, 38.355556° E","NA","ISIL strongholds near Kobani","The strikes were conducted as part of the President's comprehensive strategy to degrade and ultimately destroy ISIL. The destruction and degradation of ISIL targets in Syria and Iraq further limits the terrorist group's ability to lead, control, project power and conduct operations","Destroyed 1 x ISIL vehicle","NA","NA","NA","NA","NA","NA",1,1,"NA","NA","NA","NA","NA","NA","NA","NA","NA","NA","http://www.centcom.mil/en/news/articles/oct.-10-u.s.-military-conducts-airstrikes-against-isil-in-syria-and-iraq"]
["09/10/2014 - 10/10/2014","US, UAE & Saudi Arabia",1,1,1,403,"NA","Mix of coalition attack, bomber, fighter and remotely piloted aircraft ","East of Dayr Az Zawr ","Dayr az Zawr: 35.3333° N, 40.1500° E","NA","ISIL strongholds near  Dayr Az Zawr","The strikes were conducted as part of the President's comprehensive strategy to degrade and ultimately destroy ISIL. The destruction and degradation of ISIL targets in Syria and Iraq further limits the terrorist group's ability to lead, control, project power and conduct operations","Destroyed 1 x ISIL armored vehicle staging facility","NA","NA","NA","NA",1,1,"NA","NA","NA","NA","NA","NA","NA","NA","NA","NA","NA","NA","http://www.centcom.mil/en/news/articles/oct.-10-u.s.-military-conducts-airstrikes-against-isil-in-syria-and-iraq"]
["09/10/2014 - 10/10/2014","US, UAE & Saudi Arabia",1,1,1,404,"NA","Mix of coalition attack, bomber, fighter and remotely piloted aircraft ","Northeast of Al Hasakah ","Al Hasakah: 36.5000° N, 40.9000° E","NA","ISIL strongholds near Al Hasakah","The strikes were conducted as part of the President's comprehensive strategy to degrade and ultimately destroy ISIL. The destruction and degradation of ISIL targets in Syria and Iraq further limits the terrorist group's ability to lead, control, project power and conduct operations","Struck 1 x small ISIL unit","NA","NA","NA","NA","NA","NA","NA","NA","NA","NA",1,1,"NA","NA","NA","NA","NA","NA","http://www.centcom.mil/en/news/articles/oct.-10-u.s.-military-conducts-airstrikes-against-isil-in-syria-and-iraq"]
["2014-10-10","US",1,1,1,405,"NA","US fighter aircraft ","Northwest of Baghdad ","Baghdad: 33.3250° N, 44.4220° E","NA","ISIL strongholds near Baghdad","The strikes were conducted as part of the President's comprehensive strategy to degrade and ultimately destroy ISIL. The destruction and degradation of ISIL targets in Syria and Iraq further limits the terrorist group's ability to lead, control, project power and conduct operations","Struck 1 x small ISIL unit and destroyed 1 x ISIL building","NA","NA","NA","NA",1,1,"NA","NA","NA","NA",1,1,"NA","NA","NA","NA","NA","NA","http://www.centcom.mil/en/news/articles/oct.-10-u.s.-military-conducts-airstrikes-against-isil-in-syria-and-iraq"]
["10/10/2014 -11/10/2014","US",4,4,4,409,"NA","Mix of US bomber and fighter aircraft ","North of Kobani ","Kobani, Ayn al-Arab: 36.889722° N, 38.355556° E","NA","ISIL strongholds near Kobani","The strikes were conducted as part of the President's comprehensive strategy to degrade and ultimately destroy ISIL. The destruction and degradation of ISIL targets in Syria and Iraq further limits the terrorist group's ability to lead, control, project power and conduct operations","Struck 1 x ISIL fighting position, damaged 1 x ISIL command and control facility, destroyed 1 x ISIL staging building and struck 2 x small ISIL units","NA","NA","NA","NA",2,2,"NA","NA","NA","NA",3,3,"NA","NA","NA","NA","NA","NA","http://www.centcom.mil/en/news/articles/oct.-11-u.s.-military-conducts-airstrikes-against-isil-in-syria-and-iraq"]
["10/10/2014 -11/10/2014","US",2,2,2,411,"NA","Mix of US bomber and fighter aircraft ","South of Kobani ","Kobani, Ayn al-Arab: 36.889722° N, 38.355556° E","NA","ISIL strongholds near Kobani","The strikes were conducted as part of the President's comprehensive strategy to degrade and ultimately destroy ISIL. The destruction and degradation of ISIL targets in Syria and Iraq further limits the terrorist group's ability to lead, control, project power and conduct operations","Destroyed 3 x ISIL trucks","NA","NA","NA","NA","NA","NA",3,3,"NA","NA","NA","NA","NA","NA","NA","NA","NA","NA","http://www.centcom.mil/en/news/articles/oct.-11-u.s.-military-conducts-airstrikes-against-isil-in-syria-and-iraq"]
["10/10/2014 -11/10/2014","US & Netherlands",1,1,1,412,"NA","Mix of US bomber, fighter aircraft  & partner nation attack and fighter aircraft ","North of Tall Afar ","Tall Afar: 36.3742° N, 42.4500° E","NA","ISIL strongholds near Tall Afar","The strikes were conducted as part of the President's comprehensive strategy to degrade and ultimately destroy ISIL. The destruction and degradation of ISIL targets in Syria and Iraq further limits the terrorist group's ability to lead, control, project power and conduct operations","Struck 1 x small ISIL unit and destroyed 1 x ISIL armed vehicle","NA","NA","NA","NA","NA","NA",1,1,"NA","NA",1,1,"NA","NA","NA","NA","NA","NA","http://www.centcom.mil/en/news/articles/oct.-11-u.s.-military-conducts-airstrikes-against-isil-in-syria-and-iraq"]
["10/10/2014 -11/10/2014","US & Netherlands",2,2,2,414,"NA","Mix of US bomber, fighter aircraft  & partner nation attack and fighter aircraft ","Northwest of Hit ","Hit: 33.6450° N, 42.8264° E","NA","ISIL strongholds near Hit","The strikes were conducted as part of the President's comprehensive strategy to degrade and ultimately destroy ISIL. The destruction and degradation of ISIL targets in Syria and Iraq further limits the terrorist group's ability to lead, control, project power and conduct operations","Struck 2 x small ISIL units","NA","NA","NA","NA","NA","NA","NA","NA","NA","NA",2,2,"NA","NA","NA","NA","NA","NA","http://www.centcom.mil/en/news/articles/oct.-11-u.s.-military-conducts-airstrikes-against-isil-in-syria-and-iraq"]
["11/10/2014 -12/10/2014","US, UAE & Saudi Arabia",1,1,1,415,"NA","Mix of US  bomber and fighter aircraft and partner nation, fighter aircraft ","Northwest of Ar Raqqah ","Ar Raqqah: 35.9500° N, 39.0167° E","NA","ISIL strongholds near Ar Raqqah","The strikes were conducted as part of the President's comprehensive strategy to degrade and ultimately destroy ISIL. The destruction and degradation of ISIL targets in Syria and Iraq further limits the terrorist group's ability to lead, control, project power and conduct operations","Destroyed 1 x ISIL-held armored vehicle compound","NA","NA","NA","NA",1,1,"NA","NA","NA","NA","NA","NA","NA","NA","NA","NA","NA","NA"," http://www.centcom.mil/en/news/articles/oct.-12-u.s.-military-conducts-airstrikes-against-isil-in-syria-and-iraq"]
["11/10/2014 -12/10/2014","US, UAE & Saudi Arabia",3,3,3,418,"NA","Mix of US  bomber and fighter aircraft and partner nation, fighter aircraft ","Kobani ","Kobani, Ayn al-Arab: 36.889722° N, 38.355556° E","NA","ISIL strongholds near Kobani","The strikes were conducted as part of the President's comprehensive strategy to degrade and ultimately destroy ISIL. The destruction and degradation of ISIL targets in Syria and Iraq further limits the terrorist group's ability to lead, control, project power and conduct operations","Destroyed 1 x ISIL fighting position and 1 x ISIL staging area","NA","NA","NA","NA",1,1,"NA","NA","NA","NA",1,1,"NA","NA","NA","NA","NA","NA"," http://www.centcom.mil/en/news/articles/oct.-12-u.s.-military-conducts-airstrikes-against-isil-in-syria-and-iraq"]
["11/10/2014 -12/10/2014","US & UK",1,1,1,419,"NA","Mix of US attack and remotely piloted aircraft and UK aircraft","Southwest of Hit ","Hit: 33.6450° N, 42.8264° E","NA","ISIL strongholds near Hit","The strikes were conducted as part of the President's comprehensive strategy to degrade and ultimately destroy ISIL. The destruction and degradation of ISIL targets in Syria and Iraq further limits the terrorist group's ability to lead, control, project power and conduct operations","Destroyed 1 x ISIL armed vehicle","NA","NA","NA","NA","NA","NA",1,1,"NA","NA","NA","NA","NA","NA","NA","NA","NA","NA"," http://www.centcom.mil/en/news/articles/oct.-12-u.s.-military-conducts-airstrikes-against-isil-in-syria-and-iraq"]
["11/10/2014 -12/10/2014","US & UK",1,1,1,420,"NA","Mix of US attack and remotely piloted aircraft and UK aircraft","Southeast of Hit","Hit: 33.6450° N, 42.8264° E","NA","ISIL strongholds near Hit","The strikes were conducted as part of the President's comprehensive strategy to degrade and ultimately destroy ISIL. The destruction and degradation of ISIL targets in Syria and Iraq further limits the terrorist group's ability to lead, control, project power and conduct operations","Destroyed 1 x ISIL APC","NA","NA","NA","NA","NA","NA",1,1,"NA","NA","NA","NA","NA","NA","NA","NA","NA","NA"," http://www.centcom.mil/en/news/articles/oct.-12-u.s.-military-conducts-airstrikes-against-isil-in-syria-and-iraq"]
["11/10/2014 -12/10/2014","US & UK",1,1,1,421,"NA","Mix of US attack and remotely piloted aircraft and UK aircraft","Southwest of Kirkuk ","Kirkuk: 35.4667° N, 44.3167° E","NA","an ISIL checkpoint southwest of Kirkuk ","The strikes were conducted as part of the President's comprehensive strategy to degrade and ultimately destroy ISIL. The destruction and degradation of ISIL targets in Syria and Iraq further limits the terrorist group's ability to lead, control, project power and conduct operations","Struck 1 x small ISIL unit","NA","NA","NA","NA","NA","NA","NA","NA","NA","NA",1,1,"NA","NA","NA","NA","NA","NA"," http://www.centcom.mil/en/news/articles/oct.-12-u.s.-military-conducts-airstrikes-against-isil-in-syria-and-iraq"]
["11/10/2014 -12/10/2014","US & UK",1,1,1,422,"NA","Mix of US attack and remotely piloted aircraft and UK aircraft","South of Kirkuk","Kirkuk: 35.4667° N, 44.3167° E","NA","ISIL strongholds near Kirkuk","The strikes were conducted as part of the President's comprehensive strategy to degrade and ultimately destroy ISIL. The destruction and degradation of ISIL targets in Syria and Iraq further limits the terrorist group's ability to lead, control, project power and conduct operations","Struck 1 x small ISIL unit","NA","NA","NA","NA","NA","NA","NA","NA","NA","NA",1,1,"NA","NA","NA","NA","NA","NA"," http://www.centcom.mil/en/news/articles/oct.-12-u.s.-military-conducts-airstrikes-against-isil-in-syria-and-iraq"]
["11/10/2014 -12/10/2014","US & UK",1,1,1,423,"NA","Mix of US attack and remotely piloted aircraft and UK aircraft","Northwest of Ramadi ","Ramadi: 33.4167° N, 43.3000° E","NA","ISIL strongholds near Ramadi","The strikes were conducted as part of the President's comprehensive strategy to degrade and ultimately destroy ISIL. The destruction and degradation of ISIL targets in Syria and Iraq further limits the terrorist group's ability to lead, control, project power and conduct operations","Destroyed 1 x ISIL APC","NA","NA","NA","NA","NA","NA",1,1,"NA","NA","NA","NA","NA","NA","NA","NA","NA","NA"," http://www.centcom.mil/en/news/articles/oct.-12-u.s.-military-conducts-airstrikes-against-isil-in-syria-and-iraq"]
["12/10/2014 - 13/10/2014","US & Saudi Arabia",4,4,4,427,"NA","Mix of US bomber, fighter and partner nation fighter aircraft  ","Southwest of Kobani ","Kobani, Ayn al-Arab: 36.889722° N, 38.355556° E","NA","ISIL strongholds near Kobani","The strikes were conducted as part of the President's comprehensive strategy to degrade and ultimately destroy ISIL. The destruction and degradation of ISIL targets in Syria and Iraq further limits the terrorist group's ability to lead, control, project power and conduct operations","Struck 1 x large ISIL unit and 1 x small ISIL unit, damaged 1 x ISIL staging location and destroyed 1 x ISIL heavy machine gun firing position","NA","NA","NA","NA",1,1,"NA","NA","NA","NA",3,3,"NA","NA","NA","NA","NA","NA","http://www.centcom.mil/en/news/articles/oct.-13-u.s.-military-conducts-airstrikes-against-isil-in-syria"]
["12/10/2014 - 13/10/2014","US & Saudi Arabia",3,3,3,430,"NA","Mix of US bomber, fighter and partner nation fighter aircraft  ","Northeast of Kobani ","Kobani, Ayn al-Arab: 36.889722° N, 38.355556° E","NA","ISIL strongholds near Kobani","The strikes were conducted as part of the President's comprehensive strategy to degrade and ultimately destroy ISIL. The destruction and degradation of ISIL targets in Syria and Iraq further limits the terrorist group's ability to lead, control, project power and conduct operations","Struck 1 x small ISIL unit, damaged 2 x ISIL buildings and destroyed 1 x ISIL staging location and 3 x ISIL buildings","NA","NA","NA","NA",6,6,"NA","NA","NA","NA",1,1,"NA","NA","NA","NA","NA","NA","http://www.centcom.mil/en/news/articles/oct.-13-u.s.-military-conducts-airstrikes-against-isil-in-syria"]
["12/10/2014 - 13/10/2014","US & Saudi Arabia",1,1,1,431,"NA","Mix of US bomber, fighter and partner nation fighter aircraft  ","Northwest of Ar Raqqah ","Ar Raqqah: 35.9500° N, 39.0167° E","NA","ISIL strongholds near Ar Raqqah","The strikes were conducted as part of the President's comprehensive strategy to degrade and ultimately destroy ISIL. The destruction and degradation of ISIL targets in Syria and Iraq further limits the terrorist group's ability to lead, control, project power and conduct operations","Struck 1 x ISIL garrison","NA","NA","NA","NA",1,1,"NA","NA","NA","NA","NA","NA","NA","NA","NA","NA","NA","NA","http://www.centcom.mil/en/news/articles/oct.-13-u.s.-military-conducts-airstrikes-against-isil-in-syria"]
["2014-10-13","US",1,1,1,432,"NA","US attack aircraft ","Southwest of Kirkuk ","Kirkuk: 35.4667° N, 44.3167° E","NA","ISIL strongholds southwest of Kirkuk ","The strikes were conducted as part of the President's comprehensive strategy to degrade and ultimately destroy ISIL. The destruction and degradation of ISIL targets in Syria and Iraq further limits the terrorist group's ability to lead, control, project power and conduct operations","Destroyed 1 x ISIL armed vehicle and 1 x ISIL vehicle","NA","NA","NA","NA","NA","NA",2,2,"NA","NA","NA","NA","NA","NA","NA","NA","NA","NA","http://www.centcom.mil/en/news/articles/oct.-14-u.s.-military-partner-nations-conduct-airstrikes-against-isil"]
["13/10/2014 - 14/10/2014","US & Saudi Arabia",21,21,21,453,"NA","Mix of US fighter, bomber aircraft and partner nation fighter aircraft","Near Kobani ","Kobani, Ayn al-Arab: 36.889722° N, 38.355556° E","NA","ISIL strongholds near Kobani","These airstrikes are designed to interdict ISIL reinforcements and resupply and prevent ISIL from massing combat power on the Kurdish held portions of Kobani. ","Destroyed 2 x ISIL staging locations, damaged 1 x ISIL staging location, destroyed 1 x ISIL building and damaged 2 x ISIL building , damaged 3 x ISIL compounds, destroyed 1 x ISIL truck, destroyed 1 x ISIL armed vehicle and 1 x other ISIL vehicle. An additional 7 x ISIL staging areas, 2 x ISIL mortar positions, 3 x ISIL occupied buildings and 1 x ISIL artillery storage facility were struck and initial indications are that these strikes were successful","NA","NA","NA","NA",20,20,3,3,"NA","NA",2,2,"NA","NA","NA","NA","NA","NA","http://www.centcom.mil/en/news/articles/oct.-14-u.s.-military-partner-nations-conduct-airstrikes-against-isil"]
["13/10/2014 - 14/10/2014","US & Saudi Arabia",1,1,1,454,"NA","Mix of US fighter, bomber aircraft and partner nation fighter aircraft","Near Dayr az Zawr ","Dayr az Zawr: 35.3333° N, 40.1500° E","NA","a modular oil refinery","These airstrikes are designed to interdict ISIL reinforcements and resupply and prevent ISIL from massing combat power on the Kurdish held portions of Kobani. ","Struck 1 x modular oil refinery and initial indications are that this strike was successful","NA","NA",1,1,"NA","NA","NA","NA","NA","NA","NA","NA","NA","NA","NA","NA","NA","NA","http://www.centcom.mil/en/news/articles/oct.-14-u.s.-military-partner-nations-conduct-airstrikes-against-isil"]
["14/10/2014 - 15/10/2014","US",1,1,1,455,"NA","Mix of US attack and fighter aircraft ","Near Haditha Dam ","Haditha Dam: 34.2069° N, 42.3550° E","NA","ISIL strongholds near Haditha Dam","The strikes were conducted as part of the President's comprehensive strategy to degrade and ultimately destroy ISIL. The destruction and degradation of ISIL targets in Syria and Iraq further limits the terrorist group's ability to lead, control, project power and conduct operations","Destroyed 1 x ISIL armed vehicle and 1 x ISIL guard shack","NA","NA","NA","NA",1,1,1,1,"NA","NA","NA","NA","NA","NA","NA","NA","NA","NA","http://www.centcom.mil/en/news/articles/oct.-15-u.s.-military-conducts-airstrikes-against-isil-in-iraq-and-syria"]
["14/10/2014 - 15/10/2014","US",4,4,4,459,"NA","Mix of US attack and fighter aircraft ","Near Bayji ","Bayji: 34.9292° N, 43.4931° E","NA","ISIL strongholds near Bayji","The strikes were conducted as part of the President's comprehensive strategy to degrade and ultimately destroy ISIL. The destruction and degradation of ISIL targets in Syria and Iraq further limits the terrorist group's ability to lead, control, project power and conduct operations","Destroyed 1 x ISIL building, 1 x ISIL Humvee, and 1 x ISIL machine gun, and damaged 1 x ISIL artillery piece.","NA","NA","NA","NA",1,1,1,1,2,2,"NA","NA","NA","NA","NA","NA","NA","NA","http://www.centcom.mil/en/news/articles/oct.-15-u.s.-military-conducts-airstrikes-against-isil-in-iraq-and-syria"]
["14/10/2014 - 15/10/2014","US",18,18,18,477,"NA","Mix of US bomber and fighter aircraft  ","Near Kobani ","Kobani, Ayn al-Arab: 36.889722° N, 38.355556° E","NA","ISIL strongholds near Kobani","The strikes were conducted as part of the President's comprehensive strategy to degrade and ultimately destroy ISIL. The destruction and degradation of ISIL targets in Syria and Iraq further limits the terrorist group's ability to lead, control, project power and conduct operations","Destroyed multiple ISIL fighting positions and successfully struck 16 ISIL occupied buildings","NA","NA","NA","NA",16,16,"NA","NA","NA","NA","> 2","NA","NA","NA","NA","NA","NA","NA","http://www.centcom.mil/en/news/articles/oct.-15-u.s.-military-conducts-airstrikes-against-isil-in-iraq-and-syria"]
["15/10/2014 - 16/10/2014","US",14,14,14,491,"NA","Mix of US bomber and fighter aircraft  ","Near Kobani ","Kobani, Ayn al-Arab: 36.889722° N, 38.355556° E","NA","ISIL strongholds near Kobani","These airstrikes are designed to interdict ISIL reinforcements and resupply and prevent ISIL from massing combat power on the Kurdish held portions of Kobani","Initial reports indicate the strikes successfully struck 19 x  ISIL buildings, 2 x  ISIL command posts, 3 x ISIL fighting positions, 3 x ISIL sniper positions, 1 x ISIL staging location, and 1 x ISIL heavy machine gun.","NA","NA","NA","NA",22,22,"NA","NA",1,1,6,6,"NA","NA","NA","NA","NA","NA","http://www.centcom.mil/en/news/articles/oct.-16-u.s.-military-conducts-airstrikes-in-syria-in-support-of-operation"]
["16/10/2014 - 17/10/2014","US",6,6,6,497,"NA","US fighter aircraft ","Near Kobani ","Kobani, Ayn al-Arab: 36.889722° N, 38.355556° E","NA","ISIL strongholds near Kobani","These airstrikes are designed to interdict ISIL reinforcements and resupply and prevent ISIL from massing combat power on the Kurdish held portions of Kobani","Struck 3 x ISIL buildings, destroyed 2 x ISIL fighting positions, suppressed 3 x ISIL fighting positions and destroyed 2 x ISIL vehicles. ","NA","NA","NA","NA",3,3,2,2,"NA","NA",5,5,"NA","NA","NA","NA","NA","NA"," http://www.centcom.mil/en/news/articles/oct.-17-military-airstrikes-in-support-of-operation-inherent-resolve"]
["16/10/2014 - 17/10/2014","US",1,1,1,498,"NA","US fighter aircraft ","Near Shadadi","Shadadi: 36.055556°N   40.720833°E","NA","ISIL oil collection equipment near Shadadi","This strike was intended to destroy a portion of ISIL's ability to operate oil tanker trucks at oil collection points. ","successfully struck multiple ISIL oil collection equipment consisting of several \"POL tanks\" (petroleum, oil and lubricants) and a pump station, which represents part of the terrorist group's oil producing, processing and transportation infrastructure","NA","NA","> 2","NA","NA","NA","NA","NA","NA","NA","NA","NA","NA","NA","NA","NA","NA","NA"," http://www.centcom.mil/en/news/articles/oct.-17-military-airstrikes-in-support-of-operation-inherent-resolve"]
["16/10/2014 - 17/10/2014","Undetermined Partner Nation",1,1,1,499,"NA","Partner nation aircraft","West of Bayji ","Bayji: 34.9292° N, 43.4931° E","NA","ISIL strongholds near Bayji","The U.S. strikes were conducted as part of Operation Inherent Resolve, the operation to eliminate the terrorist group ISIL and the threat they pose to Iraq, the region and the wider international community.","Destroyed 1 x ISIL artillery piece and 1 x ISIL ammunition storage area","NA","NA","NA","NA",1,1,"NA","NA",1,1,"NA","NA","NA","NA","NA","NA","NA","NA"," http://www.centcom.mil/en/news/articles/oct.-17-military-airstrikes-in-support-of-operation-inherent-resolve"]
["16/10/2014 - 17/10/2014","Undetermined Partner Nation",1,1,1,500,"NA","Partner nation aircraft","Northeast of Bayji ","Bayji: 34.9292° N, 43.4931° E","NA","ISIL strongholds near Bayji","The U.S. strikes were conducted as part of Operation Inherent Resolve, the operation to eliminate the terrorist group ISIL and the threat they pose to Iraq, the region and the wider international community.","Struck  1 x small ISIL unit and damaged 1 x ISIL vehicle","NA","NA","NA","NA","NA","NA",1,1,"NA","NA",1,1,"NA","NA","NA","NA","NA","NA"," http://www.centcom.mil/en/news/articles/oct.-17-military-airstrikes-in-support-of-operation-inherent-resolve"]
["17/10/2014 - 18/10/2014","US",2,2,2,502,"NA","Mix of US fighter and bomber aircraft ","Near Kobani","Kobani, Ayn al-Arab: 36.889722° N, 38.355556° E","NA","Two ISIL fighting positions","These airstrikes were designed to interdict ISIL financing by degrading and destroying their oil producing, collecting, storage and transportation infrastructure.  ","Suppressed 2 x ISIL fighting positions","NA","NA","NA","NA","NA","NA","NA","NA","NA","NA",2,2,"NA","NA","NA","NA","NA","NA","http://www.centcom.mil/en/news/articles/oct.-18-military-airstrikes-against-isil-in-syria-and-in-iraq-in-support-of"]
["17/10/2014 - 18/10/2014","US",1,1,1,503,"NA","Mix of US fighter and bomber aircraft ","Southwest of Ain Aissa ","Ain Aissa: 36.616667°N,  38.716667°E","NA","An ISIL military camp","These airstrikes were designed to interdict ISIL financing by degrading and destroying their oil producing, collecting, storage and transportation infrastructure.  ","Damaged 1 x ISIL military camp",1,1,"NA","NA","NA","NA","NA","NA","NA","NA","NA","NA","NA","NA","NA","NA","NA","NA","http://www.centcom.mil/en/news/articles/oct.-18-military-airstrikes-against-isil-in-syria-and-in-iraq-in-support-of"]
["17/10/2014 - 18/10/2014","US",1,1,1,504,"NA","Mix of US fighter and bomber aircraft ","Southeast of Dayr Az Zawr","Dayr az Zawr: 35.3333° N, 40.1500° E","NA","An ISIL modular oil refinery","These airstrikes were designed to interdict ISIL financing by degrading and destroying their oil producing, collecting, storage and transportation infrastructure.  ","Damaged 1 x ISIL modular oil refinery","NA","NA",1,1,"NA","NA","NA","NA","NA","NA","NA","NA","NA","NA","NA","NA","NA","NA","http://www.centcom.mil/en/news/articles/oct.-18-military-airstrikes-against-isil-in-syria-and-in-iraq-in-support-of"]
["17/10/2014 - 18/10/2014","US",7,7,7,511,"NA","Mix of US fighter and bomber aircraft ","East of Wādī adh Dhībān, Syria ","Dhībān, Syria: 35.0155° N, 40.5109° E","NA","An ISIL crude oil collection point","These airstrikes were designed to interdict ISIL financing by degrading and destroying their oil producing, collecting, storage and transportation infrastructure.  ","Struck 1 x ISIL crude oil collection point - consisting of crude oil collection equipment and  1 x modular oil refinery","NA","NA","> 4","NA","NA","NA","NA","NA","NA","NA","NA","NA","NA","NA","NA","NA","NA","NA","http://www.centcom.mil/en/news/articles/oct.-18-military-airstrikes-against-isil-in-syria-and-in-iraq-in-support-of"]
["17/10/2014 - 18/10/2014","US",3,3,3,514,"NA","Mix of US fighter and bomber aircraft ","Northeast of Khusham ","Khusham: 35.266667°N, 40.266667 °E","NA"," An ISIL crude oil collection point","These airstrikes were designed to interdict ISIL financing by degrading and destroying their oil producing, collecting, storage and transportation infrastructure.  ","Struck 1 x ISIL crude oil collection point","NA","NA",1,1,"NA","NA","NA","NA","NA","NA","NA","NA","NA","NA","NA","NA","NA","NA","http://www.centcom.mil/en/news/articles/oct.-18-military-airstrikes-against-isil-in-syria-and-in-iraq-in-support-of"]
["17/10/2014 - 18/10/2014","US",1,1,1,515,"NA","Mix of US fighter and bomber aircraft ","East of Sharra ","Sharra: 34.922778°N, 40.561667°E","NA","An ISIL modular oil refinery","These airstrikes were designed to interdict ISIL financing by degrading and destroying their oil producing, collecting, storage and transportation infrastructure.  ","Struck 1 x ISIL modular oil refinery","NA","NA",1,1,"NA","NA","NA","NA","NA","NA","NA","NA","NA","NA","NA","NA","NA","NA","http://www.centcom.mil/en/news/articles/oct.-18-military-airstrikes-against-isil-in-syria-and-in-iraq-in-support-of"]
["17/10/2014 - 18/10/2014","US",5,5,5,520,"NA","Mix of US attack, fighter and bomber  aircraft","South and west of Bayji ","Bayji: 34.9292° N, 43.4931° E","NA","ISIL strongholds in Bayji","The U.S. strikes were conducted as part of Operation Inherent Resolve, the operation to eliminate the terrorist group ISIL and the threat they pose to Iraq, the region and the wider international community.  ","Struck 2 x ISIL units, destroyed 1 x ISIL armed vehicle,  1 x ISIL heavy weapon, 1 x ISIL machine gun position,  1 x ISIL building and 3 x ISIL guard shacks and damaged 1 x ISIL guard shack. ","NA","NA","NA","NA",5,5,1,1,1,1,3,3,"NA","NA","NA","NA","NA","NA","http://www.centcom.mil/en/news/articles/oct.-18-military-airstrikes-against-isil-in-syria-and-in-iraq-in-support-of"]
["17/10/2014 - 18/10/2014","US",5,5,5,525,"NA","Mix of US attack, fighter and bomber  aircraft","West of Mosul Dam","Mosul Dam: 36.6303° N, 42.8231° E","NA","ISIL strongholds in Mosul","The U.S. strikes were conducted as part of Operation Inherent Resolve, the operation to eliminate the terrorist group ISIL and the threat they pose to Iraq, the region and the wider international community.  ","Damaged 1 x ISIL building and destroyed 1 x ISIL heavy machine gun, 1 x ISIL HMMWV (humvee) and struck 3 x small ISIL ground units.  ","NA","NA","NA","NA",1,1,1,1,1,1,3,3,"NA","NA","NA","NA","NA","NA","http://www.centcom.mil/en/news/articles/oct.-18-military-airstrikes-against-isil-in-syria-and-in-iraq-in-support-of"]
["18/10/2014 - 19/10/2014","US, UAE & Saudi Arabia",11,11,11,536,"NA","Mix of US and partner nation fighter and bomber aircraft ","Near Kobani","Kobani, Ayn al-Arab: 36.889722° N, 38.355556° E","NA","ISIL strongholds near Kobani","The U.S. strikes were conducted as part of Operation Inherent Resolve, the operation to eliminate the terrorist group ISIL and the threat they pose to Iraq, the region and the wider international community.  ","Destroyed 20 x ISIL fighting positions, 5 x ISIL vehicles and 2 x ISIL-held buildings. ","NA","NA","NA","NA",2,2,5,5,"NA","NA",20,20,"NA","NA","NA","NA","NA","NA","http://www.defense.gov/home/features/2014/0814_iraq/Airstrikes6.html"]
["18/10/2014 - 19/10/2014","US, UAE & Saudi Arabia",2,2,2,538,"NA","Mix of US and partner nation fighter and bomber aircraft ","Southeast of Dayr Az Zawr ","Dayr az Zawr: 35.3333° N, 40.1500° E","NA","AISIL modular oil refinery southeast of Dayr Az Zawr ","The U.S. strikes were conducted as part of Operation Inherent Resolve, the operation to eliminate the terrorist group ISIL and the threat they pose to Iraq, the region and the wider international community.  ","Damaged 1 x ISIL modular oil refinery to further degrade and destroy ISIL's oil producing, collecting, storage and transportation infrastructure. ","NA","NA",1,1,"NA","NA","NA","NA","NA","NA","NA","NA","NA","NA","NA","NA","NA","NA","http://www.defense.gov/home/features/2014/0814_iraq/Airstrikes6.html"]
["18/10/2014 - 19/10/2014","US",2,2,2,{"$f":"F240+E241","v":540},"NA","Mix of US fighter, attack and remotely piloted aircraft ","South of Bayji ","Bayji: 34.9292° N, 43.4931° E","NA","ISIL strongholds south of Bayji ","The U.S. strikes were conducted as part of Operation Inherent Resolve, the operation to eliminate the terrorist group ISIL and the threat they pose to Iraq, the region and the wider international community.  ","Struck 1 x large ISIL unit and 1 x ISIL armored truck and destroyed 1 x ISIL checkpoint. ","NA","NA","NA","NA","NA","NA",1,1,"NA","NA",1,1,1,1,"NA","NA","NA","NA","http://www.defense.gov/home/features/2014/0814_iraq/Airstrikes6.html"]
["18/10/2014 - 19/10/2014","US",1,1,1,541,"NA","Mix of US fighter, attack and remotely piloted aircraft ","South of the Bayji Oil Refinery ","Bayji: 34.9292° N, 43.4931° E","NA","ISIL strongholds south of the Bayji Oil Refinery ","The U.S. strikes were conducted as part of Operation Inherent Resolve, the operation to eliminate the terrorist group ISIL and the threat they pose to Iraq, the region and the wider international community.  ","Destroyed 1 x ISIL checkpoint. ","NA","NA","NA","NA","NA","NA","NA","NA","NA","NA","NA","NA",1,1,"NA","NA","NA","NA","http://www.defense.gov/home/features/2014/0814_iraq/Airstrikes6.html"]
["18/10/2014 - 19/10/2014","US",5,5,5,546,"NA","Mix of US fighter, attack and remotely piloted aircraft ","East of Fallujah ","Fallujah: 33.3500° N, 43.7833° E","NA","ISIL strongholds east of Fallujah","The U.S. strikes were conducted as part of Operation Inherent Resolve, the operation to eliminate the terrorist group ISIL and the threat they pose to Iraq, the region and the wider international community.  ","Struck 1 x large ISIL unit and destroyed 2 x ISIL command posts and 2 x ISIL vehicles. ","NA","NA","NA","NA",2,2,2,2,"NA","NA",1,1,"NA","NA","NA","NA","NA","NA","http://www.defense.gov/home/features/2014/0814_iraq/Airstrikes6.html"]
["18/10/2014 - 19/10/2014","US",1,1,1,547,"NA","Mix of US fighter, attack and remotely piloted aircraft ","West of the Mosul Dam ","Mosul Dam: 36.6303° N, 42.8231° E","NA","ISIL strongholds west of Mosul Dam.","The U.S. strikes were conducted as part of Operation Inherent Resolve, the operation to eliminate the terrorist group ISIL and the threat they pose to Iraq, the region and the wider international community.  ","Destroyed 1 x ISIL ammunition truck","NA","NA","NA","NA","NA","NA",1,1,"NA","NA","NA","NA","NA","NA","NA","NA","NA","NA","http://www.defense.gov/home/features/2014/0814_iraq/Airstrikes6.html"]
["18/10/2014 - 19/10/2014","US",1,">1",1,548,"NA","US bomber aircraft ","southwest of Fallujah near the Fallujah Dam","Fallujah Dam: 33.308611° N, 43.7725° E  ","NA","an ISIL-built earthen berm southwest of Fallujah near the Fallujah Dam","Strike conducted at the request of the Iraqi government. This berm, or land bridge, was built by ISIL to increase the flow of the Euphrates River into Abu Ghraib canals, which flooded local civilian, primarily Shiite, neighborhoods in east Fallujah, forcing the locals to evacuate. The berm was intended to support several ISIL objectives by flooding the canals and surrounding areas and controlling downstream water supplies. Iraqi and coalition forces therefore determined that this berm was a legitimate military target. ","Struck and destroyed 1 x ISIL-built earthen berm","NA","NA","NA","NA",1,1,"NA","NA","NA","NA","NA","NA","NA","NA","NA","NA","NA","NA","http://www.defense.gov/home/features/2014/0814_iraq/Airstrikes6.html"]
["19/10/2014 -20/10/2014","US",6,6,6,554,"NA","Mix of US attack, bomber and fighter aircraft ","Near Kobani ","Kobani, Ayn al-Arab: 36.889722° N, 38.355556° E","NA","ISIL strongholds near Kobani","The U.S. strikes were conducted as part of Operation Inherent Resolve, the operation to eliminate the terrorist group ISIL and the threat they pose to Iraq, the region and the wider international community. ","Destroyed ISIL fighting and mortar positions, 1 x ISIL vehicle, and 1 x stray resupply bundle from a U.S. airdrop. ","NA","NA","NA","NA","NA","NA",1,1,"NA","NA",">4","NA","NA","NA",1,1,"NA","NA","http://www.centcom.mil/en/news/articles/oct.-20-military-airstrikes-continue-against-isil-in-syria-and-in-iraq"]
["19/10/2014 -20/10/2014","US, France & UK",2,2,2,556,"NA","Mix of coalition bomber, fighter and remotely piloted aircraft in coordination with Iraqi ground forces","Southeast of Fallujah ","Fallujah: 33.3500° N, 43.7833° E","NA","ISIL strongholds near Fallujah","The U.S. strikes were conducted as part of Operation Inherent Resolve, the operation to eliminate the terrorist group ISIL and the threat they pose to Iraq, the region and the wider international community. ","Struck 1 x large ISIL unit and destroyed 3 x ISIL vehicles","NA","NA","NA","NA","NA","NA",3,3,"NA","NA",1,1,"NA","NA","NA","NA","NA","NA","http://www.centcom.mil/en/news/articles/oct.-20-military-airstrikes-continue-against-isil-in-syria-and-in-iraq"]
["19/10/2014 -20/10/2014","US, France & UK",3,3,3,559,"NA","Mix of coalition bomber, fighter and remotely piloted aircraft in coordination with Iraqi ground forces","South of Bayji Oil Refinery ","Bayji: 34.9292° N, 43.4931° E","NA","ISIL strongholds near Bayji","The U.S. strikes were conducted as part of Operation Inherent Resolve, the operation to eliminate the terrorist group ISIL and the threat they pose to Iraq, the region and the wider international community. ","Struck 1 x small ISIL unit, destroyed 1 x ISIL building and 3 x ISIL vehicles, and damaged 1 x ISIL building","NA","NA","NA","NA",2,2,3,3,"NA","NA",1,1,"NA","NA","NA","NA","NA","NA","http://www.centcom.mil/en/news/articles/oct.-20-military-airstrikes-continue-against-isil-in-syria-and-in-iraq"]
["19/10/2014 -20/10/2014","US, France & UK",1,1,1,560,"NA","Mix of coalition bomber, fighter and remotely piloted aircraft in coordination with Iraqi ground forces","South of Bayji ","Bayji: 34.9292° N, 43.4931° E","NA","ISIL strongholds near Bayji","The U.S. strikes were conducted as part of Operation Inherent Resolve, the operation to eliminate the terrorist group ISIL and the threat they pose to Iraq, the region and the wider international community. ","Destroyed 4 x ISIL boats and damaged min. 4 x ISIL boats.","NA","NA","NA","NA","NA","NA",8,8,"NA","NA","NA","NA","NA","NA","NA","NA","NA","NA","http://www.centcom.mil/en/news/articles/oct.-20-military-airstrikes-continue-against-isil-in-syria-and-in-iraq"]
["20/10/2014 - 21/10/2014","US",4,4,4,564,"NA","Mix of US fighter and bomber aircraft","Near Kobani","Kobani, Ayn al-Arab: 36.889722° N, 38.355556° E","NA","ISIL strongholds near Kobani","The U.S. strikes were conducted as part of Operation Inherent Resolve, the operation to eliminate the terrorist group ISIL and the threat they pose to Iraq, the region and the wider international community. ","Destroyed ISIL fighting positions, 1 X ISIL building, and 1 x large ISIL unit","NA","NA","NA","NA",1,1,"NA","NA","NA","NA",">3","NA","NA","NA","NA","NA","NA","NA","http://www.centcom.mil/en/news/articles/oct.-21-military-airstrikes-continue-against-isil-in-syria-and-iraq"]
["20/10/2014 - 21/10/2014","US & Undetermined Partner Nations",1,1,1,565,"NA","Mix of US and partner nation force fighter and attack aircraft  ","South of the Bayji oil refinery","Bayji: 34.9292° N, 43.4931° E","NA","ISIL strongholds in Bayji","The U.S. strikes were conducted as part of Operation Inherent Resolve, the operation to eliminate the terrorist group ISIL and the threat they pose to Iraq, the region and the wider international community. ","Destroyed 1 x ISIL fighting position south of the Bayji oil refinery","NA","NA","NA","NA","NA","NA","NA","NA","NA","NA",1,1,"NA","NA","NA","NA","NA","NA","http://www.centcom.mil/en/news/articles/oct.-21-military-airstrikes-continue-against-isil-in-syria-and-iraq"]
["20/10/2014 - 21/10/2014","US & Undetermined Partner Nations",1,1,1,566,"NA","Mix of US and partner nation force fighter and attack aircraft  ","Southeast of Mosul Dam ","Mosul Dam: 36.6303° N, 42.8231° E","NA","ISIL strongholds near Mosul Dam.","The U.S. strikes were conducted as part of Operation Inherent Resolve, the operation to eliminate the terrorist group ISIL and the threat they pose to Iraq, the region and the wider international community. ","Destroyed 1 x ISIL fighting position","NA","NA","NA","NA","NA","NA","NA","NA","NA","NA",1,1,"NA","NA","NA","NA","NA","NA","http://www.centcom.mil/en/news/articles/oct.-21-military-airstrikes-continue-against-isil-in-syria-and-iraq"]
["20/10/2014 - 21/10/2014","US & Undetermined Partner Nations",1,1,1,567,"NA","Mix of US and partner nation force fighter and attack aircraft  ","North of Fallujah ","Fallujah: 33.3500° N, 43.7833° E","NA","ISIL attacks in Fallujah","The U.S. strikes were conducted as part of Operation Inherent Resolve, the operation to eliminate the terrorist group ISIL and the threat they pose to Iraq, the region and the wider international community. ","Suppressed 1 x ISIL attack","NA","NA","NA","NA","NA","NA","NA","NA","NA","NA",1,1,"NA","NA","NA","NA","NA","NA","http://www.centcom.mil/en/news/articles/oct.-21-military-airstrikes-continue-against-isil-in-syria-and-iraq"]
["21/10/2014 -22/10/2014","US",6,6,6,573,"NA","Mix of US fighter and bomber aircraft"," Near Kobani","Kobani, Ayn al-Arab: 36.889722° N, 38.355556° E","https://www.youtube.com/watch?v=oxgIR4LhLAU&list=UUNEEHeS9Y2yFVLbWGeHhbYA&index=3","ISIL strongholds near Kobani","The U.S. strikes were conducted as part of Operation Inherent Resolve, the operation to eliminate the terrorist group ISIL and the threat they pose to Iraq, the region and the wider international community. ","Destroyed ISIL fighting positions, 2 x ISIL vehicles, 1 x ISIL building, and 1 x ISIL logistical center","NA","NA","NA","NA",2,2,2,2,"NA","NA",">2","NA","NA","NA","NA","NA","NA","NA","http://www.defense.gov/home/features/2014/0814_iraq/Airstrikes6.html"]
["21/10/2014 -22/10/2014","US & Undetermined Partner Nations",12,12,12,585,"NA","US & partner nation fighter, bomber, attack and remotely piloted aircraft","In the vicinity of Mosul Dam","Mosul Dam: 36.6303° N, 42.8231° E","NA","ISIL strongholds near Mosul Dam.","The U.S. strikes were conducted as part of Operation Inherent Resolve, the operation to eliminate the terrorist group ISIL and the threat they pose to Iraq, the region and the wider international community. ","Destroyed 1 x  large ISIL unit, 1 x ISIL mortar launching position, 3 x ISIL vehicles, and multiple ISIL fighting positions.","NA","NA","NA","NA","NA","NA",3,3,"NA","NA",">4","NA","NA","NA","NA","NA","NA","NA","http://www.defense.gov/home/features/2014/0814_iraq/Airstrikes6.html"]
["22/10/2014 - 23/10/2014","US",2,2,2,587,"NA","Mix of US fighter and bomber aircraft ","East of Dawr Az Zawr","Dayr az Zawr: 35.3333° N, 40.1500° E","NA"," ISIL oil holding tanks","The U.S. strikes were conducted as part of Operation Inherent Resolve, the operation to eliminate the terrorist group ISIL and the threat they pose to Iraq, the region and the wider international community. ","Destroyed ISIL oil holding tanks","NA","NA",">2","NA","NA","NA","NA","NA","NA","NA","NA","NA","NA","NA","NA","NA","NA","NA","http://www.defense.gov/home/features/2014/0814_iraq/Airstrikes6.html"]
["22/10/2014 - 23/10/2014","US",4,4,4,591,"NA","Mix of US fighter and bomber aircraft ","Near Kobani ","Kobani, Ayn al-Arab: 36.889722° N, 38.355556° E","NA","ISIL strongholds near Kobani","The U.S. strikes were conducted as part of Operation Inherent Resolve, the operation to eliminate the terrorist group ISIL and the threat they pose to Iraq, the region and the wider international community. ","Destroyed ISIL fighting positions, 1 x ISIL vehicle, and 1 x ISIL command and control center. ","NA","NA","NA","NA",1,1,1,1,"NA","NA",">2","NA","NA","NA","NA","NA","NA","NA","http://www.defense.gov/home/features/2014/0814_iraq/Airstrikes6.html"]
["22/10/2014 - 23/10/2014","US & Undetermined Partner Nations",4,4,4,595,"NA","US & partner nation fighter, attack and remotely piloted aircraft","South of the Mosul Dam ","Mosul Dam: 36.6303° N, 42.8231° E","NA","ISIL strongholds near Mosul Dam.","The U.S. strikes were conducted as part of Operation Inherent Resolve, the operation to eliminate the terrorist group ISIL and the threat they pose to Iraq, the region and the wider international community. ","Struck 4 x small ISIL units and destroyed 1 x ISIL vehicle. ","NA","NA","NA","NA","NA","NA",1,1,"NA","NA",4,4,"NA","NA","NA","NA","NA","NA","http://www.defense.gov/home/features/2014/0814_iraq/Airstrikes6.html"]
["22/10/2014 - 23/10/2014","US & Undetermined Partner Nations",1,1,1,596,"NA","US & partner nation fighter, attack and remotely piloted aircraft","South of Bayji","Bayji: 34.9292° N, 43.4931° E","NA","ISIL strongholds in Bayji","The U.S. strikes were conducted as part of Operation Inherent Resolve, the operation to eliminate the terrorist group ISIL and the threat they pose to Iraq, the region and the wider international community. ","Destroyed 1 x ISIL fighting position","NA","NA","NA","NA","NA","NA","NA","NA","NA","NA",1,1,"NA","NA","NA","NA","NA","NA","http://www.defense.gov/home/features/2014/0814_iraq/Airstrikes6.html"]
["22/10/2014 - 23/10/2014","US & Undetermined Partner Nations",3,3,3,599,"NA","US & partner nation fighter, attack and remotely piloted aircraft","South of Fallujah ","Fallujah: 33.3500° N, 43.7833° E","NA","ISIL strongholds near Fallujah","The U.S. strikes were conducted as part of Operation Inherent Resolve, the operation to eliminate the terrorist group ISIL and the threat they pose to Iraq, the region and the wider international community. ","Destroyed 1 x ISIL building and struck 1 x large ISIL unit","NA","NA","NA","NA",1,1,"NA","NA","NA","NA",1,1,"NA","NA","NA","NA","NA","NA","http://www.defense.gov/home/features/2014/0814_iraq/Airstrikes6.html"]
["22/10/2014 - 23/10/2014","US & Undetermined Partner Nations",1,1,1,600,"NA","US & partner nation fighter, attack and remotely piloted aircraft","Near Fallujah","Fallujah: 33.3500° N, 43.7833° E","NA","ISIL training facility","The U.S. strikes were conducted as part of Operation Inherent Resolve, the operation to eliminate the terrorist group ISIL and the threat they pose to Iraq, the region and the wider international community. ","Destroyed 1 x ISIL training facility",1,1,"NA","NA","NA","NA","NA","NA","NA","NA","NA","NA","NA","NA","NA","NA","NA","NA","http://www.defense.gov/home/features/2014/0814_iraq/Airstrikes6.html"]
["23/10/2014 - 24/10/2014","US",6,6,6,606,"NA","US bomber aircraft ","Near Kobani ","Kobani, Ayn al-Arab: 36.889722° N, 38.355556° E","NA","ISIL strongholds near Kobani","The U.S. strikes were conducted as part of Operation Inherent Resolve, the operation to eliminate the terrorist group ISIL and the threat they pose to Iraq, the region and the wider international community. ","Struck 3 x ISIL units and destroyed 1 x ISIL vehicle","NA","NA","NA","NA","NA","NA",1,1,"NA","NA",3,3,"NA","NA","NA","NA","NA","NA","\nhttp://www.defense.gov/home/features/2014/0814_iraq/Airstrikes6.html\n"]
["23/10/2014 - 24/10/2014","US & Undetermined Partner Nations",3,3,3,609,"NA","Mix of US & partner nation bomber, fighter and remotely piloted aircraft","Southeast and west of the Mosul Dam ","Mosul Dam: 36.6303° N, 42.8231° E","NA","ISIL strongholds near Mosul Dam.","The U.S. strikes were conducted as part of Operation Inherent Resolve, the operation to eliminate the terrorist group ISIL and the threat they pose to Iraq, the region and the wider international community. ","Destroyed 2 x ISIL vehicles and 1 x ISIL mortar position","NA","NA","NA","NA","NA","NA",2,2,"NA","NA",1,1,"NA","NA","NA","NA","NA","NA","\nhttp://www.defense.gov/home/features/2014/0814_iraq/Airstrikes6.html\n"]
["23/10/2014 - 24/10/2014","US & Undetermined Partner Nations",3,3,3,612,"NA","Mix of US & partner nation bomber, fighter and remotely piloted aircraft","South of the Bayji Oil Refinery","Bayji: 34.9292° N, 43.4931° E","NA","ISIL strongholds in Bayji","The U.S. strikes were conducted as part of Operation Inherent Resolve, the operation to eliminate the terrorist group ISIL and the threat they pose to Iraq, the region and the wider international community. ","Struck 2 x small units and destroyed 1 x ISIL vehicle","NA","NA","NA","NA","NA","NA",1,1,"NA","NA",2,2,"NA","NA","NA","NA","NA","NA","\nhttp://www.defense.gov/home/features/2014/0814_iraq/Airstrikes6.html\n"]
["23/10/2014 - 24/10/2014","US & Undetermined Partner Nations",2,2,2,614,"NA","Mix of US & partner nation bomber, fighter and remotely piloted aircraft","Near Bayji ","Bayji: 34.9292° N, 43.4931° E","NA","ISIL training camp in Bayji","The U.S. strikes were conducted as part of Operation Inherent Resolve, the operation to eliminate the terrorist group ISIL and the threat they pose to Iraq, the region and the wider international community. ","Struck 1 x ISIL training camp",1,1,"NA","NA","NA","NA","NA","NA","NA","NA","NA","NA","NA","NA","NA","NA","NA","NA","\nhttp://www.defense.gov/home/features/2014/0814_iraq/Airstrikes6.html\n"]
["23/10/2014 - 24/10/2014","US & Undetermined Partner Nations",3,3,3,617,"NA","Mix of US & partner nation bomber, fighter and remotely piloted aircraft","Near Fallujah ","Fallujah: 33.3500° N, 43.7833° E","NA","ISIL strongholds in Fallujah","The U.S. strikes were conducted as part of Operation Inherent Resolve, the operation to eliminate the terrorist group ISIL and the threat they pose to Iraq, the region and the wider international community. ","Struck 2 x small ISIL units and destroyed 3 x ISIL vehicles","NA","NA","NA","NA","NA","NA",3,3,"NA","NA",2,2,"NA","NA","NA","NA","NA","NA","\nhttp://www.defense.gov/home/features/2014/0814_iraq/Airstrikes6.html\n"]
["23/10/2014 - 24/10/2014","US & Undetermined Partner Nations",1,1,1,618,"NA","Mix of US & partner nation bomber, fighter and remotely piloted aircraft","Near Zumar ","Zumar: 36.656667°N, 42.604722°E ","NA","ISIL strongholds in Zumar","The U.S. strikes were conducted as part of Operation Inherent Resolve, the operation to eliminate the terrorist group ISIL and the threat they pose to Iraq, the region and the wider international community. ","Destroyed 5 x ISIL buildings","NA","NA","NA","NA",5,5,"NA","NA","NA","NA","NA","NA","NA","NA","NA","NA","NA","NA","\nhttp://www.defense.gov/home/features/2014/0814_iraq/Airstrikes6.html\n"]
["24/10/2014 - 25/10/2014","US",1,1,1,619,"NA","US bomber aircraft ","Near Kobani ","Kobani, Ayn al-Arab: 36.889722° N, 38.355556° E","NA","ISIL strongholds near Kobani","The U.S. strikes were conducted as part of Operation Inherent Resolve, the operation to eliminate the terrorist group ISIL and the threat they pose to Iraq, the region and the wider international community. ","Destroyed 1 x ISIL artillery piece. ","NA","NA","NA","NA","NA","NA","NA","NA",1,1,"NA","NA","NA","NA","NA","NA","NA","NA","http://www.defense.gov/home/features/2014/0814_iraq/Airstrikes6.html"]
["24/10/2014 - 25/10/2014","US & Undetermined Partner Nations",3,3,3,622,"NA","Mix of US & partner nations bomber, fighter and remotely piloted aircraft","Near Bayji ","Bayji: 34.9292° N, 43.4931° E","NA","ISIL strongholds in Bayji","The U.S. strikes were conducted as part of Operation Inherent Resolve, the operation to eliminate the terrorist group ISIL and the threat they pose to Iraq, the region and the wider international community. ","Struck 1 x large ISIL unit, 1 x small ISIL unit, destroyed 1 x ISIL building, damaged 1 x ISIL building and destroyed 2 x ISIL fighting positions","NA","NA","NA","NA",2,2,"NA","NA","NA","NA",4,4,"NA","NA","NA","NA","NA","NA","http://www.defense.gov/home/features/2014/0814_iraq/Airstrikes6.html"]
["24/10/2014 - 25/10/2014","US & Undetermined Partner Nations",1,1,1,623,"NA","Mix of US & partner nations bomber, fighter and remotely piloted aircraft","Southeast of the Mosul Dam ","Mosul Dam: 36.6303° N, 42.8231° E","NA","ISIL strongholds near Mosul Dam.","The U.S. strikes were conducted as part of Operation Inherent Resolve, the operation to eliminate the terrorist group ISIL and the threat they pose to Iraq, the region and the wider international community. ","Struck 1 x large ISIL unit.","NA","NA","NA","NA","NA","NA","NA","NA","NA","NA",1,1,"NA","NA","NA","NA","NA","NA","http://www.defense.gov/home/features/2014/0814_iraq/Airstrikes6.html"]
["24/10/2014 - 25/10/2014","US & Undetermined Partner Nations",10,10,10,633,"NA","Mix of US & partner nations bomber, fighter and remotely piloted aircraft","West of the Mosul Dam ","Mosul Dam: 36.6303° N, 42.8231° E","NA","ISIL strongholds near Mosul Dam.","The U.S. strikes were conducted as part of Operation Inherent Resolve, the operation to eliminate the terrorist group ISIL and the threat they pose to Iraq, the region and the wider international community. ","Struck 4 x small ISIL units, 1 x large ISIL unit, destroyed 1 x ISIL building, 6 x ISIL fighting positions and 4 x ISIL staging locations","NA","NA","NA","NA",5,5,"NA","NA","NA","NA",11,11,"NA","NA","NA","NA","NA","NA","http://www.defense.gov/home/features/2014/0814_iraq/Airstrikes6.html"]
["24/10/2014 - 25/10/2014","US & Undetermined Partner Nations",4,4,4,637,"NA","Mix of US & partner nations bomber, fighter and remotely piloted aircraft","Near Fallujah ","Fallujah: 33.3500° N, 43.7833° E","NA","ISIL strongholds in Fallujah","The U.S. strikes were conducted as part of Operation Inherent Resolve, the operation to eliminate the terrorist group ISIL and the threat they pose to Iraq, the region and the wider international community. ","Struck 2 x small ISIL units, destroyed 1 x ISIL vehicle and destroyed 1 x ISIL fighting position","NA","NA","NA","NA","NA","NA",1,1,"NA","NA",3,3,"NA","NA","NA","NA","NA","NA","http://www.defense.gov/home/features/2014/0814_iraq/Airstrikes6.html"]
["24/10/2014 - 25/10/2014","US & Undetermined Partner Nations",2,2,2,639,"NA","Mix of US & partner nations bomber, fighter and remotely piloted aircraft","Near Qurayat al Hajjaj ","Al Kuray`at, Iraq: 33.3905556°N, 044.3419444°E","NA","ISIL strongholds near Qurayat al Hajjaj ","The U.S. strikes were conducted as part of Operation Inherent Resolve, the operation to eliminate the terrorist group ISIL and the threat they pose to Iraq, the region and the wider international community. ","Struck 1 x small ISIL unit and destroyed 1 x ISIL building","NA","NA","NA","NA",1,1,"NA","NA","NA","NA",1,1,"NA","NA","NA","NA","NA","NA","http://www.defense.gov/home/features/2014/0814_iraq/Airstrikes6.html"]
["24/10/2014 - 25/10/2014","US & Undetermined Partner Nations",1,1,1,640,"NA","Mix of US & partner nations bomber, fighter and remotely piloted aircraft","East of Hayy Al Arabi ","Hayy Al Arabi:33.9910700 °N, 44.9614800°E  ","NA","ISIL strongholds east of Hayy Al Arabi ","The U.S. strikes were conducted as part of Operation Inherent Resolve, the operation to eliminate the terrorist group ISIL and the threat they pose to Iraq, the region and the wider international community. ","Destroyed 1 x ISIL building","NA","NA","NA","NA",1,1,"NA","NA","NA","NA","NA","NA","NA","NA","NA","NA","NA","NA","http://www.defense.gov/home/features/2014/0814_iraq/Airstrikes6.html"]
["24/10/2014 - 25/10/2014","US & Undetermined Partner Nations",1,1,1,641,"NA","Mix of US & partner nations bomber, fighter and remotely piloted aircraft","Near Aynzalah ","Aynzalah: 36.716667°N,42.600°E","NA","ISIL strongholds near Aynzalah ","The U.S. strikes were conducted as part of Operation Inherent Resolve, the operation to eliminate the terrorist group ISIL and the threat they pose to Iraq, the region and the wider international community. ","Destroyed 1 x ISIL building","NA","NA","NA","NA",1,1,"NA","NA","NA","NA","NA","NA","NA","NA","NA","NA","NA","NA","http://www.defense.gov/home/features/2014/0814_iraq/Airstrikes6.html"]
["25/10/2014 -26/10/2014","US",5,5,5,646,"NA","Mix of fighter and bomber aircraft ","Near Kobani ","Kobani, Ayn al-Arab: 36.889722° N, 38.355556° E","NA","ISIL strongholds near Kobani","The U.S. strikes were conducted as part of Operation Inherent Resolve, the operation to eliminate the terrorist group ISIL and the threat they pose to Iraq, the region and the wider international community.","Destroyed 7 x ISIL vehicles and 1 x ISIL building","NA","NA","NA","NA",1,1,7,7,"NA","NA","NA","NA","NA","NA","NA","NA","NA","NA","http://www.centcom.mil/en/news/articles/oct.-26-military-airstrikes-continue-against-isil-in-syria-and-iraq"]
["25/10/2014 -26/10/2014","US & Undetermined Partner Nations",6,6,6,652,"NA","Mix of US & partner nation fighters, attack and remotely piloted aircraft ","West of the Mosul Dam area ","Mosul Dam: 36.6303° N, 42.8231° E","NA","ISIL strongholds near Mosul Dam.","The U.S. strikes were conducted as part of Operation Inherent Resolve, the operation to eliminate the terrorist group ISIL and the threat they pose to Iraq, the region and the wider international community.","Struck 2 x small ISIL units, damaged 1 x ISIL building and destroyed 4 x ISIL vehicles and 1 x ISIL artillery piece","NA","NA","NA","NA",1,1,4,4,1,1,2,2,"NA","NA","NA","NA","NA","NA","http://www.centcom.mil/en/news/articles/oct.-26-military-airstrikes-continue-against-isil-in-syria-and-iraq"]
["25/10/2014 -26/10/2014","US & Undetermined Partner Nations",3,3,3,655,"NA","Mix of US & partner nation fighters, attack and remotely piloted aircraft ","Southwest of the Mosul Dam area ","Mosul Dam: 36.6303° N, 42.8231° E","NA","ISIL strongholds near Mosul Dam.","The U.S. strikes were conducted as part of Operation Inherent Resolve, the operation to eliminate the terrorist group ISIL and the threat they pose to Iraq, the region and the wider international community.","Struck 1 x large ISIL unit and 1 x small ISIL unit, and destroyed 2 x ISIL vehicles and 2 x ISIL buildings","NA","NA","NA","NA",2,2,2,2,"NA","NA",2,2,"NA","NA","NA","NA","NA","NA","http://www.centcom.mil/en/news/articles/oct.-26-military-airstrikes-continue-against-isil-in-syria-and-iraq"]
["25/10/2014 -26/10/2014","US & Undetermined Partner Nations",3,3,3,658,"NA","Mix of US & partner nation fighters, attack and remotely piloted aircraft ","Southeast of Fallujah ","Fallujah: 33.3500° N, 43.7833° E","NA","ISIL strongholds in Fallujah","The U.S. strikes were conducted as part of Operation Inherent Resolve, the operation to eliminate the terrorist group ISIL and the threat they pose to Iraq, the region and the wider international community.","Struck 2 x large ISIL units, 1 x small ISIL unit and destroyed 1 x ISIL building","NA","NA","NA","NA",1,1,"NA","NA","NA","NA",3,3,"NA","NA","NA","NA","NA","NA","http://www.centcom.mil/en/news/articles/oct.-26-military-airstrikes-continue-against-isil-in-syria-and-iraq"]
["26/10/2014-27/10/2014","US",4,4,4,662,"NA","Mix of US fighter and bomber aircraft ","Near Kobani ","Kobani, Ayn al-Arab: 36.889722° N, 38.355556° E","NA","ISIL strongholds near Kobani","The U.S. strikes were conducted as part of Operation Inherent Resolve, the operation to eliminate the terrorist group ISIL and the threat they pose to Iraq, the region and the wider international community.","Destroyed 5 x ISIL vehicles and 1 x ISIL occupied building","NA","NA","NA","NA",1,1,5,5,"NA","NA","NA","NA","NA","NA","NA","NA","NA","NA","http://www.centcom.mil/en/news/articles/oct.-27-military-airstrikes-continue-against-isil-in-syria-and-iraq"]
["26/10/2014-27/10/2014","US & Undetermined Partner Nations",3,3,3,665,"NA","Mix of US & partner nation fighters, attack and remotely piloted aircraft ","West of the Mosul Dam area ","Mosul Dam: 36.6303° N, 42.8231° E","NA","ISIL strongholds near Mosul Dam.","The U.S. strikes were conducted as part of Operation Inherent Resolve, the operation to eliminate the terrorist group ISIL and the threat they pose to Iraq, the region and the wider international community.","Struck 1 x small ISIL fighting unit","NA","NA","NA","NA","NA","NA","NA","NA","NA","NA",1,1,"NA","NA","NA","NA","NA","NA","http://www.centcom.mil/en/news/articles/oct.-27-military-airstrikes-continue-against-isil-in-syria-and-iraq"]
["26/10/2014-27/10/2014","US & Undetermined Partner Nations",1,1,1,666,"NA","Mix of US & partner nation fighters, attack and remotely piloted aircraft ","Southeast of Fallujah ","Fallujah: 33.3500° N, 43.7833° E","NA","ISIL strongholds in Fallujah","The U.S. strikes were conducted as part of Operation Inherent Resolve, the operation to eliminate the terrorist group ISIL and the threat they pose to Iraq, the region and the wider international community.","Struck 1 x large ISIL unit, destroyed 1 x ISIL building and damaged 1 x ISIL vehicle","NA","NA","NA","NA",1,1,1,1,"NA","NA",1,1,"NA","NA","NA","NA","NA","NA","http://www.centcom.mil/en/news/articles/oct.-27-military-airstrikes-continue-against-isil-in-syria-and-iraq"]
["26/10/2014-27/10/2014","US & Undetermined Partner Nations",1,1,1,667,"NA","Mix of US & partner nation fighters, attack and remotely piloted aircraft ","South of the Bayji Oil refinery ","Bayji: 34.9292° N, 43.4931° E","NA","ISIL strongholds near Bayji oil refinery","The U.S. strikes were conducted as part of Operation Inherent Resolve, the operation to eliminate the terrorist group ISIL and the threat they pose to Iraq, the region and the wider international community.","Struck ISIL fighters. ","NA","NA","NA","NA","NA","NA","NA","NA","NA","NA","NA","NA","NA","NA","NA","NA","> 2","NA","http://www.centcom.mil/en/news/articles/oct.-27-military-airstrikes-continue-against-isil-in-syria-and-iraq"]
["26/10/2014-27/10/2014","US & Undetermined Partner Nations",1,1,1,668,"NA","Mix of US & partner nation fighters, attack and remotely piloted aircraft ","South of Bayji ","Bayji: 34.9292° N, 43.4931° E","NA","ISIL strongholds near Bayji","The U.S. strikes were conducted as part of Operation Inherent Resolve, the operation to eliminate the terrorist group ISIL and the threat they pose to Iraq, the region and the wider international community.","Struck  1x  small ISIL unit and destroyed 1 x IED","NA","NA","NA","NA","NA","NA","NA","NA",1,1,1,1,"NA","NA","NA","NA","NA","NA","http://www.centcom.mil/en/news/articles/oct.-27-military-airstrikes-continue-against-isil-in-syria-and-iraq"]
["26/10/2014-27/10/2014","US & Undetermined Partner Nations",1,1,1,669,"NA","Mix of US & partner nation fighters, attack and remotely piloted aircraft ","East of Zumar ","Zumar: 36.656667°N, 42.604722°E ","NA","ISIL strongholds in Zumar","The U.S. strikes were conducted as part of Operation Inherent Resolve, the operation to eliminate the terrorist group ISIL and the threat they pose to Iraq, the region and the wider international community.","Struck 1 x small ISIL unit and destroyed 2 x ISIL occupied buildings","NA","NA","NA","NA",2,2,"NA","NA","NA","NA",1,1,"NA","NA","NA","NA","NA","NA","http://www.centcom.mil/en/news/articles/oct.-27-military-airstrikes-continue-against-isil-in-syria-and-iraq"]
["27/10/2014 - 28/10/2014","US",4,4,4,673,"NA","Mix of US attack and fighter aircraft ","Near Kobani ","Kobani, Ayn al-Arab: 36.889722° N, 38.355556° E","NA","ISIL strongholds near Kobani","The U.S. strikes were conducted as part of Operation Inherent Resolve, the operation to eliminate the terrorist group ISIL and the threat they pose to Iraq, the region and the wider international community.","Destroyed 4 x ISIL fighting positions and 1 x small ISIL unit","NA","NA","NA","NA","NA","NA","NA","NA","NA","NA",5,5,"NA","NA","NA","NA","NA","NA","http://www.centcom.mil/en/news/articles/oct.-28-military-airstrikes-continue-against-isil-in-syria-and-iraq"]
["27/10/2014 - 28/10/2014","US & Undetermined Partner Nations",2,2,2,675,"NA","Mix of US & partner nation using attack, fighter, and remotely piloted aircraft ","In the vicinity of Fallujah ","Fallujah: 33.3500° N, 43.7833° E","NA","ISIL strongholds in Fallujah","The U.S. strikes were conducted as part of Operation Inherent Resolve, the operation to eliminate the terrorist group ISIL and the threat they pose to Iraq, the region and the wider international community.","Destroyed 1 x small ISIL unit and 1 x ISIL tank","NA","NA","NA","NA","NA","NA",1,1,"NA","NA",1,1,"NA","NA","NA","NA","NA","NA","http://www.centcom.mil/en/news/articles/oct.-28-military-airstrikes-continue-against-isil-in-syria-and-iraq"]
["27/10/2014 - 28/10/2014","US & Undetermined Partner Nations",4,4,4,679,"NA","Mix of US & partner nation using attack, fighter, and remotely piloted aircraft ","In the vicinity of Mosul Dam","Mosul Dam: 36.6303° N, 42.8231° E","https://www.youtube.com/watch?v=JfJ-URx4CBw&list=UUNEEHeS9Y2yFVLbWGeHhbYA&index=1","ISIL strongholds near Mosul Dam.","The U.S. strikes were conducted as part of Operation Inherent Resolve, the operation to eliminate the terrorist group ISIL and the threat they pose to Iraq, the region and the wider international community.","Destroyed 1 x small ISIL unit, 1 x ISIL fighting position, 1 x ISIL vehicle and 1 x ISIL logistics base.","NA","NA","NA","NA",1,1,1,1,"NA","NA",2,2,"NA","NA","NA","NA","NA","NA","http://www.centcom.mil/en/news/articles/oct.-28-military-airstrikes-continue-against-isil-in-syria-and-iraq"]
["27/10/2014 - 28/10/2014","US & Undetermined Partner Nations",1,1,1,680,"NA","Mix of US & partner nation using attack, fighter, and remotely piloted aircraft ","West of Baghdad ","Baghdad: 33.3250° N, 44.4220° E","NA","ISIL strongholds west of Baghdad ","The U.S. strikes were conducted as part of Operation Inherent Resolve, the operation to eliminate the terrorist group ISIL and the threat they pose to Iraq, the region and the wider international community.","Destroyed 1 x ISIL-occupied building and 1 x small ISIL unit","NA","NA","NA","NA",1,1,"NA","NA","NA","NA",1,1,"NA","NA","NA","NA","NA","NA","http://www.centcom.mil/en/news/articles/oct.-28-military-airstrikes-continue-against-isil-in-syria-and-iraq"]
["27/10/2014 - 28/10/2014","US & Undetermined Partner Nations",1,1,1,681,"NA","Mix of US & partner nation using attack, fighter, and remotely piloted aircraft ","In the vicinity of Sinjar ","Sinjar: 36.3225° N, 41.8642° E","NA","ISIL strongholds in the vicinity of Sinjar ","The U.S. strikes were conducted as part of Operation Inherent Resolve, the operation to eliminate the terrorist group ISIL and the threat they pose to Iraq, the region and the wider international community.","Struck 1 x ISIL fighting emplacement and destroyed 6 x vehicles.","NA","NA","NA","NA",1,1,6,6,"NA","NA","NA","NA","NA","NA","NA","NA","NA","NA","http://www.centcom.mil/en/news/articles/oct.-28-military-airstrikes-continue-against-isil-in-syria-and-iraq"]
["27/10/2014 - 28/10/2014","US & Undetermined Partner Nations",1,1,1,682,"NA","Mix of US & partner nation using attack, fighter, and remotely piloted aircraft ","Northwest of Haditha ","Haditha: 34.1397° N, 42.3781° E","NA","ISIL strongholds northwest of Haditha ","The U.S. strikes were conducted as part of Operation Inherent Resolve, the operation to eliminate the terrorist group ISIL and the threat they pose to Iraq, the region and the wider international community.","Destroyed 1 x ISIL-occupied building used as a staging area.  ","NA","NA","NA","NA",1,1,"NA","NA","NA","NA","NA","NA","NA","NA","NA","NA","NA","NA","http://www.centcom.mil/en/news/articles/oct.-28-military-airstrikes-continue-against-isil-in-syria-and-iraq"]
["28/10/2014 -29/10/2014","US",8,8,8,690,"NA","Mix of US fighter and bomber aircraft ","Near Kobani ","Kobani, Ayn al-Arab: 36.889722° N, 38.355556° E","NA","ISIL strongholds near Kobani","The U.S. strikes were conducted as part of Operation Inherent Resolve, the operation to eliminate the terrorist group ISIL and the threat they pose to Iraq, the region and the wider international community.","Destroyed 5 x ISIL fighting positions, 1 x small ISIL unit, 6 x ISIL vehicles, 1 x ISIL-occupied building and 1 x ISIL command and control node.","NA","NA","NA","NA",1,1,6,6,"NA","NA",7,7,"NA","NA","NA","NA","NA","NA","http://www.defense.gov/news/newsarticle.aspx?id=123520"]
["28/10/2014 -29/10/2014","US",3,3,3,693,"NA","Mix of US using attack, fighter and remotely piloted aircraft ","near Fallujah ","Fallujah: 33.3500° N, 43.7833° E","NA","ISIL strongholds in Fallujah","The U.S. strikes were conducted as part of Operation Inherent Resolve, the operation to eliminate the terrorist group ISIL and the threat they pose to Iraq, the region and the wider international community.","Destroyed 3 x small ISIL units.","NA","NA","NA","NA","NA","NA","NA","NA","NA","NA",3,3,"NA","NA","NA","NA","NA","NA","http://www.defense.gov/news/newsarticle.aspx?id=123521"]
["28/10/2014 -29/10/2014","US",3,3,3,696,"NA","Mix of US using attack, fighter and remotely piloted aircraft ","vicinity of Sinjar ","Sinjar: 36.3225° N, 41.8642° E","NA","ISIL strongholds in the vicinity of Sinjar ","The U.S. strikes were conducted as part of Operation Inherent Resolve, the operation to eliminate the terrorist group ISIL and the threat they pose to Iraq, the region and the wider international community.","Destroyed 1 x small ISIL unit and 2 x ISIL vehicles","NA","NA","NA","NA","NA","NA",2,2,"NA","NA",1,1,"NA","NA","NA","NA","NA","NA","http://www.defense.gov/news/newsarticle.aspx?id=123522"]
["29/10/2014 - 30/10/2014","US",10,10,10,706,"NA","Mix of US fighter and bomber aircraft","Near Kobani ","Kobani, Ayn al-Arab: 36.889722° N, 38.355556° E","NA","ISIL strongholds near Kobani","The U.S. strikes were conducted as part of Operation Inherent Resolve, the operation to eliminate the terrorist group ISIL and the threat they pose to Iraq, the region and the wider international community.","Struck 2 x small ISIL units and destroyed 7 x ISIL fighting positions and 5 x ISIL-occupied buildings","NA","NA","NA","NA",5,5,"NA","NA","NA","NA",9,9,"NA","NA","NA","NA","NA","NA","http://www.defense.gov/home/features/2014/0814_iraq/Airstrikes6.html"]
["29/10/2014 - 30/10/2014","US",1,1,1,707,"NA","Mix of US fighter and bomber aircraft","Near Dayr Az Zawr","Dayr az Zawr: 35.3333° N, 40.1500° E","NA"," ISIL HQ building","The U.S. strikes were conducted as part of Operation Inherent Resolve, the operation to eliminate the terrorist group ISIL and the threat they pose to Iraq, the region and the wider international community. ","Damaged 1 x ISIL headquarters building","NA","NA","NA","NA",1,1,"NA","NA","NA","NA","NA","NA","NA","NA","NA","NA","NA","NA","http://www.defense.gov/home/features/2014/0814_iraq/Airstrikes6.html"]
["29/10/2014 - 30/10/2014","US",1,1,1,708,"NA","Mix of US fighter and bomber aircraft","Near Ar Raqqah","Ar Raqqah: 35.9500° N, 39.0167° E","NA","ISIL Security building","The U.S. strikes were conducted as part of Operation Inherent Resolve, the operation to eliminate the terrorist group ISIL and the threat they pose to Iraq, the region and the wider international community. ","Damaged 1 x ISIL security building","NA","NA","NA","NA",1,1,"NA","NA","NA","NA","NA","NA","NA","NA","NA","NA","NA","NA","http://www.defense.gov/home/features/2014/0814_iraq/Airstrikes6.html"]
["29/10/2014 - 30/10/2014","US & Undetermined Partner Nations",1,1,1,709,"NA","Mix of US and partner nation attack, fighter, and remotely piloted aircraft","Near Bayji ","Bayji: 34.9292° N, 43.4931° E","NA","ISIL strongholds near Bayji","The U.S. strikes were conducted as part of Operation Inherent Resolve, the operation to eliminate the terrorist group ISIL and the threat they pose to Iraq, the region and the wider international community.","struck 1 x small ISIL unit and destroyed 1 x ISIL vehicle","NA","NA","NA","NA","NA","NA",1,1,"NA","NA",1,1,"NA","NA","NA","NA","NA","NA","http://www.defense.gov/home/features/2014/0814_iraq/Airstrikes6.html"]
["29/10/2014 - 30/10/2014","US & Undetermined Partner Nations",1,1,1,710,"NA","Mix of US and partner nation attack, fighter, and remotely piloted aircraft","West of Ramadi","Ramadi: 33.4167° N, 43.3000° E","NA","ISIL strongholds near Ramadi","The U.S. strikes were conducted as part of Operation Inherent Resolve, the operation to eliminate the terrorist group ISIL and the threat they pose to Iraq, the region and the wider international community."," struck 1 x ISIL checkpoint","NA","NA","NA","NA","NA","NA","NA","NA","NA","NA","NA","NA",1,1,"NA","NA","NA","NA","http://www.defense.gov/home/features/2014/0814_iraq/Airstrikes6.html"]
["30/10/2014-31/10/2014","US",4,4,4,714,"NA","Mix of US fighter and bomber aircraft","Near Kobani ","Kobani, Ayn al-Arab: 36.889722° N, 38.355556° E","NA","ISIL strongholds near Kobani","The U.S. strikes were conducted as part of Operation Inherent Resolve, the operation to eliminate the terrorist group ISIL and the threat they pose to Iraq, the region and the wider international community.","Damaged 4 x ISIL fighting positions and 1 x ISIL building","NA","NA","NA","NA",1,1,"NA","NA","NA","NA",4,4,"NA","NA","NA","NA","NA","NA","http://www.centcom.mil/en/news/articles/oct.-31-military-airstrikes-continue-against-isil-in-syria-and-iraq"]
["30/10/2014-31/10/2014","US & Undetermined Partner Nations",1,1,1,715,"NA","Mix of US and partner nation fighter and remotely piloted aircraft ","Near Fallujah ","Fallujah: 33.3500° N, 43.7833° E","NA","ISIL strongholds in Fallujah","The U.S. strikes were conducted as part of Operation Inherent Resolve, the operation to eliminate the terrorist group ISIL and the threat they pose to Iraq, the region and the wider international community. ","Struck 1 x small ISIL unit ","NA","NA","NA","NA","NA","NA","NA","NA","NA","NA",1,1,"NA","NA","NA","NA","NA","NA","http://www.centcom.mil/en/news/articles/oct.-31-military-airstrikes-continue-against-isil-in-syria-and-iraq"]
["30/10/2014-31/10/2014","US & Undetermined Partner Nations",1,1,1,716,"NA","Mix of US and partner nation fighter and remotely piloted aircraft ","Near Bayji ","Bayji: 34.9292° N, 43.4931° E","NA","ISIL strongholds near Bayji","The U.S. strikes were conducted as part of Operation Inherent Resolve, the operation to eliminate the terrorist group ISIL and the threat they pose to Iraq, the region and the wider international community.","Struck 1 x small ISIL unit ","NA","NA","NA","NA","NA","NA","NA","NA","NA","NA",1,1,"NA","NA","NA","NA","NA","NA","http://www.centcom.mil/en/news/articles/oct.-31-military-airstrikes-continue-against-isil-in-syria-and-iraq"]
["30/10/2014-31/10/2014","US & Undetermined Partner Nations",1,1,1,717,"NA","Mix of US and partner nation fighter and remotely piloted aircraft ","Near Al Qaim ","Al Qa'im: 34.3688° N, 41.0945° E","NA","ISIL strongholds near Al Qaim ","The U.S. strikes were conducted as part of Operation Inherent Resolve, the operation to eliminate the terrorist group ISIL and the threat they pose to Iraq, the region and the wider international community.","Destroyed 1 x ISIL checkpoint and 1 x ISIL vehicle","NA","NA","NA","NA","NA","NA",1,1,"NA","NA","NA","NA",1,1,"NA","NA","NA","NA","http://www.centcom.mil/en/news/articles/oct.-31-military-airstrikes-continue-against-isil-in-syria-and-iraq"]
["30/10/2014-31/10/2015","US & Undetermined Partner Nations",1,1,1,718,"NA","Mix of US and partner nation fighter and remotely piloted aircraft ","North of Tikrit ","Tikrit: 34.6000° N, 43.6833° E","NA","ISIL strongholds north of Tikrit","The U.S. strikes were conducted as part of Operation Inherent Resolve, the operation to eliminate the terrorist group ISIL and the threat they pose to Iraq, the region and the wider international community.","Struck 1 x large ISIL unit and destroyed 3 x ISIL-occupied buildings","NA","NA","NA","NA",3,3,"NA","NA","NA","NA",1,1,"NA","NA","NA","NA","NA","NA","http://www.centcom.mil/en/news/articles/oct.-31-military-airstrikes-continue-against-isil-in-syria-and-iraq"]
["31/10/2014-01/11/2014","US",5,5,5,{"$f":"F304+E305","v":723},"NA","Mix of US fighter and bomber aircraft ","Near Kobani ","Kobani, Ayn al-Arab: 36.889722° N, 38.355556° E","NA","ISIL strongholds near Kobani","The U.S. strikes were conducted as part of Operation Inherent Resolve, the operation to eliminate the terrorist group ISIL and the threat they pose to Iraq, the region and the wider international community.","Suppressed or destroyed 9 x ISIL fighting positions and struck 1 x ISIL building","NA","NA","NA","NA",1,1,"NA","NA","NA","NA",9,9,"NA","NA","NA","NA","NA","NA","http://www.centcom.mil/en/news/articles/nov.-1-military-airstrikes-continue-against-isil-in-syria-and-iraq"]
["31/10/2014-01/11/2014","US & Undetermined Partner Nations",1,1,1,724,"NA","Mix of US and partner nation attack, bomber and fighter aircraft ","Southwest of the Mosul Dam ","Mosul Dam: 36.6303° N, 42.8231° E","NA","ISIL strongholds near Mosul Dam.","The U.S. strikes were conducted as part of Operation Inherent Resolve, the operation to eliminate the terrorist group ISIL and the threat they pose to Iraq, the region and the wider international community.","Destroyed 1 x ISIL vehicle","NA","NA","NA","NA","NA","NA",1,1,"NA","NA","NA","NA","NA","NA","NA","NA","NA","NA","http://www.centcom.mil/en/news/articles/nov.-1-military-airstrikes-continue-against-isil-in-syria-and-iraq"]
["31/10/2014-01/11/2015","US & Undetermined Partner Nations",4,4,4,728,"NA","Mix of US and partner nation attack, bomber and fighter aircraft ","Near Al Qaim ","Al Qa'im: 34.3688° N, 41.0945° E","NA","ISIL strongholds near Al Qaim ","The U.S. strikes were conducted as part of Operation Inherent Resolve, the operation to eliminate the terrorist group ISIL and the threat they pose to Iraq, the region and the wider international community.","Heavily damaged or destroyed 4 x ISIL vehicles and struck 4 x ISIL buildings","NA","NA","NA","NA",4,4,4,4,"NA","NA","NA","NA","NA","NA","NA","NA","NA","NA","http://www.centcom.mil/en/news/articles/nov.-1-military-airstrikes-continue-against-isil-in-syria-and-iraq"]
["01/11/2014-02/11/2014","US",5,5,5,733,"NA","Mix of US attack, fighter and bomber aircraft ","Near Kobani ","Kobani, Ayn al-Arab: 36.889722° N, 38.355556° E","NA","ISIL strongholds near Kobani","The U.S. strikes were conducted as part of Operation Inherent Resolve, the operation to eliminate the terrorist group ISIL and the threat they pose to Iraq, the region and the wider international community.","Struck 5 x small ISIL units and destroyed 3 x ISIL vehicles","NA","NA","NA","NA","NA","NA",3,3,"NA","NA",5,5,"NA","NA","NA","NA","NA","NA","http://www.centcom.mil/en/news/articles/nov.-2-military-airstrikes-continue-against-isil-in-syria-and-iraq"]
["01/11/2014-02/11/2014","US",2,2,2,735,"NA","Mix of US attack, fighter and bomber aircraft ","Southeast of Dayr Az Zawr","Dayr az Zawr: 35.3333° N, 40.1500° E","NA","ISIL strongholds southeast of Dayr Az Zawr","The U.S. strikes were conducted as part of Operation Inherent Resolve, the operation to eliminate the terrorist group ISIL and the threat they pose to Iraq, the region and the wider international community. ","Destroyed 1 x ISIL tank and 2 x vehicle shelters","NA","NA","NA","NA",2,2,1,1,"NA","NA","NA","NA","NA","NA","NA","NA","NA","NA","http://www.centcom.mil/en/news/articles/nov.-2-military-airstrikes-continue-against-isil-in-syria-and-iraq"]
["01/11/2014-02/11/2014","US & Undetermined Partner Nations",1,1,1,736,"NA","Mix of US and partner nation fighter and remotely piloted aircraft ","Near Bayji ","Bayji: 34.9292° N, 43.4931° E","NA","ISIL strongholds near Bayji","The U.S. strikes were conducted as part of Operation Inherent Resolve, the operation to eliminate the terrorist group ISIL and the threat they pose to Iraq, the region and the wider international community.","Struck 1 x small ISIL unit","NA","NA","NA","NA","NA","NA","NA","NA","NA","NA",1,1,"NA","NA","NA","NA","NA","NA","http://www.centcom.mil/en/news/articles/nov.-2-military-airstrikes-continue-against-isil-in-syria-and-iraq"]
["01/11/2014-02/11/2014","US & Undetermined Partner Nations",1,1,1,737,"NA","Mix of coalition fighter and remotely-piloted aircraft ","Southeast of Fallujah","Fallujah: 33.3500° N, 43.7833° E","NA","ISIL strongholds in Fallujah","The U.S. strikes were conducted as part of Operation Inherent Resolve, the operation to eliminate the terrorist group ISIL and the threat they pose to Iraq, the region and the wider international community. ","Struck 1 x small ISIL unit","NA","NA","NA","NA","NA","NA","NA","NA","NA","NA",1,1,"NA","NA","NA","NA","NA","NA","http://www.centcom.mil/en/news/articles/nov.-2-military-airstrikes-continue-against-isil-in-syria-and-iraq"]
["02/11/2014-03/11/2014","US & Undetermined Partner Nations",4,4,4,741,"NA","Mix of US and partner nation fighter and bomber aircraft ","Near Kobani ","Kobani, Ayn al-Arab: 36.889722° N, 38.355556° E","NA","ISIL strongholds near Kobani","The U.S. strikes were conducted as part of Operation Inherent Resolve, the operation to eliminate the terrorist group ISIL and the threat they pose to Iraq, the region and the wider international community. ","Struck 1 x ISIL fighting position, 1 x small ISIL unit and destroyed 2 x buildings","NA","NA","NA","NA",2,2,"NA","NA","NA","NA",2,2,"NA","NA","NA","NA","NA","NA","http://www.centcom.mil/en/news/articles/nov.-3-military-airstrikes-continue-against-isil-in-syria-and-iraq"]
["02/11/2014-03/11/2014","US & Undetermined Partner Nations",1,1,1,742,"NA","Mix of US and partner nation fighter and bomber aircraft ","Near Dayr Az Zawr","Dayr az Zawr: 35.3333° N, 40.1500° E","NA","ISIL strongholds near Dayr Az Zawr","The U.S. strikes were conducted as part of Operation Inherent Resolve, the operation to eliminate the terrorist group ISIL and the threat they pose to Iraq, the region and the wider international community. ","Damaged 1 x ISIL building","NA","NA","NA","NA",1,1,"NA","NA","NA","NA","NA","NA","NA","NA","NA","NA","NA","NA","http://www.centcom.mil/en/news/articles/nov.-3-military-airstrikes-continue-against-isil-in-syria-and-iraq"]
["02/11/2014-03/11/2014","US & Undetermined Partner Nations",2,2,2,744,"NA","Mix of US and partner nation fighter, bomber and remotely-piloted aircraft ","Near Bayji ","Bayji: 34.9292° N, 43.4931° E","NA","ISIL strongholds near Bayji","The U.S. strikes were conducted as part of Operation Inherent Resolve, the operation to eliminate the terrorist group ISIL and the threat they pose to Iraq, the region and the wider international community.","Struck 1 x ISIL fighting position, 1 x small ISIL unit and destroyed 1 x ISIL vehicle","NA","NA","NA","NA","NA","NA",1,1,"NA","NA",2,2,"NA","NA","NA","NA","NA","NA","http://www.centcom.mil/en/news/articles/nov.-3-military-airstrikes-continue-against-isil-in-syria-and-iraq"]
["02/11/2014-03/11/2014","US & Undetermined Partner Nations",4,4,4,748,"NA","Mix of US and partner nation fighter and remotely piloted aircraft ","Near Fallujah ","Fallujah: 33.3500° N, 43.7833° E","NA","ISIL strongholds in Fallujah","The U.S. strikes were conducted as part of Operation Inherent Resolve, the operation to eliminate the terrorist group ISIL and the threat they pose to Iraq, the region and the wider international community. ","Struck 1 x large ISIL unit and destroyed 5 x ISIL bulldozers and 1 x ISIL dump truck involved in creating obstructions and berms.","NA","NA","NA","NA","NA","NA",6,6,"NA","NA",1,1,"NA","NA","NA","NA","NA","NA","http://www.centcom.mil/en/news/articles/nov.-3-military-airstrikes-continue-against-isil-in-syria-and-iraq"]
["02/11/2014-03/11/2014","US & Undetermined Partner Nations",3,3,3,751,"NA","Mix of US and partner nation fighter, bomber and remotely-piloted aircraft ","Near Ar Rutbah ","Ar Rutbah: 33.0381° N, 40.2844° E","NA","ISIL strongholds near Ar Rutbah ","The U.S. strikes were conducted as part of Operation Inherent Resolve, the operation to eliminate the terrorist group ISIL and the threat they pose to Iraq, the region and the wider international community. ","Damaged 1 x ISIL vehicle and destroyed 4 x ISIL vehicles","NA","NA","NA","NA","NA","NA",5,5,"NA","NA","NA","NA","NA","NA","NA","NA","NA","NA","http://www.centcom.mil/en/news/articles/nov.-3-military-airstrikes-continue-against-isil-in-syria-and-iraq"]
["03/11/2014-05/11/2014","US",3,3,3,754,"NA","Mix of US attack and fighter aircraft ","Near Kobani ","Kobani, Ayn al-Arab: 36.889722° N, 38.355556° E","NA","ISIL strongholds near Kobani","The U.S. strikes were conducted as part of Operation Inherent Resolve, the operation to eliminate the terrorist group ISIL and the threat they pose to Iraq, the region and the wider international community. ","Struck 1 x small ISIL unit, 2 x ISIL fighting positions and 1 x ISIL dump truck used to construct fighting positions.","NA","NA","NA","NA","NA","NA",1,1,"NA","NA",3,3,"NA","NA","NA","NA","NA","NA","http://www.centcom.mil/en/news/articles/nov.-5-military-airstrikes-continue-against-isil-in-syria-and-iraq"]
["03/11/2014-05/11/2014","US",1,1,1,755,"NA","Mix of US attack and fighter aircraft ","In Syria, north of Sinjar ","Al-Malikiyah District,\nSyria:\n36.614459° N, 41.825659° E","NA","ISIL strongholds north of Sinjar ","The U.S. strikes were conducted as part of Operation Inherent Resolve, the operation to eliminate the terrorist group ISIL and the threat they pose to Iraq, the region and the wider international community.","Destroyed 1 x ISIL fighting position used to launch mortar attacks and struck 1 x small ISIL unit manning the position.","NA","NA","NA","NA","NA","NA","NA","NA","NA","NA",2,2,"NA","NA","NA","NA","NA","NA","http://www.centcom.mil/en/news/articles/nov.-5-military-airstrikes-continue-against-isil-in-syria-and-iraq"]
["03/11/2014-05/11/2014","US & Undetermined Partner Nations",1,1,1,756,"NA","Mix of coalition fighter, attack and remotely-piloted aircraft","Near Mosul ","Mosul: 36.3400° N, 43.1300° E","NA","ISIL-occupied buildings near Mosul","The U.S. strikes were conducted as part of Operation Inherent Resolve, the operation to eliminate the terrorist group ISIL and the threat they pose to Iraq, the region and the wider international community.","Destroyed ISIL-occupied buildings, to include 1 x housing a generator used for oil production and 1 x used to manufacture explosive devices such as IEDS and VBIEDs.","NA","NA",1,1,">2","NA","NA","NA","NA","NA","NA","NA","NA","NA","NA","NA","NA","NA","http://www.centcom.mil/en/news/articles/nov.-5-military-airstrikes-continue-against-isil-in-syria-and-iraq"]
["03/11/2014-05/11/2014","US & Undetermined Partner Nations",3,3,3,759,"NA","Mix of coalition fighter, attack and remotely-piloted aircraft","Near Bayji ","Bayji: 34.9292° N, 43.4931° E","https://www.youtube.com/watch?v=3ryjukgcMk0&list=UUNEEHeS9Y2yFVLbWGeHhbYA&index=6","ISIL strongholds near Bayji","The U.S. strikes were conducted as part of Operation Inherent Resolve, the operation to eliminate the terrorist group ISIL and the threat they pose to Iraq, the region and the wider international community.","Struck 2 x small ISIL units, destroyed 1 x ISIL vehicle, 1 x ISIL-occupied bunker and 1 x ISIL anti-aircraft artillery piece.","NA","NA","NA","NA",1,1,1,1,1,1,2,2,"NA","NA","NA","NA","NA","NA","http://www.centcom.mil/en/news/articles/nov.-5-military-airstrikes-continue-against-isil-in-syria-and-iraq"]
["03/11/2014-05/11/2014","US & Undetermined Partner Nations",1,1,1,760,"NA","Mix of coalition fighter, attack and remotely-piloted aircraft","Near Fallujah","Fallujah: 33.3500° N, 43.7833° E","NA","ISIL strongholds in Fallujah","The U.S. strikes were conducted as part of Operation Inherent Resolve, the operation to eliminate the terrorist group ISIL and the threat they pose to Iraq, the region and the wider international community. ","Struck 1 x small ISIL unit and destroyed 1 x ISIL vehicle","NA","NA","NA","NA","NA","NA",1,1,"NA","NA",1,1,"NA","NA","NA","NA","NA","NA","http://www.centcom.mil/en/news/articles/nov.-5-military-airstrikes-continue-against-isil-in-syria-and-iraq"]
["03/11/2014-05/11/2014","US & Undetermined Partner Nations",3,3,3,763,"NA","Mix of coalition fighter, attack and remotely-piloted aircraft","In the vicinity of Ramadi ","Ramadi: 33.4167° N, 43.3000° E","NA","ISIL strongholds in the vicinity of Ramadi ","The U.S. strikes were conducted as part of Operation Inherent Resolve, the operation to eliminate the terrorist group ISIL and the threat they pose to Iraq, the region and the wider international community. ","Damaged 1 x ISIL vehicle and destroyed 1 x ISIL checkpoint","NA","NA","NA","NA","NA","NA",1,1,"NA","NA","NA","NA",1,1,"NA","NA","NA","NA","http://www.centcom.mil/en/news/articles/nov.-5-military-airstrikes-continue-against-isil-in-syria-and-iraq"]
["03/11/2014-05/11/2014","US & Undetermined Partner Nations",2,2,2,765,"NA","Mix of coalition fighter, attack and remotely-piloted aircraft","North of Sinjar","Sinjar: 36.3225° N, 41.8642° E","NA","ISIL strongholds north of Sinjar ","The U.S. strikes were conducted as part of Operation Inherent Resolve, the operation to eliminate the terrorist group ISIL and the threat they pose to Iraq, the region and the wider international community.","Struck  1 x small ISIL unit and destroyed 1 x ISIL armored vehicle","NA","NA","NA","NA","NA","NA",1,1,"NA","NA",1,1,"NA","NA","NA","NA","NA","NA","http://www.centcom.mil/en/news/articles/nov.-5-military-airstrikes-continue-against-isil-in-syria-and-iraq"]
["05/11/2014 - 06/11/2014","US",2,"> 2",2,{"$f":"F323+E324","v":767},"Night","Mix of US bomber, fighter and remotely piloted aircraft","In the vicinity of Sarmada, Syria","Sarmada: 36.1833° N, 36.7167° E","NA"," Five Khorasan Group targets  in the vicinity of Sarmada","These strikes were not in response to the Nusrah Front's clashes with the Syrian moderate opposition, and they did not target the Nusrah Front as a whole.  They were directed at the Khorasan Group whose focus is not on overthrowing the Assad regime or helping the Syrian people. These al-Qa'ida operatives are taking advantage of the Syrian conflict to advance attacks against Western interests.","Centcom  still assessing the outcome of the attack, but have initial indications that it resulted in the intended effects by striking terrorists and destroying or severely damaging several Khorasan Group vehicles and buildings assessed to be meeting and staging areas, IED-making facilities and training facilities. ","NA","NA","NA","NA","NA","NA","NA","NA","NA","NA","NA","NA","NA","NA",">2","NA","NA","NA","http://www.centcom.mil/en/news/articles/nov.-6-u.s.-military-forces-conduct-airstrikes-against-khorasan-group-terro"]
["05/11/2014 - 07/11/2014","US & Undetermined Partner Nations",7,7,7,{"$f":"F324+E325","v":774},"NA","Mix of  U.S. and partner nation fighter, bomber and remotely piloted aircraft ","Near Kobani ","Kobani, Ayn al-Arab: 36.889722° N, 38.355556° E","NA","ISIL strongholds near Kobani","The U.S. strikes were conducted as part of Operation Inherent Resolve, the operation to eliminate the terrorist group ISIL and the threat they pose to Iraq, the region and the wider international community. ","Struck 3 x small ISIL units, 7 x ISIL fighting positions and destroyed 1 x ISIL artillery piece","NA","NA","NA","NA","NA","NA","NA","NA",1,1,10,10,"NA","NA","NA","NA","NA","NA","http://www.centcom.mil/en/news/articles/nov.-7-military-airstrikes-continue-against-isil-in-syria-and-iraq"]
["05/11/2014 - 07/11/2014","US & Undetermined Partner Nations",1,1,1,{"$f":"F325+E326","v":775},"NA","Mix of  U.S. and partner nation fighter, bomber and remotely piloted aircraft ","Near Tall Abyad ","Tall Abyad: 36.6975° N, 38.9567° E","NA","ISIL weapons stockpile near Tall (Tell) Abyad","The U.S. strikes were conducted as part of Operation Inherent Resolve, the operation to eliminate the terrorist group ISIL and the threat they pose to Iraq, the region and the wider international community. ","Destroyed 1 x ISIL weapons stockpile","NA","NA","NA","NA","NA","NA","NA","NA",1,1,"NA","NA","NA","NA","NA","NA","NA","NA","http://www.centcom.mil/en/news/articles/nov.-7-military-airstrikes-continue-against-isil-in-syria-and-iraq"]
["05/11/2014 - 07/11/2014","US & Undetermined Partner Nations",1,1,1,{"$f":"F326+E327","v":776},"NA","Mix of  U.S. and partner nation fighter, bomber and remotely piloted aircraft ","Near Fallujah ","Fallujah: 33.3500° N, 43.7833° E","NA","ISIL strongholds in Fallujah","The U.S. strikes were conducted as part of Operation Inherent Resolve, the operation to eliminate the terrorist group ISIL and the threat they pose to Iraq, the region and the wider international community. ","Destroyed 2 x ISIL bulldozers engaged in constructing obstructions.","NA","NA","NA","NA","NA","NA",2,2,"NA","NA","NA","NA","NA","NA","NA","NA","NA","NA","http://www.centcom.mil/en/news/articles/nov.-7-military-airstrikes-continue-against-isil-in-syria-and-iraq"]
["05/11/2014 - 07/11/2014","US & Undetermined Partner Nations",1,1,1,777,"NA","Mix of  U.S. and partner nation fighter, bomber and remotely piloted aircraft ","Near Bayji ","Bayji: 34.9292° N, 43.4931° E","NA","ISIL strongholds near Bayji","The U.S. strikes were conducted as part of Operation Inherent Resolve, the operation to eliminate the terrorist group ISIL and the threat they pose to Iraq, the region and the wider international community.","Struck 1 x small ISIL unit and damaged 1 x ISIL building","NA","NA","NA","NA",1,1,"NA","NA","NA","NA",1,1,"NA","NA","NA","NA","NA","NA","http://www.centcom.mil/en/news/articles/nov.-7-military-airstrikes-continue-against-isil-in-syria-and-iraq"]
["05/11/2014 - 07/11/2014","US & Undetermined Partner Nations",2,2,2,779,"NA","Mix of  U.S. and partner nation fighter, bomber and remotely piloted aircraft ","Near Ramadi","Ramadi: 33.4167° N, 43.3000° E","NA","ISIL strongholds near Ramadi","The U.S. strikes were conducted as part of Operation Inherent Resolve, the operation to eliminate the terrorist group ISIL and the threat they pose to Iraq, the region and the wider international community.","Destroyed 1 x ISIL vehicle","NA","NA","NA","NA","NA","NA",1,1,"NA","NA","NA","NA","NA","NA","NA","NA","NA","NA","http://www.centcom.mil/en/news/articles/nov.-7-military-airstrikes-continue-against-isil-in-syria-and-iraq"]
["05/11/2014 - 07/11/2014","US & Undetermined Partner Nations",1,1,1,780,"NA","Mix of  U.S. and partner nation fighter, bomber and remotely piloted aircraft ","Southeast of Fallujah","Fallujah: 33.3500° N, 43.7833° E","NA","ISIL strongholds southeast of Fallujah","The U.S. strikes were conducted as part of Operation Inherent Resolve, the operation to eliminate the terrorist group ISIL and the threat they pose to Iraq, the region and the wider international community. ","Struck 1 x small ISIL unit and destroyed 2 x ISIL vehicles","NA","NA","NA","NA","NA","NA",2,2,"NA","NA",1,1,"NA","NA","NA","NA","NA","NA","http://www.centcom.mil/en/news/articles/nov.-7-military-airstrikes-continue-against-isil-in-syria-and-iraq"]
["05/11/2014 - 07/11/2014","US & Undetermined Partner Nations",1,1,1,781,"NA","Mix of  U.S. and partner nation fighter, bomber and remotely piloted aircraft ","Northwest of Haditha","Haditha: 34.1397° N, 42.3781° E","NA","ISIL strongholds northwest of Haditha","The U.S. strikes were conducted as part of Operation Inherent Resolve, the operation to eliminate the terrorist group ISIL and the threat they pose to Iraq, the region and the wider international community. ","Destroyed 4 x ISIL vehicles","NA","NA","NA","NA","NA","NA",4,4,"NA","NA","NA","NA","NA","NA","NA","NA","NA","NA","http://www.centcom.mil/en/news/articles/nov.-7-military-airstrikes-continue-against-isil-in-syria-and-iraq"]
["07-11/2014 - 10/11/2014","US & Undetermined Partner Nations",13,13,13,794,"NA","Mix of US and partner nation bomber, fighter and remotely piloted aircraft  ","Near Kobani ","Kobani, Ayn al-Arab: 36.889722° N, 38.355556° E","NA","ISIL strongholds near Kobani","The strikes were conducted as part of Inherent Resolve, the operation to eliminate the terrorist group ISIL and the threat they pose to Iraq, the region and the wider international community. The destruction of ISIL targets in Syria and Iraq further limits the terrorist group's ability to project power and conduct operations.","Struck 1 x ISIL vehicle & 5 x small ISIL units. Destroyed 1 x ISIL-occupied building used for ammunition stockpile, 1 x ISIL command and control building, 7 x ISIL fighting positions. Damaged 2 x ISIL fighting positions. ","NA","NA","NA","NA",2,2,1,1,"NA","NA",14,14,"NA","NA","NA","NA","NA","NA","http://www.centcom.mil/en/news/articles/nov.-10-military-airstrikes-continue-against-isil-in-syria-and-iraq"]
["07-11/2014 - 10/11/2014","US & Undetermined Partner Nations",8,8,8,802,"NA","Mix of US and partner nation bomber, fighter and remotely piloted aircraft  ","Southeast of Dayr Az Zawr ","Dayr az Zawr: 35.3333° N, 40.1500° E","NA","ISIL strongholds southeast of Dayr Az Zawr ","The strikes were conducted as part of Inherent Resolve, the operation to eliminate the terrorist group ISIL and the threat they pose to Iraq, the region and the wider international community. The destruction of ISIL targets in Syria and Iraq further limits the terrorist group's ability to project power and conduct operations.","Damaged several structures of an ISIL oil collection facility which was used to trans-load oil for the black market","NA","NA",">2","NA","NA","NA","NA","NA","NA","NA","NA","NA","NA","NA","NA","NA","NA","NA","http://www.centcom.mil/en/news/articles/nov.-10-military-airstrikes-continue-against-isil-in-syria-and-iraq"]
["07-11/2014 - 10/11/2014","US & Undetermined Partner Nations",2,2,2,804,"NA","Mix of US and partner nation bomber, fighter and remotely piloted aircraft  ","East of Dayr Az Zawr","Dayr az Zawr: 35.3333° N, 40.1500° E","NA","ISIL strongholds east of Dayr Az Zawr ","The strikes were conducted as part of Inherent Resolve, the operation to eliminate the terrorist group ISIL and the threat they pose to Iraq, the region and the wider international community. The destruction of ISIL targets in Syria and Iraq further limits the terrorist group's ability to project power and conduct operations.","Damaged 1 x ISIL oil collection point","NA","NA",1,1,"NA","NA","NA","NA","NA","NA","NA","NA","NA","NA","NA","NA","NA","NA","http://www.centcom.mil/en/news/articles/nov.-10-military-airstrikes-continue-against-isil-in-syria-and-iraq"]
["07-11/2014 - 10/11/2014","US & Undetermined Partner Nations",7,7,7,811,"NA","Mix of US and partner nation using attack, bomber, fighter and remotely piloted aircraft","Near Bayji ","Bayji: 34.9292° N, 43.4931° E","NA","ISIL strongholds near Bayji","The strikes were conducted as part of Inherent Resolve, the operation to eliminate the terrorist group ISIL and the threat they pose to Iraq, the region and the wider international community. The destruction of ISIL targets in Syria and Iraq further limits the terrorist group's ability to project power and conduct operations.","Struck 3 x small ISIL units and destroyed 1 x ISIL sniper position and 2 x ISIL vehicles, one which was used for construction. ","NA","NA","NA","NA","NA","NA",2,2,"NA","NA",4,4,"NA","NA","NA","NA","NA","NA","http://www.centcom.mil/en/news/articles/nov.-10-military-airstrikes-continue-against-isil-in-syria-and-iraq"]
["07-11/2014 - 10/11/2014","US & Undetermined Partner Nations",3,3,3,814,"NA","Mix of US and partner nation using attack, bomber, fighter and remotely piloted aircraft","In Fallujah","Fallujah: 33.3500° N, 43.7833° E","NA","ISIL strongholds in Fallujah","The strikes were conducted as part of Inherent Resolve, the operation to eliminate the terrorist group ISIL and the threat they pose to Iraq, the region and the wider international community. The destruction of ISIL targets in Syria and Iraq further limits the terrorist group's ability to project power and conduct operations.","Struck 2 x small ISIL units, ISIL fighters who were emplacing an improvised explosive device (IED) on a road and destroyed 1 x ISIL vehicle mounted with an anti-aircraft gun. ","NA","NA","NA","NA","NA","NA",1,1,1,1,2,2,"NA","NA","NA","NA",">2","NA","http://www.centcom.mil/en/news/articles/nov.-10-military-airstrikes-continue-against-isil-in-syria-and-iraq"]
["07-11/2014 - 10/11/2014","US & Undetermined Partner Nations",3,3,3,817,"NA","Mix of US and partner nation using attack, bomber, fighter and remotely piloted aircraft","Near Mosul ","Mosul: 36.3400° N, 43.1300° E","NA","ISIL vehicle convoy","The strikes were conducted as part of Inherent Resolve, the operation to eliminate the terrorist group ISIL and the threat they pose to Iraq, the region and the wider international community. The destruction of ISIL targets in Syria and Iraq further limits the terrorist group's ability to project power and conduct operations.","struck 1 x small ISIL unit and destroyed 1 x ISIL armed truck and  a vehicle convoy consisting of  10 x ISIL armed trucks","NA","NA","NA","NA","NA","NA",11,11,"NA","NA",1,1,"NA","NA","NA","NA","NA","NA","http://www.centcom.mil/en/news/articles/nov.-10-military-airstrikes-continue-against-isil-in-syria-and-iraq"]
["07-11/2014 - 10/11/2014","US & Undetermined Partner Nations",2,2,2,819,"NA","Mix of US and partner nation using attack, bomber, fighter and remotely piloted aircraft","Near Al Qaim ","Al Qa'im: 34.3688° N, 41.0945° E","NA","ISIL strongholds near Al Qaim ","The strikes were conducted as part of Inherent Resolve, the operation to eliminate the terrorist group ISIL and the threat they pose to Iraq, the region and the wider international community. The destruction of ISIL targets in Syria and Iraq further limits the terrorist group's ability to project power and conduct operations.","Destroyed 1 x ISIL armored vehicle and 2 x ISIL checkpoints","NA","NA","NA","NA","NA","NA",1,1,"NA","NA","NA","NA",2,2,"NA","NA","NA","NA","http://www.centcom.mil/en/news/articles/nov.-10-military-airstrikes-continue-against-isil-in-syria-and-iraq"]
["07-11/2014 - 10/11/2014","US & Undetermined Partner Nations",1,1,1,820,"NA","Mix of US and partner nation using attack, bomber, fighter and remotely piloted aircraft","40 km southwest of Haditha ","Haditha: 34.1397° N, 42.3781° E","NA","ISIL Humvees 40 km southwest of Haditha ","The strikes were conducted as part of Inherent Resolve, the operation to eliminate the terrorist group ISIL and the threat they pose to Iraq, the region and the wider international community. The destruction of ISIL targets in Syria and Iraq further limits the terrorist group's ability to project power and conduct operations.","Destroyed 2 x ISIL Humvees","NA","NA","NA","NA","NA","NA",2,2,"NA","NA","NA","NA","NA","NA","NA","NA","NA","NA","http://www.centcom.mil/en/news/articles/nov.-10-military-airstrikes-continue-against-isil-in-syria-and-iraq"]
["07-11/2014 - 10/11/2014","US & Undetermined Partner Nations",1,1,1,821,"NA","Mix of US and partner nation using attack, bomber, fighter and remotely piloted aircraft","Near Ramadi ","Ramadi: 33.4167° N, 43.3000° E","NA","ISIL strongholds near Ramadi","The strikes were conducted as part of Inherent Resolve, the operation to eliminate the terrorist group ISIL and the threat they pose to Iraq, the region and the wider international community. The destruction of ISIL targets in Syria and Iraq further limits the terrorist group's ability to project power and conduct operations.","Struck 1 x small ISIL unit","NA","NA","NA","NA","NA","NA","NA","NA","NA","NA",1,1,"NA","NA","NA","NA","NA","NA","http://www.centcom.mil/en/news/articles/nov.-10-military-airstrikes-continue-against-isil-in-syria-and-iraq"]
["07-11/2014 - 10/11/2014","US & Undetermined Partner Nations",1,1,1,822,"NA","Mix of US and partner nation using attack, bomber, fighter and remotely piloted aircraft","In Ar Rutbah ","Ar Rutbah: 33.0381° N, 40.2844° E","NA","ISIL strongholds in Ar Rutbah","The strikes were conducted as part of Inherent Resolve, the operation to eliminate the terrorist group ISIL and the threat they pose to Iraq, the region and the wider international community. The destruction of ISIL targets in Syria and Iraq further limits the terrorist group's ability to project power and conduct operations.","Destroyed 1 x ISIL checkpoint","NA","NA","NA","NA","NA","NA","NA","NA","NA","NA","NA","NA",1,1,"NA","NA","NA","NA","http://www.centcom.mil/en/news/articles/nov.-10-military-airstrikes-continue-against-isil-in-syria-and-iraq"]
["10/11/2014 -12/11/2014","US & Undetermined Partner Nations",10,10,10,832,"NA","Mix of US and partner nation bomber, fighter and remotely piloted aircraft","Near Kobani ","Kobani, Ayn al-Arab: 36.889722° N, 38.355556° E","NA","ISIL strongholds near Kobani","The U.S. strikes were conducted as part of Operation Inherent Resolve, the operation to eliminate the terrorist group ISIL and the threat they pose to Iraq, the region and the wider international community. ","Struck 8 x small ISIL units, damaged 3 x ISIL fighting positions and destroyed 1 x ISIL logistics facility. ","NA","NA","NA","NA",1,1,"NA","NA","NA","NA",11,11,"NA","NA","NA","NA","NA","NA","http://www.centcom.mil/en/news/articles/nov.-12-military-airstrikes-continue-against-isil-in-syria-and-iraq"]
["10/11/2014 -12/11/2014","US & Undetermined Partner Nations",2,2,2,834,"NA","Mix of US and partner nation bomber, fighter and remotely piloted aircraft","South of Al-Haskah","Al Hasakah: 36.5000° N, 40.9000° E","NA","a crude oil collection point operated by ISIL","The U.S. strikes were conducted as part of Operation Inherent Resolve, the operation to eliminate the terrorist group ISIL and the threat they pose to Iraq, the region and the wider international community. ","Damaged 1 x crude oil collection point operated by ISIL","NA","NA",1,1,"NA","NA","NA","NA","NA","NA","NA","NA","NA","NA","NA","NA","NA","NA","http://www.centcom.mil/en/news/articles/nov.-12-military-airstrikes-continue-against-isil-in-syria-and-iraq"]
["10/11/2014 -12/11/2014","US & Undetermined Partner Nations",3,3,3,837,"NA","Mix of US and partner nation bomber, fighter and remotely piloted aircraft","Northeast of Dayr Az Zawr ","Dayr az Zawr: 35.3333° N, 40.1500° E","NA","An ISIL crude oil collection facility southeast of Dayr Az Zawr ","The strikes were conducted as part of Inherent Resolve, the operation to eliminate the terrorist group ISIL and the threat they pose to Iraq, the region and the wider international community. The destruction of ISIL targets in Syria and Iraq further limits the terrorist group's ability to project power and conduct operations.","Damaged 1 x ISIL crude oil collection facility.","NA","NA",1,1,"NA","NA","NA","NA","NA","NA","NA","NA","NA","NA","NA","NA","NA","NA","http://www.centcom.mil/en/news/articles/nov.-12-military-airstrikes-continue-against-isil-in-syria-and-iraq"]
["10/11/2014 -12/11/2014","US & Undetermined Partner Nations",1,1,1,838,"NA","Mix of US and partner nation bomber, fighter and remotely piloted aircraft","Near Dayr Az Zawr","Dayr az Zawr: 35.3333° N, 40.1500° E","NA","ISIL strongholds near Dayr Az Zawr ","The strikes were conducted as part of Inherent Resolve, the operation to eliminate the terrorist group ISIL and the threat they pose to Iraq, the region and the wider international community. The destruction of ISIL targets in Syria and Iraq further limits the terrorist group's ability to project power and conduct operations.","Struck 1 x small ISIL unit and damaged 1 x ISIL vehicle","NA","NA","NA","NA","NA","NA",1,1,"NA","NA",1,1,"NA","NA","NA","NA","NA","NA","http://www.centcom.mil/en/news/articles/nov.-12-military-airstrikes-continue-against-isil-in-syria-and-iraq"]
["10/11/2014 -12/11/2014","US & Undetermined Partner Nations",2,2,2,840,"NA","Mix of US and partner nation attack, fighter and remotely piloted aircraft"," Near Kirkuk ","Kirkuk: 35.4667° N, 44.3167° E","NA","ISIL strongholds near Kirkuk","The strikes were conducted as part of Inherent Resolve, the operation to eliminate the terrorist group ISIL and the threat they pose to Iraq, the region and the wider international community. The destruction of ISIL targets in Syria and Iraq further limits the terrorist group's ability to project power and conduct operations.","Struck 1 x small ISIL unit and 1 x large ISIL unit.","NA","NA","NA","NA","NA","NA","NA","NA","NA","NA",2,2,"NA","NA","NA","NA","NA","NA","http://www.centcom.mil/en/news/articles/nov.-12-military-airstrikes-continue-against-isil-in-syria-and-iraq"]
["10/11/2014 -12/11/2014","US & Undetermined Partner Nations",5,5,5,845,"NA","Mix of US and partner nation attack, fighter and remotely piloted aircraft","Near Bayji ","Bayji: 34.9292° N, 43.4931° E","NA","ISIL strongholds near Bayji","The strikes were conducted as part of Inherent Resolve, the operation to eliminate the terrorist group ISIL and the threat they pose to Iraq, the region and the wider international community. The destruction of ISIL targets in Syria and Iraq further limits the terrorist group's ability to project power and conduct operations.","Struck 3 x small ISIL units, 1 x large ISIL unit and destroyed 2 x ISIL buildings, 1 x ISIL sniper position, 2 x ISIL vehicles, 1 x ISIL mortar tube and 1 x ISIL artillery piece.","NA","NA","NA","NA",2,2,2,2,2,2,5,5,"NA","NA","NA","NA","NA","NA","http://www.centcom.mil/en/news/articles/nov.-12-military-airstrikes-continue-against-isil-in-syria-and-iraq"]
["12/11/2014 - 14/11/2014","US & Undetermined Partner Nations",17,17,17,862,"NA","Mix of US and partner nation bomber, fighter and remotely piloted aircraft ","Near Kobani","Kobani, Ayn al-Arab: 36.889722° N, 38.355556° E","NA","ISIL strongholds near Kobani","The U.S. strikes were conducted as part of Operation Inherent Resolve, the operation to eliminate the terrorist group ISIL and the threat they pose to Iraq, the region and the wider international community. ","Struck 10 x ISIL units, destroyed 10 x fighting positions, 1 x ISIL building, 2 x ISIL vehicles, and 1 x ISIL motorcycle. ","NA","NA","NA","NA",1,1,3,3,"NA","NA",20,20,"NA","NA","NA","NA","NA","NA","http://www.centcom.mil/en/news/articles/nov.-14-military-airstrikes-continue-against-isil-in-syria-and-iraq"]
["12/11/2014 - 14/11/2014","US & Undetermined Partner Nations",1,1,1,863,"NA","Mix of US and partner nation bomber, fighter and remotely piloted aircraft ","East of Ar Raqqah ","Ar Raqqah: 35.9500° N, 39.0167° E","NA","ISIL training camp east of Ar Raqqah ","The U.S. strikes were conducted as part of Operation Inherent Resolve, the operation to eliminate the terrorist group ISIL and the threat they pose to Iraq, the region and the wider international community. ","Destroyed 1 x ISIL training camp.",1,1,"NA",null,"NA","NA","NA","NA","NA","NA","NA","NA","NA","NA","NA","NA","NA","NA","http://www.centcom.mil/en/news/articles/nov.-14-military-airstrikes-continue-against-isil-in-syria-and-iraq"]
["12/11/2014 - 14/11/2014","US & Undetermined Partner Nations",1,1,1,864,"NA","Mix of US and partner nation bomber, fighter and remotely piloted aircraft ","East of Dayr Az Zawr","Dayr az Zawr: 35.3333° N, 40.1500° E","NA","ISIL oil collection point east of Dayr Az Zawr","The U.S. strikes were conducted as part of Operation Inherent Resolve, the operation to eliminate the terrorist group ISIL and the threat they pose to Iraq, the region and the wider international community. ","Destroyed 1 x ISIL oil collection point. ","NA","NA",1,1,"NA","NA","NA","NA","NA","NA","NA","NA","NA","NA","NA","NA","NA","NA","http://www.centcom.mil/en/news/articles/nov.-14-military-airstrikes-continue-against-isil-in-syria-and-iraq"]
["12/11/2014 - 14/11/2014","US",1,1,1,{"$f":"F350+E351","v":865},"NA","NA","Northwest Syria west of Aleppo","Aleppo: 36.2167° N, 37.1667° E","NA","Khorasan Group ","To prevent the group from plotting external attacks against the United States and our allies.","Struck terrorists of the Khorasan Group ","NA","NA","NA","NA","NA","NA","NA","NA","NA","NA","NA","NA","NA","NA","NA","NA",">2","NA","http://www.centcom.mil/en/news/articles/nov.-14-military-airstrikes-continue-against-isil-in-syria-and-iraq"]
["12/11/2014 - 14/11/2014","US & Undetermined Partner Nations",6,6,6,{"$f":"F351+E352","v":871},"NA","Mix of US and partner nation attack, bomber, fighter, and remotely piloted aircraft ","South of Kirkuk","Kirkuk: 35.4667° N, 44.3167° E","NA","ISIL strongholds south of Kirkuk","The U.S. strikes were conducted as part of Operation Inherent Resolve, the operation to eliminate the terrorist group ISIL and the threat they pose to Iraq, the region and the wider international community. ","Struck 4 x small ISIL units and 1 x ISIL vehicle","NA","NA","NA","NA","NA","NA",1,1,"NA","NA",4,4,"NA","NA","NA","NA","NA","NA","http://www.centcom.mil/en/news/articles/nov.-14-military-airstrikes-continue-against-isil-in-syria-and-iraq"]
["12/11/2014 - 14/11/2014","US & Undetermined Partner Nations",2,2,2,{"$f":"F352+E353","v":873},"NA","Mix of US and partner nation attack, bomber, fighter, and remotely piloted aircraft ","West of Kirkuk ","Kirkuk: 35.4667° N, 44.3167° E","NA","ISIL strongholds west of Kirkuk ","The U.S. strikes were conducted as part of Operation Inherent Resolve, the operation to eliminate the terrorist group ISIL and the threat they pose to Iraq, the region and the wider international community. ","Struck 2 x small ISIL units, destroyed 1 x ISIL heavy machine gun, 1 x ISIL weapons bunker, and 1 x ISIL vehicle. ","NA","NA","NA","NA",1,1,1,1,1,1,2,2,"NA","NA","NA","NA","NA","NA","http://www.centcom.mil/en/news/articles/nov.-14-military-airstrikes-continue-against-isil-in-syria-and-iraq"]
["12/11/2014 - 14/11/2014","US & Undetermined Partner Nations",1,1,1,{"$f":"F353+E354","v":874},"NA","Mix of US and partner nation attack, bomber, fighter, and remotely piloted aircraft ","West of Taji ","Taji: 33.5092° N, 44.2342° E","NA","ISIL strongholds west of Taji ","The U.S. strikes were conducted as part of Operation Inherent Resolve, the operation to eliminate the terrorist group ISIL and the threat they pose to Iraq, the region and the wider international community. ","Destroyed 3 x ISIL vehicles.  ","NA","NA","NA","NA","NA","NA",3,3,"NA","NA","NA","NA","NA","NA","NA","NA","NA","NA","http://www.centcom.mil/en/news/articles/nov.-14-military-airstrikes-continue-against-isil-in-syria-and-iraq"]
["12/11/2014 - 14/11/2014","US & Undetermined Partner Nations",2,2,2,876,"NA","Mix of US and partner nation attack, bomber, fighter, and remotely piloted aircraft ","Near Ar Rutbah ","Ar Rutbah: 33.0381° N, 40.2844° E","NA","ISIL strongholds near Ar Rutbah","The U.S. strikes were conducted as part of Operation Inherent Resolve, the operation to eliminate the terrorist group ISIL and the threat they pose to Iraq, the region and the wider international community. ","Destroyed 13 x ISIL vehicles and 2 x ISIL excavators.","NA","NA","NA","NA","NA","NA",15,15,"NA","NA","NA","NA","NA","NA","NA","NA","NA","NA","http://www.centcom.mil/en/news/articles/nov.-14-military-airstrikes-continue-against-isil-in-syria-and-iraq"]
["12/11/2014 - 14/11/2014","US & Undetermined Partner Nations",3,3,3,879,"NA","Mix of US and partner nation attack, bomber, fighter, and remotely piloted aircraft ","Near Bayji ","Bayji: 34.9292° N, 43.4931° E","NA","ISIL strongholds near Bayji","The U.S. strikes were conducted as part of Operation Inherent Resolve, the operation to eliminate the terrorist group ISIL and the threat they pose to Iraq, the region and the wider international community. ","Struck 2 x small ISIL units and destroyed 1 x ISIL vehicle.","NA","NA","NA","NA","NA","NA",1,1,"NA","NA",2,2,"NA","NA","NA","NA","NA","NA","http://www.centcom.mil/en/news/articles/nov.-14-military-airstrikes-continue-against-isil-in-syria-and-iraq"]
["12/11/2014 - 14/11/2014","US & Undetermined Partner Nations",1,1,1,880,"NA","Mix of US and partner nation attack, bomber, fighter, and remotely piloted aircraft ","Near Fallujah ","Fallujah: 33.3500° N, 43.7833° E","NA","ISIL strongholds near Fallujah ","The U.S. strikes were conducted as part of Operation Inherent Resolve, the operation to eliminate the terrorist group ISIL and the threat they pose to Iraq, the region and the wider international community. ","Struck  1 x large ISIL unit.  ","NA","NA","NA","NA","NA","NA","NA","NA","NA","NA",1,1,"NA","NA","NA","NA","NA","NA","http://www.centcom.mil/en/news/articles/nov.-14-military-airstrikes-continue-against-isil-in-syria-and-iraq"]
["12/11/2014 - 14/11/2014","US & Undetermined Partner Nations",1,1,1,881,"NA","Mix of US and partner nation attack, bomber, fighter, and remotely piloted aircraft ","East of Mosul","Mosul: 36.3400° N, 43.1300° E","NA","ISIL strongholds east of Mosul","The U.S. strikes were conducted as part of Operation Inherent Resolve, the operation to eliminate the terrorist group ISIL and the threat they pose to Iraq, the region and the wider international community. ","Destroyed 1 x small ISIL unit","NA","NA","NA","NA","NA","NA","NA","NA","NA","NA",1,1,"NA","NA","NA","NA","NA","NA","http://www.centcom.mil/en/news/articles/nov.-14-military-airstrikes-continue-against-isil-in-syria-and-iraq"]
["14/11/14 - 17/11/14","US",9,9,9,890,"NA","Mix of US fighter and bomber aircraft","Near Kobani ","Kobani, Ayn al-Arab: 36.889722° N, 38.355556° E","NA","ISIL strongholds in Kobani","The strikes were conducted as part of Inherent Resolve, the operation to eliminate the terrorist group ISIL and the threat they pose to Iraq, the region and the wider international community.  ","Destroyed 7 x ISIL fighting positions, suppressed another 1 x ISIL fighting position, destroyed 4 x ISIL staging areas, and struck 1 x tactical ISIL unit.  ","NA","NA","NA","NA",4,4,"NA","NA","NA","NA",9,9,"NA","NA","NA","NA","NA","NA","http://www.centcom.mil/en/news/articles/nov.-17-military-airstrikes-continue-against-isil-in-syria-and-iraq"]
["14/11/14 - 17/11/14","US",2,2,2,892,"NA","Mix of US fighter and bomber aircraft","Near Dayr Az Zawr ","Dayr az Zawr: 35.3333° N, 40.1500° E","NA","An ISIL crude oil collection facility near Dayr Az Zawr ","The strikes were conducted as part of Inherent Resolve, the operation to eliminate the terrorist group ISIL and the threat they pose to Iraq, the region and the wider international community.  ","Struck 1 x ISIL crude oil collection facility and destroyed 1 x ISIL tank.","NA","NA",1,1,"NA","NA",1,1,"NA","NA","NA","NA","NA","NA","NA","NA","NA","NA","http://www.centcom.mil/en/news/articles/nov.-17-military-airstrikes-continue-against-isil-in-syria-and-iraq"]
["14/11/14 - 17/11/14","US & Undetermined Partner Nations",4,4,4,896,"NA","Mix of US and partner nation attack, bomber, fighter and remotely piloted aircraft ","Near Ar Rutbah ","Ar Rutbah: 33.0381° N, 40.2844° E","NA","ISIL Strongholds near Ar Rutbah","The strikes were conducted as part of Inherent Resolve, the operation to eliminate the terrorist group ISIL and the threat they pose to Iraq, the region and the wider international community.  ","Destroyed 9 xISIL trucks, 2 x ISIL excavators and 1 x ISIL front-loader, and damaged 1 x ISIL vehicle.","NA","NA","NA","NA","NA","NA",13,13,"NA","NA","NA","NA","NA","NA","NA","NA","NA","NA","http://www.centcom.mil/en/news/articles/nov.-17-military-airstrikes-continue-against-isil-in-syria-and-iraq"]
["14/11/14 - 17/11/14","US & Undetermined Partner Nations",3,3,3,899,"NA","Mix of US and partner nation attack, bomber, fighter and remotely piloted aircraft ","Near Fallujah ","Fallujah: 33.3500° N, 43.7833° E","NA","ISIL Strongholds near Fallujah ","The strikes were conducted as part of Inherent Resolve, the operation to eliminate the terrorist group ISIL and the threat they pose to Iraq, the region and the wider international community.  ","Destroyed 2 x ISIL vehicles, 1 x ISIL bulldozer and 1 x ISIL front-loader. ","NA","NA","NA","NA","NA","NA",4,4,"NA","NA","NA","NA","NA","NA","NA","NA","NA","NA","http://www.centcom.mil/en/news/articles/nov.-17-military-airstrikes-continue-against-isil-in-syria-and-iraq"]
["14/11/14 - 17/11/14","US & Undetermined Partner Nations",1,1,1,900,"NA","Mix of US and partner nation attack, bomber, fighter and remotely piloted aircraft ","Southwest of Mosul Dam ","Mosul Dam: 36.6303° N, 42.8231° E","NA","ISIL Strongholds southwest of Mosul Dam ","The strikes were conducted as part of Inherent Resolve, the operation to eliminate the terrorist group ISIL and the threat they pose to Iraq, the region and the wider international community.  ","Destroyed 1 x ISIL bulldozer and struck 1 x tactical ISIL unit.","NA","NA","NA","NA","NA","NA",1,1,"NA","NA",1,1,"NA","NA","NA","NA","NA","NA","http://www.centcom.mil/en/news/articles/nov.-17-military-airstrikes-continue-against-isil-in-syria-and-iraq"]
["14/11/14 - 17/11/14","US & Undetermined Partner Nations",2,2,2,902,"NA","Mix of US and partner nation attack, bomber, fighter and remotely piloted aircraft ","West of Mosul ","Mosul: 36.3400° N, 43.1300° E","NA","ISIL Strongholds west of Mosul ","The strikes were conducted as part of Inherent Resolve, the operation to eliminate the terrorist group ISIL and the threat they pose to Iraq, the region and the wider international community.  ","Struck 2 x ISIL tactical units and destroyed 1 x ISIL vehicle and 1 x ISIL fighting position.","NA","NA","NA","NA","NA","NA",1,1,"NA","NA",3,3,"NA","NA","NA","NA","NA","NA","http://www.centcom.mil/en/news/articles/nov.-17-military-airstrikes-continue-against-isil-in-syria-and-iraq"]
["14/11/14 - 17/11/14","US & Undetermined Partner Nations",3,3,3,905,"NA","Mix of US and partner nation attack, bomber, fighter and remotely piloted aircraft ","Near Kirkuk ","Kirkuk: 35.4667° N, 44.3167° E","NA","ISIL Strongholds near Kirkuk ","The strikes were conducted as part of Inherent Resolve, the operation to eliminate the terrorist group ISIL and the threat they pose to Iraq, the region and the wider international community.  ","Struck 1 x tactical ISIL unit, and damaged 1 x ISIL tank and destroyed 1 x another.  ","NA","NA","NA","NA","NA","NA",2,2,"NA","NA",1,1,"NA","NA","NA","NA","NA","NA","http://www.centcom.mil/en/news/articles/nov.-17-military-airstrikes-continue-against-isil-in-syria-and-iraq"]
["14/11/14 - 17/11/14","US & Undetermined Partner Nations",1,1,1,906,"NA","Mix of US and partner nation attack, bomber, fighter and remotely piloted aircraft ","Southwest of Al Qaim ","Al Qa'im: 34.3688° N, 41.0945° E","NA","ISIL Strongholds southwest of Al Qaim ","The strikes were conducted as part of Inherent Resolve, the operation to eliminate the terrorist group ISIL and the threat they pose to Iraq, the region and the wider international community.  ","Destroyed 1 x ISIL vehicle.  ","NA","NA","NA","NA","NA","NA",1,1,"NA","NA","NA","NA","NA","NA","NA","NA","NA","NA","http://www.centcom.mil/en/news/articles/nov.-17-military-airstrikes-continue-against-isil-in-syria-and-iraq"]
["14/11/14 - 17/11/14","US & Undetermined Partner Nations",1,1,1,907,"NA","Mix of US and partner nation attack, bomber, fighter and remotely piloted aircraft ","In Tel Afar ","Tall Afar/ Tel Afar/ Tal Afar: 36.3742° N, 42.4500° E","NA","ISIL Strongholds in Tel Afar ","The strikes were conducted as part of Inherent Resolve, the operation to eliminate the terrorist group ISIL and the threat they pose to Iraq, the region and the wider international community.  ","Struck 1 x tactical ISIL unit.  ","NA","NA","NA","NA","NA","NA","NA","NA","NA","NA",1,1,"NA","NA","NA","NA","NA","NA","http://www.centcom.mil/en/news/articles/nov.-17-military-airstrikes-continue-against-isil-in-syria-and-iraq"]
["14/11/14 - 17/11/14","US & Undetermined Partner Nations",5,5,5,912,"NA","Mix of US and partner nation attack, bomber, fighter and remotely piloted aircraft ","Near Bayji","Bayji: 34.9292° N, 43.4931° E","NA","ISIL Strongholds near Bayji","The strikes were conducted as part of Inherent Resolve, the operation to eliminate the terrorist group ISIL and the threat they pose to Iraq, the region and the wider international community.  ","Struck 2 x tactical ISIL units and 1 x large ISIL unit and destroyed 1 x ISIL tank, 1 x ISIL vehicle, and 4 x ISIL fighting positions.","NA","NA","NA","NA","NA","NA",2,2,"NA","NA",7,7,"NA","NA","NA","NA","NA","NA","http://www.centcom.mil/en/news/articles/nov.-17-military-airstrikes-continue-against-isil-in-syria-and-iraq"]
["17/11/2014 -19/11/2014","US & Undetermined Partner Nations",5,5,5,917,"NA","Mix of US and partner nation fighter and bomber aircraft ","Near Kobani ","Kobani, Ayn al-Arab: 36.889722° N, 38.355556° E","NA","ISIL strongholds in Kobani","The strikes were conducted as part of Inherent Resolve, the operation to eliminate the terrorist group ISIL and the threat they pose to Iraq, the region and the wider international community.  ","Destroyed 1 x ISIL fighting position, 1 x ISIL staging area, 3 x ISIL occupied buildings, suppressed 2 x ISIL fighting positions and struck 2 x tactical units and 1 x large ISIL unit. ","NA","NA","NA","NA",4,4,"NA","NA","NA","NA",6,6,"NA","NA","NA","NA","NA","NA","http://www.centcom.mil/en/news/articles/nov.-19-military-airstrikes-continue-against-isil-in-syria-and-iraq"]
["17/11/2014 -19/11/2014","US & Undetermined Partner Nations",1,1,1,918,"NA","Mix of US and partner nation fighter and bomber aircraft ","Southeast of Al-Hasakah ","Al Hasakah: 36.5000° N, 40.9000° E","NA","A crude oil collection point operated by ISIL. ","The strikes were conducted as part of Inherent Resolve, the operation to eliminate the terrorist group ISIL and the threat they pose to Iraq, the region and the wider international community.  ","Damaged 1 x crude oil collection point operated by ISIL. ","NA","NA",1,1,"NA","NA","NA","NA","NA","NA","NA","NA","NA","NA","NA","NA","NA","NA","http://www.centcom.mil/en/news/articles/nov.-19-military-airstrikes-continue-against-isil-in-syria-and-iraq"]
["17/11/2014 -19/11/2014","US",1,1,1,919,"NA","NA","Northwest Syria near Haram","Haram/ Harem: 36.2000° N, 36.5167° E","NA","A storage facility associated with a network of veteran Al Qaeda operatives, sometimes called the \"Khorasan Group,\" ","To prevent the group from plotting external attacks against the United States and our allies.","Struck and destroyed 1 x storage facility ","NA","NA","NA","NA","NA","NA","NA","NA","NA","NA","NA","NA","NA","NA",1,1,"NA","NA","http://www.centcom.mil/en/news/articles/nov.-19-military-airstrikes-continue-against-isil-in-syria-and-iraq"]
["17/11/2014 -19/11/2014","US & Undetermined Partner Nations",13,13,13,932,"NA","Mix of US and partner nation attack, fighter, bomber and remotely piloted aircraft ","Near Kirkuk ","Kirkuk: 35.4667° N, 44.3167° E","NA","ISIL strongholds near Kirkuk","The strikes were conducted as part of Inherent Resolve, the operation to eliminate the terrorist group ISIL and the threat they pose to Iraq, the region and the wider international community. ","Destroyed 2 x ISIL fighting positions, 7 x ISIL staging areas, 1 x ISIL mortar position, 1 x ISIL bulldozer and 1 x front-loader. ","NA","NA","NA","NA",7,7,2,2,"NA","NA",3,3,"NA","NA","NA","NA","NA","NA","http://www.centcom.mil/en/news/articles/nov.-19-military-airstrikes-continue-against-isil-in-syria-and-iraq"]
["17/11/2014 -19/11/2014","US & Undetermined Partner Nations",7,7,7,939,"NA","Mix of US and partner nation attack, fighter, bomber and remotely piloted aircraft ","Near Mosul ","Mosul: 36.3400° N, 43.1300° E","NA","ISIL strongholds near Mosul","The strikes were conducted as part of Inherent Resolve, the operation to eliminate the terrorist group ISIL and the threat they pose to Iraq, the region and the wider international community. ","Struck 5 x ISIL tactical units, damaged 1 x IED factory and destroyed 1 x ISIL mortar position, 3 x ISIL vehicles, 1 x ISIL occupied building, 1 x ISIL artillery piece and 1 x ISIL artillery mover (vehicle).","NA","NA","NA","NA",2,2,4,4,1,1,6,6,"NA","NA","NA","NA","NA","NA","http://www.centcom.mil/en/news/articles/nov.-19-military-airstrikes-continue-against-isil-in-syria-and-iraq"]
["17/11/2014 -19/11/2014","US & Undetermined Partner Nations",3,3,3,942,"NA","Mix of US and partner nation attack, fighter, bomber and remotely piloted aircraft ","Near Bayji ","Bayji: 34.9292° N, 43.4931° E","NA","ISIL strongholds near Bayji ","The strikes were conducted as part of Inherent Resolve, the operation to eliminate the terrorist group ISIL and the threat they pose to Iraq, the region and the wider international community. ","Struck 3 x ISIL tactical units and destroyed 1 x ISIL occupied building and 1 x ISIL vehicle. ","NA","NA","NA","NA",1,1,1,1,"NA","NA",3,3,"NA","NA","NA","NA","NA","NA","http://www.centcom.mil/en/news/articles/nov.-19-military-airstrikes-continue-against-isil-in-syria-and-iraq"]
["17/11/2014 -19/11/2014","US & Undetermined Partner Nations",1,1,1,{"$f":"F374+E375","v":943},"NA","Mix of US and partner nation attack, fighter, bomber and remotely piloted aircraft ","Near Fallujah ","Fallujah: 33.3500° N, 43.7833° E","NA","ISIL strongholds near Fallujah ","The strikes were conducted as part of Inherent Resolve, the operation to eliminate the terrorist group ISIL and the threat they pose to Iraq, the region and the wider international community. ","Struck 1 x ISIL tactical unit","NA","NA","NA","NA","NA","NA","NA","NA","NA","NA",1,1,"NA","NA","NA","NA","NA","NA","http://www.centcom.mil/en/news/articles/nov.-19-military-airstrikes-continue-against-isil-in-syria-and-iraq"]
["2014-11-19","US & Undetermined Partner Nations",1,1,1,{"$f":"SUM(F375+E376)","v":944},"NA","Mix of US and partner nation attack, fighter, bomber and remotely piloted aircraft ","In the vicinity of  Kirkuk ","Kirkuk: 35.4667° N, 44.3167° E","https://www.youtube.com/watch?v=PhuIKLF-NHo&index=4&list=UUNEEHeS9Y2yFVLbWGeHhbYA","ISIL tunnel in the vicinity of  Kirkuk ","The strikes were conducted as part of Inherent Resolve, the operation to eliminate the terrorist group ISIL and the threat they pose to Iraq, the region and the wider international community. ","1 x ISIL tunnel","NA","NA","NA","NA",1,1,"NA","NA","NA","NA","NA","NA","NA","NA","NA","NA","NA","NA","https://www.youtube.com/watch?v=PhuIKLF-NHo&index=4&list=UUNEEHeS9Y2yFVLbWGeHhbYA"]
[null,null,null,null,null,null,null,null,null,null,"https://www.youtube.com/watch?v=SzkI54u_xg8&index=3&list=UUNEEHeS9Y2yFVLbWGeHhbYA",null,null,null,null,null,null,null,null,null,null,null,null,null,null,null,null,null,null,null,null,null,"https://www.youtube.com/watch?v=SzkI54u_xg8&index=3&list=UUNEEHeS9Y2yFVLbWGeHhbYA"]
["2014-11-19","US & Undetermined Partner Nations",1,1,1,{"$f":"F376+E378","v":945},"NA","Mix of US and partner nation attack, fighter, bomber and remotely piloted aircraft ","In the vicinity of  Kirkuk ","Kirkuk: 35.4667° N, 44.3167° E","https://www.youtube.com/watch?v=Peozuykzjn4&index=2&list=UUNEEHeS9Y2yFVLbWGeHhbYA","ISIL building in the vicinity of Kirkuk","The strikes were conducted as part of Inherent Resolve, the operation to eliminate the terrorist group ISIL and the threat they pose to Iraq, the region and the wider international community. ","1 x building","NA","NA","NA","NA",1,1,"NA","NA","NA","NA","NA","NA","NA","NA","NA","NA","NA","NA","https://www.youtube.com/watch?v=Peozuykzjn4&index=2&list=UUNEEHeS9Y2yFVLbWGeHhbYA"]
["19/11/2014 - 21/11/2014","US & Undetermined Partner Nations",6,6,6,{"$f":"SUM(F378+E379)","v":951},"NA","Mix of US and partner nation fighter and bomber aircraft","Near Kobani","Kobani, Ayn al-Arab: 36.889722° N, 38.355556° E","NA","ISIL strongholds near Kobani","The strikes were conducted as part of Inherent Resolve, the operation to eliminate the terrorist group ISIL and the threat they pose to Iraq, the region and the wider international community. ","Destroyed 4 x ISIL staging areas, 2 x ISIL-occupied buildings, 2 x ISIL tactical units, and suppressed 1 x ISIL fighting position.","NA","NA","NA","NA",6,6,"NA","NA","NA","NA",3,3,"NA","NA","NA","NA","NA","NA","http://www.centcom.mil/en/news/articles/nov.-21-military-airstrikes-continue-against-isil-in-syria-and-iraq"]
["19/11/2014 - 21/11/2014","US & Undetermined Partner Nations",1,1,1,{"$f":"SUM(F379+E380)","v":952},"NA","Mix of US and partner nation fighter and bomber aircraft","Near Ar Raqqah","Ar Raqqah: 35.9500° N, 39.0167° E","NA","An ISIL barrack near Ar Raqqah","The strikes were conducted as part of Inherent Resolve, the operation to eliminate the terrorist group ISIL and the threat they pose to Iraq, the region and the wider international community. ","Damaged 1 x ISIL barrack","NA","NA","NA","NA",1,1,"NA","NA","NA","NA","NA","NA","NA","NA","NA","NA","NA","NA","http://www.centcom.mil/en/news/articles/nov.-21-military-airstrikes-continue-against-isil-in-syria-and-iraq"]
["19/11/2014 - 21/11/2014","US & Undetermined Partner Nations",6,6,6,958,"NA","Mix of US and partner nation fighter, attack, bomber and remotely-piloted aircraft ","Near Bayji ","Bayji: 34.9292° N, 43.4931° E","https://www.youtube.com/watch?v=SJFnkRiflqk&index=5&list=UUNEEHeS9Y2yFVLbWGeHhbYA","ISIL strongholds near Bayji ","The strikes were conducted as part of Inherent Resolve, the operation to eliminate the terrorist group ISIL and the threat they pose to Iraq, the region and the wider international community. ","Destroyed 3 x ISIL buildings, 1 x bunker (ammunition? - see YouTube clip), 2 x ISIL transport vehicles, 5 x ISIL tactical units, 1 x ISIL checkpoint and damaged 1 x ISIL building. ","NA","NA","NA","NA",5,5,2,2,"NA","NA",5,5,1,1,"NA","NA","NA","NA","http://www.centcom.mil/en/news/articles/nov.-21-military-airstrikes-continue-against-isil-in-syria-and-iraq"]
["19/11/2014 - 21/11/2014","US & Undetermined Partner Nations",4,4,4,962,"NA","Mix of US and partner nation fighter, attack, bomber and remotely-piloted aircraft ","Near Sinjar","Sinjar: 36.3225° N, 41.8642° E","NA","ISIL strongholds near Sinjar","The strikes were conducted as part of Inherent Resolve, the operation to eliminate the terrorist group ISIL and the threat they pose to Iraq, the region and the wider international community. ","Destroyed 2 x ISIL barracks, 1 x ISIL bunker and 1 x storage facility, 1 x ISIL guard post, at least 8 x ISIL armored vehicles and 1 x truck in a vehicle storage yard, as well as 2 x tactical ISIL units. ","NA","NA","NA","NA",5,5,9,9,"NA","NA",2,2,"NA","NA","NA","NA","NA","NA","http://www.centcom.mil/en/news/articles/nov.-21-military-airstrikes-continue-against-isil-in-syria-and-iraq"]
["19/11/2014 - 21/11/2014","US & Undetermined Partner Nations",3,3,3,965,"NA","Mix of US and partner nation fighter, attack, bomber and remotely-piloted aircraft ","West of Kirkuk","Kirkuk: 35.4667° N, 44.3167° E","https://www.youtube.com/watch?v=xEwMnTSwoHQ&list=UUNEEHeS9Y2yFVLbWGeHhbYA&index=1","ISIL strongholds west of Kirkuk","The strikes were conducted as part of Inherent Resolve, the operation to eliminate the terrorist group ISIL and the threat they pose to Iraq, the region and the wider international community. ","Destroyed 5 x bunkers, 2 x ISIL vehicles and 1 x ISIL tactical unit. ","NA","NA","NA","NA",5,5,2,2,"NA","NA",1,1,"NA","NA","NA","NA","NA","NA","http://www.centcom.mil/en/news/articles/nov.-21-military-airstrikes-continue-against-isil-in-syria-and-iraq"]
["19/11/2014 - 21/11/2014","US & Undetermined Partner Nations",4,4,4,969,"NA","Mix of US and partner nation fighter, attack, bomber and remotely-piloted aircraft ","Near al Asad","Al Asad:33.785608°N, 42.4412°E","NA","ISIL strongholds near al Asad","The strikes were conducted as part of Inherent Resolve, the operation to eliminate the terrorist group ISIL and the threat they pose to Iraq, the region and the wider international community. ","Destroyed 4 x ISIL vehicles, 1 x ISIL building, and struck 3 x ISIL tactical units","NA","NA","NA","NA",1,1,4,4,"NA","NA",3,3,"NA","NA","NA","NA","NA","NA","http://www.centcom.mil/en/news/articles/nov.-21-military-airstrikes-continue-against-isil-in-syria-and-iraq"]
["19/11/2014 - 21/11/2014","US & Undetermined Partner Nations",3,3,3,972,"NA","Mix of US and partner nation fighter, attack, bomber and remotely-piloted aircraft ","Near Mosul","Mosul: 36.3400° N, 43.1300° E","NA","ISIL strongholds near Mosul","The strikes were conducted as part of Inherent Resolve, the operation to eliminate the terrorist group ISIL and the threat they pose to Iraq, the region and the wider international community. ","Destroyed 1 x ISIL guard post, 1 x ISIL vehicle and 2 x ISIL tactical units","NA","NA","NA","NA",1,1,1,1,"NA","NA",2,2,"NA","NA","NA","NA","NA","NA","http://www.centcom.mil/en/news/articles/nov.-21-military-airstrikes-continue-against-isil-in-syria-and-iraq"]
["19/11/2014 - 21/11/2014","US & Undetermined Partner Nations",2,2,2,974,"NA","Mix of US and partner nation fighter, attack, bomber and remotely-piloted aircraft ","Near Ramadi","Ramadi: 33.4167° N, 43.3000° E","NA","ISIL strongholds near Ramadi","The strikes were conducted as part of Inherent Resolve, the operation to eliminate the terrorist group ISIL and the threat they pose to Iraq, the region and the wider international community. ","Destroyed 1 x ISIL vehicle and 1 x ISIL tactical unit, while also damaging 1 x ISIL armored vehicle and 1 x ISIL-occupied building. ","NA","NA","NA","NA",1,1,2,2,"NA","NA",1,1,"NA","NA","NA","NA","NA","NA","http://www.centcom.mil/en/news/articles/nov.-21-military-airstrikes-continue-against-isil-in-syria-and-iraq"]
["19/11/2014 - 21/11/2014","US & Undetermined Partner Nations",1,1,1,975,"NA","Mix of US and partner nation fighter, attack, bomber and remotely-piloted aircraft ","In Tal Afar","Tall Afar/ Tel Afar/ Tal Afar: 36.3742° N, 42.4500° E","NA","ISIL strongholds in Tal Afar","The strikes were conducted as part of Inherent Resolve, the operation to eliminate the terrorist group ISIL and the threat they pose to Iraq, the region and the wider international community. ","Damaged 1 x ISIL-occupied airfield","NA","NA","NA","NA",1,1,"NA","NA","NA","NA","NA","NA","NA","NA","NA","NA","NA","NA","http://www.centcom.mil/en/news/articles/nov.-21-military-airstrikes-continue-against-isil-in-syria-and-iraq"]
["21/11/2014-  24/11/2014","US & Undetermined Partner Nations",7,7,7,982,"NA","Mix of US and partner nation fighter and bomber aircraft","Near Kobani","Kobani, Ayn al-Arab: 36.889722° N, 38.355556° E","NA","ISIL strongholds near Kobani","The strikes were conducted as part of Inherent Resolve, the operation to eliminate the terrorist group ISIL and the threat they pose to Iraq, the region and the wider international community. ","Destroyed 3 x ISIL fighting positions and 2 x ISIL staging areas, damaged 1 x ISIL staging area and suppressed 4 x ISIL fighting positions","NA","NA","NA","NA",3,3,"NA","NA","NA","NA",7,7,"NA","NA","NA","NA","NA","NA"," http://www.centcom.mil/en/news/articles/nov.-24-military-airstrikes-continue-against-isil-in-syria-and-iraq"]
["21/11/2014-  24/11/2014","US & Undetermined Partner Nations",2,2,2,984,"NA","Mix of US and partner nation fighter and bomber aircraft","Near Ar Raqqah","Ar Raqqah: 35.9500° N, 39.0167° E","NA","ISIL strongholds near Ar Raqqah","The strikes were conducted as part of Inherent Resolve, the operation to eliminate the terrorist group ISIL and the threat they pose to Iraq, the region and the wider international community. ","Struck 1 x ISIL headquarters building","NA","NA","NA","NA",1,1,"NA","NA","NA","NA","NA","NA","NA","NA","NA","NA","NA","NA"," http://www.centcom.mil/en/news/articles/nov.-24-military-airstrikes-continue-against-isil-in-syria-and-iraq"]
["21/11/2014-  24/11/2014","US & Undetermined Partner Nations",5,5,5,989,"NA","Mix of US and partner nation fighter, attack, bomber and remotely-piloted aircraft","Near Mosul ","Mosul: 36.3400° N, 43.1300° E","NA","ISIL strongholds near Mosul","The strikes were conducted as part of Inherent Resolve, the operation to eliminate the terrorist group ISIL and the threat they pose to Iraq, the region and the wider international community. ","Destroyed 1 x ISIL checkpoint, 3 x ISIL HMMWVs, 1 x large ISIL unit, 2 x tactical ISIL units and 1 x heavy weapon.","NA","NA","NA","NA","NA","NA",3,3,1,1,3,3,1,1,"NA","NA","NA","NA"," http://www.centcom.mil/en/news/articles/nov.-24-military-airstrikes-continue-against-isil-in-syria-and-iraq"]
["21/11/2014-  24/11/2014","US & Undetermined Partner Nations",2,2,2,991,"NA","Mix of US and partner nation fighter, attack, bomber and remotely-piloted aircraft","Near al-Asad","Al Asad:33.785608°N, 42.4412°E","NA","ISIL strongholds near al-Asad","The strikes were conducted as part of Inherent Resolve, the operation to eliminate the terrorist group ISIL and the threat they pose to Iraq, the region and the wider international community. ","Destroyed 1 x mortar position,  1 x ISIL artillery piece, 1 x ISIL vehicle and 1 x tactical ISIL unit and damaged 1 x ISIL-occupied building and 1 x ISIL vehicle. ","NA","NA","NA","NA",1,1,2,2,1,1,2,2,"NA","NA","NA","NA","NA","NA"," http://www.centcom.mil/en/news/articles/nov.-24-military-airstrikes-continue-against-isil-in-syria-and-iraq"]
["21/11/2014-  24/11/2014","US & Undetermined Partner Nations",2,2,2,993,"NA","Mix of US and partner nation fighter, attack, bomber and remotely-piloted aircraft","Near Baghdad","Baghdad: 33.3250° N, 44.4220° E","NA","ISIL strong holds near Baghdad","The strikes were conducted as part of Inherent Resolve, the operation to eliminate the terrorist group ISIL and the threat they pose to Iraq, the region and the wider international community. ","Destroyed 1 x ISIL-occupied building, 3 x ISIL vehicles, 1 x ISIL HMMWV and 2 x tactical ISIL units - one of which was emplacing IEDs.","NA","NA","NA","NA",1,1,4,4,"NA","NA",2,2,"NA","NA","NA","NA","NA","NA"," http://www.centcom.mil/en/news/articles/nov.-24-military-airstrikes-continue-against-isil-in-syria-and-iraq"]
["21/11/2014-  24/11/2014","US & Undetermined Partner Nations",2,2,2,995,"NA","Mix of US and partner nation fighter, attack, bomber and remotely-piloted aircraft","Near Ramadi","Ramadi: 33.4167° N, 43.3000° E","NA","ISIL strongholds near Ramadi","The strikes were conducted as part of Inherent Resolve, the operation to eliminate the terrorist group ISIL and the threat they pose to Iraq, the region and the wider international community. ","Destroyed 2 x ISIL vehicles","NA","NA","NA","NA","NA","NA",2,2,"NA","NA","NA","NA","NA","NA","NA","NA","NA","NA"," http://www.centcom.mil/en/news/articles/nov.-24-military-airstrikes-continue-against-isil-in-syria-and-iraq"]
["21/11/2014-  24/11/2014","US & Undetermined Partner Nations",2,2,2,997,"NA","Mix of US and partner nation fighter, attack, bomber and remotely-piloted aircraft","Near Tal Afar","Tall Afar/ Tel Afar/ Tal Afar: 36.3742° N, 42.4500° E","NA","ISIL strongholds near Tal Afar","The strikes were conducted as part of Inherent Resolve, the operation to eliminate the terrorist group ISIL and the threat they pose to Iraq, the region and the wider international community. ","Suppressed 1 x mortar position","NA","NA","NA","NA","NA","NA","NA","NA","NA","NA",1,1,"NA","NA","NA","NA","NA","NA"," http://www.centcom.mil/en/news/articles/nov.-24-military-airstrikes-continue-against-isil-in-syria-and-iraq"]
["21/11/2014-  24/11/2014","US & Undetermined Partner Nations",1,1,1,998,"NA","Mix of US and partner nation fighter, attack, bomber and remotely-piloted aircraft","Near Fallujah Dam","Fallujah Dam: 33.308611° N, 43.7725° E  ","NA","ISIL strongholds near Fallujah","The strikes were conducted as part of Inherent Resolve, the operation to eliminate the terrorist group ISIL and the threat they pose to Iraq, the region and the wider international community. ","Struck 1 x ISIL obstruction near Fallujah Dam","NA","NA","NA","NA",1,1,"NA","NA","NA","NA","NA","NA","NA","NA","NA","NA","NA","NA"," http://www.centcom.mil/en/news/articles/nov.-24-military-airstrikes-continue-against-isil-in-syria-and-iraq"]
["21/11/2014-  24/11/2014","US & Undetermined Partner Nations",1,1,1,999,"NA","Mix of US and partner nation fighter, attack, bomber and remotely-piloted aircraft","Near Hit","Hit: 33.6450° N, 42.8264° E","NA","ISIL strongholds near Hit","The strikes were conducted as part of Inherent Resolve, the operation to eliminate the terrorist group ISIL and the threat they pose to Iraq, the region and the wider international community. ","Destroyed 1 x ISIL vehicle","NA","NA","NA","NA","NA","NA",1,1,"NA","NA","NA","NA","NA","NA","NA","NA","NA","NA"," http://www.centcom.mil/en/news/articles/nov.-24-military-airstrikes-continue-against-isil-in-syria-and-iraq"]

{"sheet":"Database methodology","index":2,"n_rows":0,"n_cols":0,"rows_kept":0,"cut":false,"hidden":false,"merged":[]}

{"sheet":"Database colour scales","index":3,"n_rows":0,"n_cols":0,"rows_kept":0,"cut":false,"hidden":false,"merged":[]}